Dept/Family,Entity,Expense Type,Expense Area,Supplier,Payment Date, Amount ,SME,UNSPCC Code,UNSPCC Description
"Ministry of Housing, Communities and Local Government",Homes England,Land Registry Fees,Corporate Resources,HM LAND REGISTRY,28/06/2022, 609.00 ,PUB,80131700,Escrow and title services
"Ministry of Housing, Communities and Local Government",Homes England,REV GRNTS TO LOCAL AUTHORITIES,Investment,MANCHESTER CITY COUNCIL,17/06/2022," 30,375.00 ",PUB,None,Grants
"Ministry of Housing, Communities and Local Government",Homes England,REV GRNTS TO LOCAL AUTHORITIES,Investment,MANCHESTER CITY COUNCIL,24/06/2022," 33,750.00 ",PUB,None,Grants
"Ministry of Housing, Communities and Local Government",Homes England,CAP GRNTS TO LOCAL AUTHORITIES,Investment,SALFORD CITY COUNCIL,07/06/2022," 156,000.00 ",PUB,None,Grants
"Ministry of Housing, Communities and Local Government",Homes England,CAP GRNTS TO LOCAL AUTHORITIES,Investment,SALFORD CITY COUNCIL,07/06/2022," 78,000.00 ",PUB,None,Grants
"Ministry of Housing, Communities and Local Government",Homes England,CAP GRNTS TO LOCAL AUTHORITIES,Investment,SALFORD CITY COUNCIL,07/06/2022," 1,131,000.00 ",PUB,None,Grants
"Ministry of Housing, Communities and Local Government",Homes England,CAP GRNTS TO LOCAL AUTHORITIES,Investment,SALFORD CITY COUNCIL,07/06/2022," 112,500.00 ",PUB,None,Grants
"Ministry of Housing, Communities and Local Government",Homes England,CAP GRNTS TO LOCAL AUTHORITIES,Investment,SALFORD CITY COUNCIL,07/06/2022," 1,638,000.00 ",PUB,None,Grants
"Ministry of Housing, Communities and Local Government",Homes England,CAP GRNTS TO LOCAL AUTHORITIES,Investment,SALFORD CITY COUNCIL,07/06/2022," 468,000.00 ",PUB,None,Grants
"Ministry of Housing, Communities and Local Government",Homes England,CAP GRNTS TO LOCAL AUTHORITIES,Investment,SALFORD CITY COUNCIL,07/06/2022," 2,306,250.00 ",PUB,None,Grants
"Ministry of Housing, Communities and Local Government",Homes England,CAP GRNTS TO LOCAL AUTHORITIES,Investment,SALFORD CITY COUNCIL,07/06/2022," 468,000.00 ",PUB,None,Grants
"Ministry of Housing, Communities and Local Government",Homes England,CAP GRNTS TO LOCAL AUTHORITIES,Investment,SALFORD CITY COUNCIL,07/06/2022," 675,000.00 ",PUB,None,Grants
"Ministry of Housing, Communities and Local Government",Homes England,CAP GRNTS TO LOCAL AUTHORITIES,Investment,SALFORD CITY COUNCIL,07/06/2022," 675,000.00 ",PUB,None,Grants
"Ministry of Housing, Communities and Local Government",Homes England,CAP GRNTS TO LOCAL AUTHORITIES,Investment,SALFORD CITY COUNCIL,07/06/2022," 731,250.00 ",PUB,None,Grants
"Ministry of Housing, Communities and Local Government",Homes England,CAP GRNTS TO LOCAL AUTHORITIES,Investment,SALFORD CITY COUNCIL,07/06/2022," 112,500.00 ",PUB,None,Grants
"Ministry of Housing, Communities and Local Government",Homes England,CAP GRNTS TO LOCAL AUTHORITIES,Investment,SALFORD CITY COUNCIL,07/06/2022," 39,000.00 ",PUB,None,Grants
"Ministry of Housing, Communities and Local Government",Homes England,CAP GRNTS TO LOCAL AUTHORITIES,Investment,SALFORD CITY COUNCIL,07/06/2022," 281,250.00 ",PUB,None,Grants
"Ministry of Housing, Communities and Local Government",Homes England,CAP GRNTS TO LOCAL AUTHORITIES,Investment,SALFORD CITY COUNCIL,30/06/2022," 179,008.00 ",PUB,None,Grants
"Ministry of Housing, Communities and Local Government",Homes England,REV GRNTS TO LOCAL AUTHORITIES,Investment,WIGAN COUNCIL,28/06/2022," 1,459.00 ",PUB,None,Grants
"Ministry of Housing, Communities and Local Government",Homes England,REV GRNTS TO LOCAL AUTHORITIES,Investment,WIGAN COUNCIL,28/06/2022," 1,459.00 ",PUB,None,Grants
"Ministry of Housing, Communities and Local Government",Homes England,REV GRNTS TO LOCAL AUTHORITIES,Investment,WIGAN COUNCIL,28/06/2022," 1,459.00 ",PUB,None,Grants
"Ministry of Housing, Communities and Local Government",Homes England,REV GRNTS TO LOCAL AUTHORITIES,Investment,WIGAN COUNCIL,28/06/2022," 1,459.00 ",PUB,None,Grants
"Ministry of Housing, Communities and Local Government",Homes England,REV GRNTS TO LOCAL AUTHORITIES,Investment,WIGAN COUNCIL,28/06/2022," 1,459.00 ",PUB,None,Grants
"Ministry of Housing, Communities and Local Government",Homes England,REV GRNTS TO LOCAL AUTHORITIES,Investment,WIGAN COUNCIL,28/06/2022," 1,459.00 ",PUB,None,Grants
"Ministry of Housing, Communities and Local Government",Homes England,REV GRNTS TO LOCAL AUTHORITIES,Investment,WIGAN COUNCIL,28/06/2022," 8,750.00 ",PUB,None,Grants
"Ministry of Housing, Communities and Local Government",Homes England,CAP GRNTS TO LOCAL AUTHORITIES,Investment,ROTHERHAM METROPOLITAN BOROUGH COUNCIL,06/06/2022," 261,625.00 ",PUB,None,Grants
"Ministry of Housing, Communities and Local Government",Homes England,REV GRNTS TO LOCAL AUTHORITIES,Investment,GATESHEAD METROPOLITAN BOROUGH COUNCIL,28/06/2022," 1,166.00 ",PUB,None,Grants
"Ministry of Housing, Communities and Local Government",Homes England,REV GRNTS TO LOCAL AUTHORITIES,Investment,GATESHEAD METROPOLITAN BOROUGH COUNCIL,28/06/2022," 1,166.00 ",PUB,None,Grants
"Ministry of Housing, Communities and Local Government",Homes England,REV GRNTS TO LOCAL AUTHORITIES,Investment,GATESHEAD METROPOLITAN BOROUGH COUNCIL,28/06/2022," 1,166.00 ",PUB,None,Grants
"Ministry of Housing, Communities and Local Government",Homes England,REV GRNTS TO LOCAL AUTHORITIES,Investment,GATESHEAD METROPOLITAN BOROUGH COUNCIL,28/06/2022," 1,166.00 ",PUB,None,Grants
"Ministry of Housing, Communities and Local Government",Homes England,REV GRNTS TO LOCAL AUTHORITIES,Investment,GATESHEAD METROPOLITAN BOROUGH COUNCIL,28/06/2022," 1,166.00 ",PUB,None,Grants
"Ministry of Housing, Communities and Local Government",Homes England,REV GRNTS TO LOCAL AUTHORITIES,Investment,GATESHEAD METROPOLITAN BOROUGH COUNCIL,28/06/2022," 1,166.00 ",PUB,None,Grants
"Ministry of Housing, Communities and Local Government",Homes England,REV GRNTS TO LOCAL AUTHORITIES,Investment,GATESHEAD METROPOLITAN BOROUGH COUNCIL,28/06/2022," 1,166.00 ",PUB,None,Grants
"Ministry of Housing, Communities and Local Government",Homes England,REV GRNTS TO LOCAL AUTHORITIES,Investment,GATESHEAD METROPOLITAN BOROUGH COUNCIL,28/06/2022," 1,166.00 ",PUB,None,Grants
"Ministry of Housing, Communities and Local Government",Homes England,REV GRNTS TO LOCAL AUTHORITIES,Investment,GATESHEAD METROPOLITAN BOROUGH COUNCIL,28/06/2022," 1,166.00 ",PUB,None,Grants
"Ministry of Housing, Communities and Local Government",Homes England,REV GRNTS TO LOCAL AUTHORITIES,Investment,GATESHEAD METROPOLITAN BOROUGH COUNCIL,28/06/2022," 1,166.00 ",PUB,None,Grants
"Ministry of Housing, Communities and Local Government",Homes England,REV GRNTS TO LOCAL AUTHORITIES,Investment,GATESHEAD METROPOLITAN BOROUGH COUNCIL,28/06/2022," 1,166.00 ",PUB,None,Grants
"Ministry of Housing, Communities and Local Government",Homes England,REV GRNTS TO LOCAL AUTHORITIES,Investment,GATESHEAD METROPOLITAN BOROUGH COUNCIL,28/06/2022," 1,166.00 ",PUB,None,Grants
"Ministry of Housing, Communities and Local Government",Homes England,REV GRNTS TO LOCAL AUTHORITIES,Investment,GATESHEAD METROPOLITAN BOROUGH COUNCIL,28/06/2022," 1,166.00 ",PUB,None,Grants
"Ministry of Housing, Communities and Local Government",Homes England,REV GRNTS TO LOCAL AUTHORITIES,Investment,GATESHEAD METROPOLITAN BOROUGH COUNCIL,28/06/2022," 1,166.00 ",PUB,None,Grants
"Ministry of Housing, Communities and Local Government",Homes England,REV GRNTS TO LOCAL AUTHORITIES,Investment,GATESHEAD METROPOLITAN BOROUGH COUNCIL,28/06/2022," 1,166.00 ",PUB,None,Grants
"Ministry of Housing, Communities and Local Government",Homes England,REV GRNTS TO LOCAL AUTHORITIES,Investment,SOUTH TYNESIDE COUNCIL,07/06/2022," 16,875.00 ",PUB,None,Grants
"Ministry of Housing, Communities and Local Government",Homes England,REV GRNTS TO LOCAL AUTHORITIES,Investment,DUDLEY METROPOLITAN BOROUGH COUNCIL,28/06/2022," 23,750.00 ",PUB,None,Grants
"Ministry of Housing, Communities and Local Government",Homes England,REV GRNTS TO LOCAL AUTHORITIES,Investment,SOLIHULL METROPOLITAN BOROUGH COUNCIL,29/06/2022," 2,187.00 ",PUB,None,Grants
"Ministry of Housing, Communities and Local Government",Homes England,REV GRNTS TO LOCAL AUTHORITIES,Investment,SOLIHULL METROPOLITAN BOROUGH COUNCIL,29/06/2022," 2,210.00 ",PUB,None,Grants
"Ministry of Housing, Communities and Local Government",Homes England,REV GRNTS TO LOCAL AUTHORITIES,Investment,SOLIHULL METROPOLITAN BOROUGH COUNCIL,29/06/2022," 2,250.00 ",PUB,None,Grants
"Ministry of Housing, Communities and Local Government",Homes England,REV GRNTS TO LOCAL AUTHORITIES,Investment,SOLIHULL METROPOLITAN BOROUGH COUNCIL,29/06/2022," 2,187.00 ",PUB,None,Grants
"Ministry of Housing, Communities and Local Government",Homes England,REV GRNTS TO LOCAL AUTHORITIES,Investment,SOLIHULL METROPOLITAN BOROUGH COUNCIL,29/06/2022," 2,250.00 ",PUB,None,Grants
"Ministry of Housing, Communities and Local Government",Homes England,REV GRNTS TO LOCAL AUTHORITIES,Investment,SOLIHULL METROPOLITAN BOROUGH COUNCIL,29/06/2022," 2,250.00 ",PUB,None,Grants
"Ministry of Housing, Communities and Local Government",Homes England,REV GRNTS TO LOCAL AUTHORITIES,Investment,LEEDS CITY COUNCIL,28/06/2022," 22,500.00 ",PUB,None,Grants
"Ministry of Housing, Communities and Local Government",Homes England,REV GRNTS TO LOCAL AUTHORITIES,Investment,THE COUNTY COUNCIL OF DURHAM,15/06/2022," 1,780.00 ",PUB,None,Grants
"Ministry of Housing, Communities and Local Government",Homes England,REV GRNTS TO LOCAL AUTHORITIES,Investment,THE COUNTY COUNCIL OF DURHAM,15/06/2022," 1,000.00 ",PUB,None,Grants
"Ministry of Housing, Communities and Local Government",Homes England,REV GRNTS TO LOCAL AUTHORITIES,Investment,THE COUNTY COUNCIL OF DURHAM,15/06/2022," 2,910.00 ",PUB,None,Grants
"Ministry of Housing, Communities and Local Government",Homes England,REV GRNTS TO LOCAL AUTHORITIES,Investment,THE COUNTY COUNCIL OF DURHAM,15/06/2022," 1,620.00 ",PUB,None,Grants
"Ministry of Housing, Communities and Local Government",Homes England,REV GRNTS TO LOCAL AUTHORITIES,Investment,THE COUNTY COUNCIL OF DURHAM,30/06/2022," 1,830.00 ",PUB,None,Grants
"Ministry of Housing, Communities and Local Government",Homes England,REV GRNTS TO LOCAL AUTHORITIES,Investment,NORTHUMBERLAND COUNTY COUNCIL,28/06/2022," 4,375.00 ",PUB,None,Grants
"Ministry of Housing, Communities and Local Government",Homes England,CAP GRNTS TO LOCAL AUTHORITIES,Investment,BLACKPOOL BOROUGH COUNCIL,29/06/2022," 8,200.00 ",PUB,None,Grants
"Ministry of Housing, Communities and Local Government",Homes England,CAP GRNTS TO LOCAL AUTHORITIES,Investment,BLACKPOOL BOROUGH COUNCIL,29/06/2022," 2,875.00 ",PUB,None,Grants
"Ministry of Housing, Communities and Local Government",Homes England,CAP GRNTS TO LOCAL AUTHORITIES,Investment,EAST RIDING OF YORKSHIRE COUNCIL,20/06/2022," 22,500.00 ",PUB,None,Grants
"Ministry of Housing, Communities and Local Government",Homes England,REV GRNTS TO LOCAL AUTHORITIES,Investment,CITY OF YORK COUNCIL,29/06/2022," 3,907.00 ",PUB,None,Grants
"Ministry of Housing, Communities and Local Government",Homes England,REV GRNTS TO LOCAL AUTHORITIES,Investment,DERBY CITY COUNCIL,28/06/2022, 392.00 ,PUB,None,Grants
"Ministry of Housing, Communities and Local Government",Homes England,REV GRNTS TO LOCAL AUTHORITIES,Investment,DERBY CITY COUNCIL,28/06/2022, 393.00 ,PUB,None,Grants
"Ministry of Housing, Communities and Local Government",Homes England,REV GRNTS TO LOCAL AUTHORITIES,Investment,DERBY CITY COUNCIL,28/06/2022, 392.00 ,PUB,None,Grants
"Ministry of Housing, Communities and Local Government",Homes England,REV GRNTS TO LOCAL AUTHORITIES,Investment,DERBY CITY COUNCIL,28/06/2022," 1,750.00 ",PUB,None,Grants
"Ministry of Housing, Communities and Local Government",Homes England,REV GRNTS TO LOCAL AUTHORITIES,Investment,DERBY CITY COUNCIL,28/06/2022," 1,750.00 ",PUB,None,Grants
"Ministry of Housing, Communities and Local Government",Homes England,REV GRNTS TO LOCAL AUTHORITIES,Investment,DERBY CITY COUNCIL,28/06/2022, 392.00 ,PUB,None,Grants
"Ministry of Housing, Communities and Local Government",Homes England,REV GRNTS TO LOCAL AUTHORITIES,Investment,DERBY CITY COUNCIL,28/06/2022," 1,750.00 ",PUB,None,Grants
"Ministry of Housing, Communities and Local Government",Homes England,REV GRNTS TO LOCAL AUTHORITIES,Investment,DERBY CITY COUNCIL,28/06/2022," 1,750.00 ",PUB,None,Grants
"Ministry of Housing, Communities and Local Government",Homes England,REV GRNTS TO LOCAL AUTHORITIES,Investment,DERBY CITY COUNCIL,28/06/2022," 3,550.00 ",PUB,None,Grants
"Ministry of Housing, Communities and Local Government",Homes England,REV GRNTS TO LOCAL AUTHORITIES,Investment,DERBY CITY COUNCIL,28/06/2022," 1,750.00 ",PUB,None,Grants
"Ministry of Housing, Communities and Local Government",Homes England,REV GRNTS TO LOCAL AUTHORITIES,Investment,DERBY CITY COUNCIL,28/06/2022," 1,750.00 ",PUB,None,Grants
"Ministry of Housing, Communities and Local Government",Homes England,REV GRNTS TO LOCAL AUTHORITIES,Investment,DERBY CITY COUNCIL,28/06/2022," 1,750.00 ",PUB,None,Grants
"Ministry of Housing, Communities and Local Government",Homes England,REV GRNTS TO LOCAL AUTHORITIES,Investment,DERBY CITY COUNCIL,28/06/2022," 1,750.00 ",PUB,None,Grants
"Ministry of Housing, Communities and Local Government",Homes England,REV GRNTS TO LOCAL AUTHORITIES,Investment,DERBY CITY COUNCIL,28/06/2022, 392.00 ,PUB,None,Grants
"Ministry of Housing, Communities and Local Government",Homes England,REV GRNTS TO LOCAL AUTHORITIES,Investment,DERBY CITY COUNCIL,28/06/2022," 1,750.00 ",PUB,None,Grants
"Ministry of Housing, Communities and Local Government",Homes England,REV GRNTS TO LOCAL AUTHORITIES,Investment,DERBY CITY COUNCIL,28/06/2022," 1,750.00 ",PUB,None,Grants
"Ministry of Housing, Communities and Local Government",Homes England,REV GRNTS TO LOCAL AUTHORITIES,Investment,DERBY CITY COUNCIL,28/06/2022," 1,750.00 ",PUB,None,Grants
"Ministry of Housing, Communities and Local Government",Homes England,REV GRNTS TO LOCAL AUTHORITIES,Investment,DERBY CITY COUNCIL,28/06/2022," 1,750.00 ",PUB,None,Grants
"Ministry of Housing, Communities and Local Government",Homes England,REV GRNTS TO LOCAL AUTHORITIES,Investment,DERBY CITY COUNCIL,28/06/2022, 392.00 ,PUB,None,Grants
"Ministry of Housing, Communities and Local Government",Homes England,REV GRNTS TO LOCAL AUTHORITIES,Investment,DERBY CITY COUNCIL,28/06/2022," 1,750.00 ",PUB,None,Grants
"Ministry of Housing, Communities and Local Government",Homes England,REV GRNTS TO LOCAL AUTHORITIES,Investment,DERBY CITY COUNCIL,28/06/2022," 1,750.00 ",PUB,None,Grants
"Ministry of Housing, Communities and Local Government",Homes England,REV GRNTS TO LOCAL AUTHORITIES,Investment,DERBY CITY COUNCIL,28/06/2022," 1,750.00 ",PUB,None,Grants
"Ministry of Housing, Communities and Local Government",Homes England,REV GRNTS TO LOCAL AUTHORITIES,Investment,DERBY CITY COUNCIL,28/06/2022," 1,750.00 ",PUB,None,Grants
"Ministry of Housing, Communities and Local Government",Homes England,REV GRNTS TO LOCAL AUTHORITIES,Investment,DERBY CITY COUNCIL,28/06/2022," 1,750.00 ",PUB,None,Grants
"Ministry of Housing, Communities and Local Government",Homes England,REV GRNTS TO LOCAL AUTHORITIES,Investment,DERBY CITY COUNCIL,28/06/2022," 1,750.00 ",PUB,None,Grants
"Ministry of Housing, Communities and Local Government",Homes England,REV GRNTS TO LOCAL AUTHORITIES,Investment,DERBY CITY COUNCIL,28/06/2022," 1,750.00 ",PUB,None,Grants
"Ministry of Housing, Communities and Local Government",Homes England,REV GRNTS TO LOCAL AUTHORITIES,Investment,DERBY CITY COUNCIL,28/06/2022," 1,750.00 ",PUB,None,Grants
"Ministry of Housing, Communities and Local Government",Homes England,REV GRNTS TO LOCAL AUTHORITIES,Investment,DERBY CITY COUNCIL,28/06/2022," 1,750.00 ",PUB,None,Grants
"Ministry of Housing, Communities and Local Government",Homes England,REV GRNTS TO LOCAL AUTHORITIES,Investment,DERBY CITY COUNCIL,29/06/2022," 1,750.00 ",PUB,None,Grants
"Ministry of Housing, Communities and Local Government",Homes England,REV GRNTS TO LOCAL AUTHORITIES,Investment,DERBY CITY COUNCIL,29/06/2022, 393.00 ,PUB,None,Grants
"Ministry of Housing, Communities and Local Government",Homes England,REV GRNTS TO LOCAL AUTHORITIES,Investment,DERBY CITY COUNCIL,29/06/2022, 392.00 ,PUB,None,Grants
"Ministry of Housing, Communities and Local Government",Homes England,REV GRNTS TO LOCAL AUTHORITIES,Investment,DERBY CITY COUNCIL,29/06/2022," 1,750.00 ",PUB,None,Grants
"Ministry of Housing, Communities and Local Government",Homes England,REV GRNTS TO LOCAL AUTHORITIES,Investment,DERBY CITY COUNCIL,29/06/2022, 393.00 ,PUB,None,Grants
"Ministry of Housing, Communities and Local Government",Homes England,REV GRNTS TO LOCAL AUTHORITIES,Investment,DERBY CITY COUNCIL,29/06/2022, 393.00 ,PUB,None,Grants
"Ministry of Housing, Communities and Local Government",Homes England,REV GRNTS TO LOCAL AUTHORITIES,Investment,DERBY CITY COUNCIL,29/06/2022, 392.00 ,PUB,None,Grants
"Ministry of Housing, Communities and Local Government",Homes England,REV GRNTS TO LOCAL AUTHORITIES,Investment,DERBY CITY COUNCIL,29/06/2022," 1,750.00 ",PUB,None,Grants
"Ministry of Housing, Communities and Local Government",Homes England,REV GRNTS TO LOCAL AUTHORITIES,Investment,DERBY CITY COUNCIL,30/06/2022, 393.00 ,PUB,None,Grants
"Ministry of Housing, Communities and Local Government",Homes England,REV GRNTS TO LOCAL AUTHORITIES,Investment,DERBY CITY COUNCIL,30/06/2022, 393.00 ,PUB,None,Grants
"Ministry of Housing, Communities and Local Government",Homes England,REV GRNTS TO LOCAL AUTHORITIES,Investment,DERBY CITY COUNCIL,30/06/2022, 393.00 ,PUB,None,Grants
"Ministry of Housing, Communities and Local Government",Homes England,REV GRNTS TO LOCAL AUTHORITIES,Investment,DERBY CITY COUNCIL,30/06/2022, 394.00 ,PUB,None,Grants
"Ministry of Housing, Communities and Local Government",Homes England,REV GRNTS TO LOCAL AUTHORITIES,Investment,DERBY CITY COUNCIL,30/06/2022, 394.00 ,PUB,None,Grants
"Ministry of Housing, Communities and Local Government",Homes England,REV GRNTS TO LOCAL AUTHORITIES,Investment,NOTTINGHAM CITY COUNCIL,28/06/2022," 1,678.00 ",PUB,None,Grants
"Ministry of Housing, Communities and Local Government",Homes England,REV GRNTS TO LOCAL AUTHORITIES,Investment,NOTTINGHAM CITY COUNCIL,28/06/2022," 1,708.00 ",PUB,None,Grants
"Ministry of Housing, Communities and Local Government",Homes England,REV GRNTS TO LOCAL AUTHORITIES,Investment,NOTTINGHAM CITY COUNCIL,28/06/2022," 1,708.00 ",PUB,None,Grants
"Ministry of Housing, Communities and Local Government",Homes England,REV GRNTS TO LOCAL AUTHORITIES,Investment,NOTTINGHAM CITY COUNCIL,28/06/2022," 1,678.00 ",PUB,None,Grants
"Ministry of Housing, Communities and Local Government",Homes England,REV GRNTS TO LOCAL AUTHORITIES,Investment,NOTTINGHAM CITY COUNCIL,28/06/2022," 1,678.00 ",PUB,None,Grants
"Ministry of Housing, Communities and Local Government",Homes England,REV GRNTS TO LOCAL AUTHORITIES,Investment,NOTTINGHAM CITY COUNCIL,28/06/2022," 1,647.00 ",PUB,None,Grants
"Ministry of Housing, Communities and Local Government",Homes England,REV GRNTS TO LOCAL AUTHORITIES,Investment,NOTTINGHAM CITY COUNCIL,28/06/2022," 1,708.00 ",PUB,None,Grants
"Ministry of Housing, Communities and Local Government",Homes England,REV GRNTS TO LOCAL AUTHORITIES,Investment,NOTTINGHAM CITY COUNCIL,28/06/2022," 1,647.00 ",PUB,None,Grants
"Ministry of Housing, Communities and Local Government",Homes England,REV GRNTS TO LOCAL AUTHORITIES,Investment,NOTTINGHAM CITY COUNCIL,28/06/2022," 1,678.00 ",PUB,None,Grants
"Ministry of Housing, Communities and Local Government",Homes England,REV GRNTS TO LOCAL AUTHORITIES,Investment,NOTTINGHAM CITY COUNCIL,28/06/2022," 1,678.00 ",PUB,None,Grants
"Ministry of Housing, Communities and Local Government",Homes England,REV GRNTS TO LOCAL AUTHORITIES,Investment,NOTTINGHAM CITY COUNCIL,28/06/2022," 1,647.00 ",PUB,None,Grants
"Ministry of Housing, Communities and Local Government",Homes England,CAP GRNTS TO LOCAL AUTHORITIES,Investment,SHROPSHIRE COUNCIL,09/06/2022," 187,500.00 ",PUB,None,Grants
"Ministry of Housing, Communities and Local Government",Homes England,CAP GRNTS TO LOCAL AUTHORITIES,Investment,SHROPSHIRE COUNCIL,13/06/2022," 273,000.00 ",PUB,None,Grants
"Ministry of Housing, Communities and Local Government",Homes England,CAP GRNTS TO LOCAL AUTHORITIES,Investment,SHROPSHIRE COUNCIL,24/06/2022," 905,783.84 ",PUB,None,Grants
"Ministry of Housing, Communities and Local Government",Homes England,REV GRNTS TO LOCAL AUTHORITIES,Investment,NORTH SOMERSET COUNCIL,24/06/2022," 22,641.50 ",PUB,None,Grants
"Ministry of Housing, Communities and Local Government",Homes England,CAP GRNTS TO LOCAL AUTHORITIES,Investment,SWINDON BOROUGH COUNCIL,21/06/2022," 422,500.00 ",PUB,None,Grants
"Ministry of Housing, Communities and Local Government",Homes England,REV GRNTS TO LOCAL AUTHORITIES,Investment,WILTSHIRE COUNCIL,28/06/2022," 7,500.00 ",PUB,None,Grants
"Ministry of Housing, Communities and Local Government",Homes England,CAP GRNTS TO LOCAL AUTHORITIES,Investment,CENTRAL BEDFORDSHIRE COUNCIL,13/06/2022," 2,013,000.00 ",PUB,None,Grants
"Ministry of Housing, Communities and Local Government",Homes England,CAP GRNTS TO LOCAL AUTHORITIES,Investment,CENTRAL BEDFORDSHIRE COUNCIL,13/06/2022," 1,287,000.00 ",PUB,None,Grants
"Ministry of Housing, Communities and Local Government",Homes England,REV GRNTS TO LOCAL AUTHORITIES,Investment,CENTRAL BEDFORDSHIRE COUNCIL,28/06/2022," 2,087.00 ",PUB,None,Grants
"Ministry of Housing, Communities and Local Government",Homes England,REV GRNTS TO LOCAL AUTHORITIES,Investment,CENTRAL BEDFORDSHIRE COUNCIL,28/06/2022," 2,087.00 ",PUB,None,Grants
"Ministry of Housing, Communities and Local Government",Homes England,REV GRNTS TO LOCAL AUTHORITIES,Investment,CENTRAL BEDFORDSHIRE COUNCIL,28/06/2022," 2,087.00 ",PUB,None,Grants
"Ministry of Housing, Communities and Local Government",Homes England,REV GRNTS TO LOCAL AUTHORITIES,Investment,CENTRAL BEDFORDSHIRE COUNCIL,28/06/2022," 2,086.00 ",PUB,None,Grants
"Ministry of Housing, Communities and Local Government",Homes England,REV GRNTS TO LOCAL AUTHORITIES,Investment,SOUTHEND-ON-SEA BOROUGH COUNCIL,28/06/2022," 1,797.00 ",PUB,None,Grants
"Ministry of Housing, Communities and Local Government",Homes England,REV GRNTS TO LOCAL AUTHORITIES,Investment,SOUTHEND-ON-SEA BOROUGH COUNCIL,28/06/2022," 1,797.00 ",PUB,None,Grants
"Ministry of Housing, Communities and Local Government",Homes England,REV GRNTS TO LOCAL AUTHORITIES,Investment,SOUTHEND-ON-SEA BOROUGH COUNCIL,28/06/2022," 1,797.00 ",PUB,None,Grants
"Ministry of Housing, Communities and Local Government",Homes England,REV GRNTS TO LOCAL AUTHORITIES,Investment,SOUTHEND-ON-SEA BOROUGH COUNCIL,28/06/2022," 1,797.00 ",PUB,None,Grants
"Ministry of Housing, Communities and Local Government",Homes England,REV GRNTS TO LOCAL AUTHORITIES,Investment,SOUTHEND-ON-SEA BOROUGH COUNCIL,28/06/2022," 1,797.00 ",PUB,None,Grants
"Ministry of Housing, Communities and Local Government",Homes England,REV GRNTS TO LOCAL AUTHORITIES,Investment,SOUTHEND-ON-SEA BOROUGH COUNCIL,28/06/2022," 1,797.00 ",PUB,None,Grants
"Ministry of Housing, Communities and Local Government",Homes England,REV GRNTS TO LOCAL AUTHORITIES,Investment,SOUTHEND-ON-SEA BOROUGH COUNCIL,28/06/2022," 1,797.00 ",PUB,None,Grants
"Ministry of Housing, Communities and Local Government",Homes England,REV GRNTS TO LOCAL AUTHORITIES,Investment,SOUTHEND-ON-SEA BOROUGH COUNCIL,28/06/2022," 1,797.00 ",PUB,None,Grants
"Ministry of Housing, Communities and Local Government",Homes England,REV GRNTS TO LOCAL AUTHORITIES,Investment,SOUTHEND-ON-SEA BOROUGH COUNCIL,28/06/2022," 1,797.00 ",PUB,None,Grants
"Ministry of Housing, Communities and Local Government",Homes England,REV GRNTS TO LOCAL AUTHORITIES,Investment,SOUTHEND-ON-SEA BOROUGH COUNCIL,28/06/2022," 1,797.00 ",PUB,None,Grants
"Ministry of Housing, Communities and Local Government",Homes England,REV GRNTS TO LOCAL AUTHORITIES,Investment,SOUTHEND-ON-SEA BOROUGH COUNCIL,28/06/2022," 1,797.00 ",PUB,None,Grants
"Ministry of Housing, Communities and Local Government",Homes England,REV GRNTS TO LOCAL AUTHORITIES,Investment,SOUTHEND-ON-SEA BOROUGH COUNCIL,28/06/2022," 7,190.00 ",PUB,None,Grants
"Ministry of Housing, Communities and Local Government",Homes England,REV GRNTS TO LOCAL AUTHORITIES,Investment,SOUTHEND-ON-SEA BOROUGH COUNCIL,28/06/2022," 1,797.00 ",PUB,None,Grants
"Ministry of Housing, Communities and Local Government",Homes England,REV GRNTS TO LOCAL AUTHORITIES,Investment,SOUTHEND-ON-SEA BOROUGH COUNCIL,28/06/2022," 1,797.00 ",PUB,None,Grants
"Ministry of Housing, Communities and Local Government",Homes England,REV GRNTS TO LOCAL AUTHORITIES,Investment,MEDWAY COUNCIL,28/06/2022," 6,669.00 ",PUB,None,Grants
"Ministry of Housing, Communities and Local Government",Homes England,REV GRNTS TO LOCAL AUTHORITIES,Investment,BRIGHTON & HOVE CITY COUNCIL,06/06/2022," 1,938.00 ",PUB,None,Grants
"Ministry of Housing, Communities and Local Government",Homes England,REV GRNTS TO LOCAL AUTHORITIES,Investment,BRIGHTON & HOVE CITY COUNCIL,06/06/2022," 1,938.00 ",PUB,None,Grants
"Ministry of Housing, Communities and Local Government",Homes England,REV GRNTS TO LOCAL AUTHORITIES,Investment,BRIGHTON & HOVE CITY COUNCIL,06/06/2022," 1,938.00 ",PUB,None,Grants
"Ministry of Housing, Communities and Local Government",Homes England,REV GRNTS TO LOCAL AUTHORITIES,Investment,BRIGHTON & HOVE CITY COUNCIL,09/06/2022," 1,167.00 ",PUB,None,Grants
"Ministry of Housing, Communities and Local Government",Homes England,REV GRNTS TO LOCAL AUTHORITIES,Investment,BRIGHTON & HOVE CITY COUNCIL,15/06/2022," 1,938.00 ",PUB,None,Grants
"Ministry of Housing, Communities and Local Government",Homes England,REV GRNTS TO LOCAL AUTHORITIES,Investment,BRIGHTON & HOVE CITY COUNCIL,16/06/2022," 10,500.00 ",PUB,None,Grants
"Ministry of Housing, Communities and Local Government",Homes England,REV GRNTS TO LOCAL AUTHORITIES,Investment,BRIGHTON & HOVE CITY COUNCIL,20/06/2022," 36,829.00 ",PUB,None,Grants
"Ministry of Housing, Communities and Local Government",Homes England,REV GRNTS TO LOCAL AUTHORITIES,Investment,BRIGHTON & HOVE CITY COUNCIL,23/06/2022," 1,167.00 ",PUB,None,Grants
"Ministry of Housing, Communities and Local Government",Homes England,REV GRNTS TO LOCAL AUTHORITIES,Investment,BRIGHTON & HOVE CITY COUNCIL,23/06/2022," 1,938.00 ",PUB,None,Grants
"Ministry of Housing, Communities and Local Government",Homes England,REV GRNTS TO LOCAL AUTHORITIES,Investment,BRIGHTON & HOVE CITY COUNCIL,28/06/2022," 1,785.00 ",PUB,None,Grants
"Ministry of Housing, Communities and Local Government",Homes England,REV GRNTS TO LOCAL AUTHORITIES,Investment,BRIGHTON & HOVE CITY COUNCIL,28/06/2022," 1,455.00 ",PUB,None,Grants
"Ministry of Housing, Communities and Local Government",Homes England,REV GRNTS TO LOCAL AUTHORITIES,Investment,BRIGHTON & HOVE CITY COUNCIL,28/06/2022," 1,575.00 ",PUB,None,Grants
"Ministry of Housing, Communities and Local Government",Homes England,REV GRNTS TO LOCAL AUTHORITIES,Investment,BRIGHTON & HOVE CITY COUNCIL,28/06/2022," 1,785.00 ",PUB,None,Grants
"Ministry of Housing, Communities and Local Government",Homes England,REV GRNTS TO LOCAL AUTHORITIES,Investment,BRIGHTON & HOVE CITY COUNCIL,28/06/2022," 1,454.00 ",PUB,None,Grants
"Ministry of Housing, Communities and Local Government",Homes England,REV GRNTS TO LOCAL AUTHORITIES,Investment,BRIGHTON & HOVE CITY COUNCIL,28/06/2022," 1,455.00 ",PUB,None,Grants
"Ministry of Housing, Communities and Local Government",Homes England,REV GRNTS TO LOCAL AUTHORITIES,Investment,BRIGHTON & HOVE CITY COUNCIL,28/06/2022," 1,575.00 ",PUB,None,Grants
"Ministry of Housing, Communities and Local Government",Homes England,REV GRNTS TO LOCAL AUTHORITIES,Investment,BRIGHTON & HOVE CITY COUNCIL,28/06/2022," 1,785.00 ",PUB,None,Grants
"Ministry of Housing, Communities and Local Government",Homes England,REV GRNTS TO LOCAL AUTHORITIES,Investment,BRIGHTON & HOVE CITY COUNCIL,28/06/2022," 1,455.00 ",PUB,None,Grants
"Ministry of Housing, Communities and Local Government",Homes England,REV GRNTS TO LOCAL AUTHORITIES,Investment,BRIGHTON & HOVE CITY COUNCIL,28/06/2022," 1,575.00 ",PUB,None,Grants
"Ministry of Housing, Communities and Local Government",Homes England,REV GRNTS TO LOCAL AUTHORITIES,Investment,BRIGHTON & HOVE CITY COUNCIL,28/06/2022," 1,575.00 ",PUB,None,Grants
"Ministry of Housing, Communities and Local Government",Homes England,REV GRNTS TO LOCAL AUTHORITIES,Investment,BRIGHTON & HOVE CITY COUNCIL,28/06/2022," 1,454.00 ",PUB,None,Grants
"Ministry of Housing, Communities and Local Government",Homes England,REV GRNTS TO LOCAL AUTHORITIES,Investment,BRIGHTON & HOVE CITY COUNCIL,28/06/2022," 1,575.00 ",PUB,None,Grants
"Ministry of Housing, Communities and Local Government",Homes England,REV GRNTS TO LOCAL AUTHORITIES,Investment,BRIGHTON & HOVE CITY COUNCIL,28/06/2022," 1,455.00 ",PUB,None,Grants
"Ministry of Housing, Communities and Local Government",Homes England,REV GRNTS TO LOCAL AUTHORITIES,Investment,BRIGHTON & HOVE CITY COUNCIL,28/06/2022," 1,575.00 ",PUB,None,Grants
"Ministry of Housing, Communities and Local Government",Homes England,REV GRNTS TO LOCAL AUTHORITIES,Investment,BRIGHTON & HOVE CITY COUNCIL,28/06/2022," 1,785.00 ",PUB,None,Grants
"Ministry of Housing, Communities and Local Government",Homes England,REV GRNTS TO LOCAL AUTHORITIES,Investment,BRIGHTON & HOVE CITY COUNCIL,28/06/2022," 1,575.00 ",PUB,None,Grants
"Ministry of Housing, Communities and Local Government",Homes England,REV GRNTS TO LOCAL AUTHORITIES,Investment,BRIGHTON & HOVE CITY COUNCIL,28/06/2022," 1,785.00 ",PUB,None,Grants
"Ministry of Housing, Communities and Local Government",Homes England,REV GRNTS TO LOCAL AUTHORITIES,Investment,BRIGHTON & HOVE CITY COUNCIL,28/06/2022," 1,785.00 ",PUB,None,Grants
"Ministry of Housing, Communities and Local Government",Homes England,REV GRNTS TO LOCAL AUTHORITIES,Investment,BRIGHTON & HOVE CITY COUNCIL,28/06/2022," 1,455.00 ",PUB,None,Grants
"Ministry of Housing, Communities and Local Government",Homes England,REV GRNTS TO LOCAL AUTHORITIES,Investment,BRIGHTON & HOVE CITY COUNCIL,28/06/2022," 1,455.00 ",PUB,None,Grants
"Ministry of Housing, Communities and Local Government",Homes England,REV GRNTS TO LOCAL AUTHORITIES,Investment,BRIGHTON & HOVE CITY COUNCIL,28/06/2022," 1,455.00 ",PUB,None,Grants
"Ministry of Housing, Communities and Local Government",Homes England,REV GRNTS TO LOCAL AUTHORITIES,Investment,BRIGHTON & HOVE CITY COUNCIL,28/06/2022," 1,455.00 ",PUB,None,Grants
"Ministry of Housing, Communities and Local Government",Homes England,REV GRNTS TO LOCAL AUTHORITIES,Investment,BRIGHTON & HOVE CITY COUNCIL,28/06/2022," 1,575.00 ",PUB,None,Grants
"Ministry of Housing, Communities and Local Government",Homes England,REV GRNTS TO LOCAL AUTHORITIES,Investment,BRIGHTON & HOVE CITY COUNCIL,28/06/2022," 1,575.00 ",PUB,None,Grants
"Ministry of Housing, Communities and Local Government",Homes England,REV GRNTS TO LOCAL AUTHORITIES,Investment,BRIGHTON & HOVE CITY COUNCIL,28/06/2022," 1,575.00 ",PUB,None,Grants
"Ministry of Housing, Communities and Local Government",Homes England,REV GRNTS TO LOCAL AUTHORITIES,Investment,BRIGHTON & HOVE CITY COUNCIL,28/06/2022," 1,575.00 ",PUB,None,Grants
"Ministry of Housing, Communities and Local Government",Homes England,REV GRNTS TO LOCAL AUTHORITIES,Investment,BRIGHTON & HOVE CITY COUNCIL,28/06/2022," 1,785.00 ",PUB,None,Grants
"Ministry of Housing, Communities and Local Government",Homes England,REV GRNTS TO LOCAL AUTHORITIES,Investment,BRIGHTON & HOVE CITY COUNCIL,28/06/2022," 1,454.00 ",PUB,None,Grants
"Ministry of Housing, Communities and Local Government",Homes England,REV GRNTS TO LOCAL AUTHORITIES,Investment,BRIGHTON & HOVE CITY COUNCIL,28/06/2022," 1,455.00 ",PUB,None,Grants
"Ministry of Housing, Communities and Local Government",Homes England,REV GRNTS TO LOCAL AUTHORITIES,Investment,BRIGHTON & HOVE CITY COUNCIL,28/06/2022," 1,455.00 ",PUB,None,Grants
"Ministry of Housing, Communities and Local Government",Homes England,REV GRNTS TO LOCAL AUTHORITIES,Investment,BRIGHTON & HOVE CITY COUNCIL,28/06/2022," 1,575.00 ",PUB,None,Grants
"Ministry of Housing, Communities and Local Government",Homes England,REV GRNTS TO LOCAL AUTHORITIES,Investment,BRIGHTON & HOVE CITY COUNCIL,28/06/2022," 1,575.00 ",PUB,None,Grants
"Ministry of Housing, Communities and Local Government",Homes England,REV GRNTS TO LOCAL AUTHORITIES,Investment,BRIGHTON & HOVE CITY COUNCIL,28/06/2022," 1,454.00 ",PUB,None,Grants
"Ministry of Housing, Communities and Local Government",Homes England,REV GRNTS TO LOCAL AUTHORITIES,Investment,BRIGHTON & HOVE CITY COUNCIL,28/06/2022," 1,785.00 ",PUB,None,Grants
"Ministry of Housing, Communities and Local Government",Homes England,REV GRNTS TO LOCAL AUTHORITIES,Investment,BRIGHTON & HOVE CITY COUNCIL,28/06/2022," 1,785.00 ",PUB,None,Grants
"Ministry of Housing, Communities and Local Government",Homes England,REV GRNTS TO LOCAL AUTHORITIES,Investment,BRIGHTON & HOVE CITY COUNCIL,28/06/2022," 1,575.00 ",PUB,None,Grants
"Ministry of Housing, Communities and Local Government",Homes England,REV GRNTS TO LOCAL AUTHORITIES,Investment,BRIGHTON & HOVE CITY COUNCIL,28/06/2022," 1,785.00 ",PUB,None,Grants
"Ministry of Housing, Communities and Local Government",Homes England,REV GRNTS TO LOCAL AUTHORITIES,Investment,BRIGHTON & HOVE CITY COUNCIL,28/06/2022," 1,454.00 ",PUB,None,Grants
"Ministry of Housing, Communities and Local Government",Homes England,REV GRNTS TO LOCAL AUTHORITIES,Investment,BRIGHTON & HOVE CITY COUNCIL,28/06/2022," 1,455.00 ",PUB,None,Grants
"Ministry of Housing, Communities and Local Government",Homes England,REV GRNTS TO LOCAL AUTHORITIES,Investment,BRIGHTON & HOVE CITY COUNCIL,28/06/2022," 1,575.00 ",PUB,None,Grants
"Ministry of Housing, Communities and Local Government",Homes England,REV GRNTS TO LOCAL AUTHORITIES,Investment,BRIGHTON & HOVE CITY COUNCIL,28/06/2022," 1,575.00 ",PUB,None,Grants
"Ministry of Housing, Communities and Local Government",Homes England,REV GRNTS TO LOCAL AUTHORITIES,Investment,BRIGHTON & HOVE CITY COUNCIL,28/06/2022," 1,455.00 ",PUB,None,Grants
"Ministry of Housing, Communities and Local Government",Homes England,REV GRNTS TO LOCAL AUTHORITIES,Investment,BRIGHTON & HOVE CITY COUNCIL,28/06/2022," 1,575.00 ",PUB,None,Grants
"Ministry of Housing, Communities and Local Government",Homes England,REV GRNTS TO LOCAL AUTHORITIES,Investment,BRIGHTON & HOVE CITY COUNCIL,28/06/2022," 1,785.00 ",PUB,None,Grants
"Ministry of Housing, Communities and Local Government",Homes England,REV GRNTS TO LOCAL AUTHORITIES,Investment,BRIGHTON & HOVE CITY COUNCIL,28/06/2022," 1,454.00 ",PUB,None,Grants
"Ministry of Housing, Communities and Local Government",Homes England,REV GRNTS TO LOCAL AUTHORITIES,Investment,BRIGHTON & HOVE CITY COUNCIL,28/06/2022," 1,455.00 ",PUB,None,Grants
"Ministry of Housing, Communities and Local Government",Homes England,REV GRNTS TO LOCAL AUTHORITIES,Investment,BRIGHTON & HOVE CITY COUNCIL,28/06/2022," 1,575.00 ",PUB,None,Grants
"Ministry of Housing, Communities and Local Government",Homes England,REV GRNTS TO LOCAL AUTHORITIES,Investment,BRIGHTON & HOVE CITY COUNCIL,28/06/2022," 1,575.00 ",PUB,None,Grants
"Ministry of Housing, Communities and Local Government",Homes England,REV GRNTS TO LOCAL AUTHORITIES,Investment,BRIGHTON & HOVE CITY COUNCIL,28/06/2022," 1,785.00 ",PUB,None,Grants
"Ministry of Housing, Communities and Local Government",Homes England,REV GRNTS TO LOCAL AUTHORITIES,Investment,BRIGHTON & HOVE CITY COUNCIL,28/06/2022," 1,454.00 ",PUB,None,Grants
"Ministry of Housing, Communities and Local Government",Homes England,REV GRNTS TO LOCAL AUTHORITIES,Investment,BRIGHTON & HOVE CITY COUNCIL,28/06/2022," 1,785.00 ",PUB,None,Grants
"Ministry of Housing, Communities and Local Government",Homes England,REV GRNTS TO LOCAL AUTHORITIES,Investment,BRIGHTON & HOVE CITY COUNCIL,28/06/2022," 1,455.00 ",PUB,None,Grants
"Ministry of Housing, Communities and Local Government",Homes England,REV GRNTS TO LOCAL AUTHORITIES,Investment,BRIGHTON & HOVE CITY COUNCIL,28/06/2022," 1,455.00 ",PUB,None,Grants
"Ministry of Housing, Communities and Local Government",Homes England,REV GRNTS TO LOCAL AUTHORITIES,Investment,BRIGHTON & HOVE CITY COUNCIL,28/06/2022," 1,575.00 ",PUB,None,Grants
"Ministry of Housing, Communities and Local Government",Homes England,REV GRNTS TO LOCAL AUTHORITIES,Investment,BRIGHTON & HOVE CITY COUNCIL,28/06/2022," 1,575.00 ",PUB,None,Grants
"Ministry of Housing, Communities and Local Government",Homes England,REV GRNTS TO LOCAL AUTHORITIES,Investment,BRIGHTON & HOVE CITY COUNCIL,28/06/2022," 1,575.00 ",PUB,None,Grants
"Ministry of Housing, Communities and Local Government",Homes England,REV GRNTS TO LOCAL AUTHORITIES,Investment,BRIGHTON & HOVE CITY COUNCIL,28/06/2022," 1,785.00 ",PUB,None,Grants
"Ministry of Housing, Communities and Local Government",Homes England,REV GRNTS TO LOCAL AUTHORITIES,Investment,BRIGHTON & HOVE CITY COUNCIL,28/06/2022," 1,575.00 ",PUB,None,Grants
"Ministry of Housing, Communities and Local Government",Homes England,REV GRNTS TO LOCAL AUTHORITIES,Investment,BRIGHTON & HOVE CITY COUNCIL,28/06/2022," 1,575.00 ",PUB,None,Grants
"Ministry of Housing, Communities and Local Government",Homes England,REV GRNTS TO LOCAL AUTHORITIES,Investment,BRIGHTON & HOVE CITY COUNCIL,28/06/2022," 1,455.00 ",PUB,None,Grants
"Ministry of Housing, Communities and Local Government",Homes England,REV GRNTS TO LOCAL AUTHORITIES,Investment,BRIGHTON & HOVE CITY COUNCIL,28/06/2022," 1,575.00 ",PUB,None,Grants
"Ministry of Housing, Communities and Local Government",Homes England,REV GRNTS TO LOCAL AUTHORITIES,Investment,BRIGHTON & HOVE CITY COUNCIL,28/06/2022," 1,575.00 ",PUB,None,Grants
"Ministry of Housing, Communities and Local Government",Homes England,REV GRNTS TO LOCAL AUTHORITIES,Investment,BRIGHTON & HOVE CITY COUNCIL,28/06/2022," 1,785.00 ",PUB,None,Grants
"Ministry of Housing, Communities and Local Government",Homes England,REV GRNTS TO LOCAL AUTHORITIES,Investment,BRIGHTON & HOVE CITY COUNCIL,28/06/2022," 1,785.00 ",PUB,None,Grants
"Ministry of Housing, Communities and Local Government",Homes England,REV GRNTS TO LOCAL AUTHORITIES,Investment,BRIGHTON & HOVE CITY COUNCIL,28/06/2022," 1,455.00 ",PUB,None,Grants
"Ministry of Housing, Communities and Local Government",Homes England,REV GRNTS TO LOCAL AUTHORITIES,Investment,BRIGHTON & HOVE CITY COUNCIL,28/06/2022," 1,575.00 ",PUB,None,Grants
"Ministry of Housing, Communities and Local Government",Homes England,REV GRNTS TO LOCAL AUTHORITIES,Investment,BRIGHTON & HOVE CITY COUNCIL,28/06/2022," 1,575.00 ",PUB,None,Grants
"Ministry of Housing, Communities and Local Government",Homes England,REV GRNTS TO LOCAL AUTHORITIES,Investment,BRIGHTON & HOVE CITY COUNCIL,28/06/2022," 1,454.00 ",PUB,None,Grants
"Ministry of Housing, Communities and Local Government",Homes England,REV GRNTS TO LOCAL AUTHORITIES,Investment,BRIGHTON & HOVE CITY COUNCIL,28/06/2022," 1,575.00 ",PUB,None,Grants
"Ministry of Housing, Communities and Local Government",Homes England,REV GRNTS TO LOCAL AUTHORITIES,Investment,BRIGHTON & HOVE CITY COUNCIL,28/06/2022," 1,575.00 ",PUB,None,Grants
"Ministry of Housing, Communities and Local Government",Homes England,REV GRNTS TO LOCAL AUTHORITIES,Investment,BRIGHTON & HOVE CITY COUNCIL,28/06/2022," 1,785.00 ",PUB,None,Grants
"Ministry of Housing, Communities and Local Government",Homes England,REV GRNTS TO LOCAL AUTHORITIES,Investment,BRIGHTON & HOVE CITY COUNCIL,29/06/2022," 1,702.00 ",PUB,None,Grants
"Ministry of Housing, Communities and Local Government",Homes England,REV GRNTS TO LOCAL AUTHORITIES,Investment,PORTSMOUTH CITY COUNCIL,29/06/2022," 107,410.00 ",PUB,None,Grants
"Ministry of Housing, Communities and Local Government",Homes England,REV GRNTS TO LOCAL AUTHORITIES,Investment,PORTSMOUTH CITY COUNCIL,29/06/2022," 69,907.00 ",PUB,None,Grants
"Ministry of Housing, Communities and Local Government",Homes England,REV GRNTS TO LOCAL AUTHORITIES,Investment,PORTSMOUTH CITY COUNCIL,29/06/2022," 16,104.00 ",PUB,None,Grants
"Ministry of Housing, Communities and Local Government",Homes England,SERVICE CHARGE,Development,ASDA STORES LTD,10/06/2022," 1,086.15 ",LAR,80131500,Lease and rental of property or building
"Ministry of Housing, Communities and Local Government",Homes England,SERVICE CHARGE,Development,ASDA STORES LTD,10/06/2022," 2,389.58 ",LAR,80131500,Lease and rental of property or building
"Ministry of Housing, Communities and Local Government",Homes England,SERVICE CHARGES,Development,COVENTRY CITY COUNCIL,01/06/2022, 307.32 ,PUB,80131500,Lease and rental of property or building
"Ministry of Housing, Communities and Local Government",Homes England,SERVICE CHARGES,Development,COVENTRY CITY COUNCIL,01/06/2022, 622.37 ,PUB,80131500,Lease and rental of property or building
"Ministry of Housing, Communities and Local Government",Homes England,REV GRNTS TO LOCAL AUTHORITIES,Investment,CAMBRIDGE CITY COUNCIL,07/06/2022," 55,607.00 ",PUB,None,Grants
"Ministry of Housing, Communities and Local Government",Homes England,REV GRNTS TO LOCAL AUTHORITIES,Investment,CAMBRIDGE CITY COUNCIL,07/06/2022," 6,179.00 ",PUB,None,Grants
"Ministry of Housing, Communities and Local Government",Homes England,REV GRNTS TO LOCAL AUTHORITIES,Investment,CAMBRIDGE CITY COUNCIL,09/06/2022," 61,785.00 ",PUB,None,Grants
"Ministry of Housing, Communities and Local Government",Homes England,REV GRNTS TO LOCAL AUTHORITIES,Investment,CAMBRIDGE CITY COUNCIL,28/06/2022," 1,072.00 ",PUB,None,Grants
"Ministry of Housing, Communities and Local Government",Homes England,REV GRNTS TO LOCAL AUTHORITIES,Investment,CAMBRIDGE CITY COUNCIL,28/06/2022," 1,072.00 ",PUB,None,Grants
"Ministry of Housing, Communities and Local Government",Homes England,REV GRNTS TO LOCAL AUTHORITIES,Investment,CAMBRIDGE CITY COUNCIL,28/06/2022," 1,072.00 ",PUB,None,Grants
"Ministry of Housing, Communities and Local Government",Homes England,REV GRNTS TO LOCAL AUTHORITIES,Investment,CAMBRIDGE CITY COUNCIL,28/06/2022," 1,072.00 ",PUB,None,Grants
"Ministry of Housing, Communities and Local Government",Homes England,REV GRNTS TO LOCAL AUTHORITIES,Investment,CAMBRIDGE CITY COUNCIL,28/06/2022," 1,072.00 ",PUB,None,Grants
"Ministry of Housing, Communities and Local Government",Homes England,REV GRNTS TO LOCAL AUTHORITIES,Investment,EXETER CITY COUNCIL,28/06/2022," 9,500.00 ",PUB,None,Grants
"Ministry of Housing, Communities and Local Government",Homes England,REV GRNTS TO LOCAL AUTHORITIES,Investment,EXETER CITY COUNCIL,28/06/2022," 9,500.00 ",PUB,None,Grants
"Ministry of Housing, Communities and Local Government",Homes England,CAP GRNTS TO LOCAL AUTHORITIES,Investment,TEIGNBRIDGE DISTRICT COUNCIL,08/06/2022," 87,500.00 ",PUB,None,Grants
"Ministry of Housing, Communities and Local Government",Homes England,ESTATE GENERAL MAINTENANCE,Development,SIMON TRANTER LANDSCAPE CONTRACTORS,24/06/2022," 4,356.00 ",SMA,72101500,Building maintenance and repair services
"Ministry of Housing, Communities and Local Government",Homes England,ESTATE GENERAL MAINTENANCE,Development,SIMON TRANTER LANDSCAPE CONTRACTORS,24/06/2022," 5,244.00 ",SMA,72101500,Building maintenance and repair services
"Ministry of Housing, Communities and Local Government",Homes England,ESTATE GENERAL MAINTENANCE,Development,SIMON TRANTER LANDSCAPE CONTRACTORS,24/06/2022," 5,558.40 ",SMA,72101500,Building maintenance and repair services
"Ministry of Housing, Communities and Local Government",Homes England,REV GRNTS TO LOCAL AUTHORITIES,Investment,EASTBOURNE BOROUGH COUNCIL,27/06/2022," 5,101.00 ",PUB,None,Grants
"Ministry of Housing, Communities and Local Government",Homes England,REV GRNTS TO LOCAL AUTHORITIES,Investment,EASTBOURNE BOROUGH COUNCIL,28/06/2022," 1,343.00 ",PUB,None,Grants
"Ministry of Housing, Communities and Local Government",Homes England,REV GRNTS TO LOCAL AUTHORITIES,Investment,EASTBOURNE BOROUGH COUNCIL,28/06/2022," 1,575.00 ",PUB,None,Grants
"Ministry of Housing, Communities and Local Government",Homes England,REV GRNTS TO LOCAL AUTHORITIES,Investment,EASTBOURNE BOROUGH COUNCIL,28/06/2022," 1,575.00 ",PUB,None,Grants
"Ministry of Housing, Communities and Local Government",Homes England,REV GRNTS TO LOCAL AUTHORITIES,Investment,EASTBOURNE BOROUGH COUNCIL,28/06/2022," 1,343.00 ",PUB,None,Grants
"Ministry of Housing, Communities and Local Government",Homes England,REV GRNTS TO LOCAL AUTHORITIES,Investment,EASTBOURNE BOROUGH COUNCIL,28/06/2022," 1,575.00 ",PUB,None,Grants
"Ministry of Housing, Communities and Local Government",Homes England,REV GRNTS TO LOCAL AUTHORITIES,Investment,EASTBOURNE BOROUGH COUNCIL,28/06/2022," 1,343.00 ",PUB,None,Grants
"Ministry of Housing, Communities and Local Government",Homes England,REV GRNTS TO LOCAL AUTHORITIES,Investment,EASTBOURNE BOROUGH COUNCIL,28/06/2022," 1,575.00 ",PUB,None,Grants
"Ministry of Housing, Communities and Local Government",Homes England,REV GRNTS TO LOCAL AUTHORITIES,Investment,EASTBOURNE BOROUGH COUNCIL,28/06/2022," 1,575.00 ",PUB,None,Grants
"Ministry of Housing, Communities and Local Government",Homes England,REV GRNTS TO LOCAL AUTHORITIES,Investment,EASTBOURNE BOROUGH COUNCIL,28/06/2022," 1,575.00 ",PUB,None,Grants
"Ministry of Housing, Communities and Local Government",Homes England,REV GRNTS TO LOCAL AUTHORITIES,Investment,WEALDEN DISTRICT COUNCIL,06/06/2022," 4,888.00 ",PUB,None,Grants
"Ministry of Housing, Communities and Local Government",Homes England,REV GRNTS TO LOCAL AUTHORITIES,Investment,WEALDEN DISTRICT COUNCIL,06/06/2022," 43,993.00 ",PUB,None,Grants
"Ministry of Housing, Communities and Local Government",Homes England,REV GRNTS TO LOCAL AUTHORITIES,Investment,WEALDEN DISTRICT COUNCIL,07/06/2022," 48,882.00 ",PUB,None,Grants
"Ministry of Housing, Communities and Local Government",Homes England,REV GRNTS TO LOCAL AUTHORITIES,Investment,WEALDEN DISTRICT COUNCIL,20/06/2022," 4,888.00 ",PUB,None,Grants
"Ministry of Housing, Communities and Local Government",Homes England,REV GRNTS TO LOCAL AUTHORITIES,Investment,COLCHESTER BOROUGH COUNCIL,06/06/2022," 3,812.00 ",PUB,None,Grants
"Ministry of Housing, Communities and Local Government",Homes England,REV GRNTS TO LOCAL AUTHORITIES,Investment,COLCHESTER BOROUGH COUNCIL,06/06/2022," 3,812.00 ",PUB,None,Grants
"Ministry of Housing, Communities and Local Government",Homes England,REV GRNTS TO LOCAL AUTHORITIES,Investment,COLCHESTER BOROUGH COUNCIL,06/06/2022," 3,812.00 ",PUB,None,Grants
"Ministry of Housing, Communities and Local Government",Homes England,REV GRNTS TO LOCAL AUTHORITIES,Investment,COLCHESTER BOROUGH COUNCIL,06/06/2022," 3,812.00 ",PUB,None,Grants
"Ministry of Housing, Communities and Local Government",Homes England,ESTATE GENERAL MAINTENANCE,Development,IDVERDE LIMITED,13/06/2022," 1,160.19 ",LAR,72101500,Building maintenance and repair services
"Ministry of Housing, Communities and Local Government",Homes England,LANDSCAPE MAINT-BUILT ESTATE,Development,IDVERDE LIMITED,20/06/2022, 211.38 ,LAR,72102900,Facility maintenance and repair services
"Ministry of Housing, Communities and Local Government",Homes England,LANDSCAPE MAINT-BUILT ESTATE,Development,IDVERDE LIMITED,20/06/2022, 340.76 ,LAR,72102900,Facility maintenance and repair services
"Ministry of Housing, Communities and Local Government",Homes England,ESTATE GENERAL MAINTENANCE,Development,IDVERDE LIMITED,20/06/2022, 580.15 ,LAR,72102900,Facility maintenance and repair services
"Ministry of Housing, Communities and Local Government",Homes England,LANDSCAPE MAINT-BUILT ESTATE,Development,IDVERDE LIMITED,20/06/2022, 211.38 ,LAR,72102900,Facility maintenance and repair services
"Ministry of Housing, Communities and Local Government",Homes England,LANDSCAPE MAINT-BUILT ESTATE,Development,IDVERDE LIMITED,20/06/2022, 340.76 ,LAR,72102900,Facility maintenance and repair services
"Ministry of Housing, Communities and Local Government",Homes England,LANDSCAPE MAINT-BUILT ESTATE,Development,IDVERDE LIMITED,20/06/2022, 580.15 ,LAR,72102900,Facility maintenance and repair services
"Ministry of Housing, Communities and Local Government",Homes England,DRAINS & SEWERS,Development,LOWTHER FORESTRY GROUP,20/06/2022, 834.00 ,SMA,72101500,Building maintenance and repair services
"Ministry of Housing, Communities and Local Government",Homes England,SECURITY,"Markets, Partners & Places",LOWTHER FORESTRY GROUP,27/06/2022, 596.87 ,SMA,92121500,Guard services
"Ministry of Housing, Communities and Local Government",Homes England,SECURITY,"Markets, Partners & Places",LOWTHER FORESTRY GROUP,28/06/2022, 596.87 ,SMA,92121500,Guard services
"Ministry of Housing, Communities and Local Government",Homes England,REV GRNTS TO LOCAL AUTHORITIES,Investment,STEVENGE BOROUGH COUNCIL,23/06/2022," 2,550.00 ",PUB,None,Grants
"Ministry of Housing, Communities and Local Government",Homes England,REV GRNTS TO LOCAL AUTHORITIES,Investment,STEVENGE BOROUGH COUNCIL,23/06/2022," 2,550.00 ",PUB,None,Grants
"Ministry of Housing, Communities and Local Government",Homes England,REV GRNTS TO LOCAL AUTHORITIES,Investment,STEVENGE BOROUGH COUNCIL,28/06/2022," 5,689.00 ",PUB,None,Grants
"Ministry of Housing, Communities and Local Government",Homes England,REV GRNTS TO LOCAL AUTHORITIES,Investment,STEVENGE BOROUGH COUNCIL,28/06/2022," 9,100.00 ",PUB,None,Grants
"Ministry of Housing, Communities and Local Government",Homes England,REV GRNTS TO LOCAL AUTHORITIES,Investment,STEVENGE BOROUGH COUNCIL,28/06/2022," 12,514.00 ",PUB,None,Grants
"Ministry of Housing, Communities and Local Government",Homes England,REV GRNTS TO LOCAL AUTHORITIES,Investment,ASHFORD BOROUGH COUNCIL,10/06/2022," 34,391.00 ",PUB,None,Grants
"Ministry of Housing, Communities and Local Government",Homes England,REV GRNTS TO LOCAL AUTHORITIES,Investment,ASHFORD BOROUGH COUNCIL,14/06/2022," 38,212.00 ",PUB,None,Grants
"Ministry of Housing, Communities and Local Government",Homes England,REV GRNTS TO LOCAL AUTHORITIES,Investment,ASHFORD BOROUGH COUNCIL,28/06/2022," 3,821.00 ",PUB,None,Grants
"Ministry of Housing, Communities and Local Government",Homes England,REV GRNTS TO LOCAL AUTHORITIES,Investment,ASHFORD BOROUGH COUNCIL,30/06/2022," 34,391.00 ",PUB,None,Grants
"Ministry of Housing, Communities and Local Government",Homes England,REV GRNTS TO LOCAL AUTHORITIES,Investment,DOVER DISTRICT COUNCIL,30/06/2022," 1,377.00 ",PUB,None,Grants
"Ministry of Housing, Communities and Local Government",Homes England,REV GRNTS TO LOCAL AUTHORITIES,Investment,DOVER DISTRICT COUNCIL,30/06/2022," 4,130.00 ",PUB,None,Grants
"Ministry of Housing, Communities and Local Government",Homes England,REV GRNTS TO LOCAL AUTHORITIES,Investment,DOVER DISTRICT COUNCIL,30/06/2022," 1,376.00 ",PUB,None,Grants
"Ministry of Housing, Communities and Local Government",Homes England,REV GRNTS TO LOCAL AUTHORITIES,Investment,DOVER DISTRICT COUNCIL,30/06/2022," 1,377.00 ",PUB,None,Grants
"Ministry of Housing, Communities and Local Government",Homes England,REV GRNTS TO LOCAL AUTHORITIES,Investment,MAIDSTONE BOROUGH COUNCIL,28/06/2022," 21,666.00 ",PUB,None,Grants
"Ministry of Housing, Communities and Local Government",Homes England,REV GRNTS TO LOCAL AUTHORITIES,Investment,FOLKESTONE & HYTHE DISTRICT COUNCIL,28/06/2022," 2,478.00 ",PUB,None,Grants
"Ministry of Housing, Communities and Local Government",Homes England,REV GRNTS TO LOCAL AUTHORITIES,Investment,FOLKESTONE & HYTHE DISTRICT COUNCIL,28/06/2022," 2,478.00 ",PUB,None,Grants
"Ministry of Housing, Communities and Local Government",Homes England,REV GRNTS TO LOCAL AUTHORITIES,Investment,FOLKESTONE & HYTHE DISTRICT COUNCIL,28/06/2022," 2,478.00 ",PUB,None,Grants
"Ministry of Housing, Communities and Local Government",Homes England,CAP GRNTS TO LOCAL AUTHORITIES,Investment,WEST LANCASHIRE BOROUGH COUNCIL,24/06/2022," 708,750.00 ",PUB,None,Grants
"Ministry of Housing, Communities and Local Government",Homes England,HEALTH & SAFETY,Development,CARDINUS LTD,16/06/2022, 600.00 ,MED,86101800,In service training and manpower development
"Ministry of Housing, Communities and Local Government",Homes England,REV GRNTS TO LOCAL AUTHORITIES,Investment,NORTH KESTEVEN DISTRICT COUNCIL,28/06/2022," 4,067.00 ",PUB,None,Grants
"Ministry of Housing, Communities and Local Government",Homes England,REV GRNTS TO LOCAL AUTHORITIES,Investment,WEST NORTHAMPTONSHIRE COUNCIL,23/06/2022, 700.00 ,PUB,None,Grants
"Ministry of Housing, Communities and Local Government",Homes England,REV GRNTS TO LOCAL AUTHORITIES,Investment,WEST NORTHAMPTONSHIRE COUNCIL,23/06/2022, 700.00 ,PUB,None,Grants
"Ministry of Housing, Communities and Local Government",Homes England,REV GRNTS TO LOCAL AUTHORITIES,Investment,WEST NORTHAMPTONSHIRE COUNCIL,23/06/2022, 700.00 ,PUB,None,Grants
"Ministry of Housing, Communities and Local Government",Homes England,REV GRNTS TO LOCAL AUTHORITIES,Investment,WEST NORTHAMPTONSHIRE COUNCIL,23/06/2022, 700.00 ,PUB,None,Grants
"Ministry of Housing, Communities and Local Government",Homes England,REV GRNTS TO LOCAL AUTHORITIES,Investment,WEST NORTHAMPTONSHIRE COUNCIL,23/06/2022, 700.00 ,PUB,None,Grants
"Ministry of Housing, Communities and Local Government",Homes England,REV GRNTS TO LOCAL AUTHORITIES,Investment,WEST NORTHAMPTONSHIRE COUNCIL,23/06/2022, 700.00 ,PUB,None,Grants
"Ministry of Housing, Communities and Local Government",Homes England,REV GRNTS TO LOCAL AUTHORITIES,Investment,WEST NORTHAMPTONSHIRE COUNCIL,23/06/2022, 700.00 ,PUB,None,Grants
"Ministry of Housing, Communities and Local Government",Homes England,REV GRNTS TO LOCAL AUTHORITIES,Investment,WEST NORTHAMPTONSHIRE COUNCIL,23/06/2022, 700.00 ,PUB,None,Grants
"Ministry of Housing, Communities and Local Government",Homes England,REV GRNTS TO LOCAL AUTHORITIES,Investment,WEST NORTHAMPTONSHIRE COUNCIL,23/06/2022, 700.00 ,PUB,None,Grants
"Ministry of Housing, Communities and Local Government",Homes England,REV GRNTS TO LOCAL AUTHORITIES,Investment,WEST NORTHAMPTONSHIRE COUNCIL,23/06/2022, 700.00 ,PUB,None,Grants
"Ministry of Housing, Communities and Local Government",Homes England,REV GRNTS TO LOCAL AUTHORITIES,Investment,WEST NORTHAMPTONSHIRE COUNCIL,23/06/2022, 700.00 ,PUB,None,Grants
"Ministry of Housing, Communities and Local Government",Homes England,REV GRNTS TO LOCAL AUTHORITIES,Investment,WEST NORTHAMPTONSHIRE COUNCIL,23/06/2022, 700.00 ,PUB,None,Grants
"Ministry of Housing, Communities and Local Government",Homes England,REV GRNTS TO LOCAL AUTHORITIES,Investment,THE COUNCIL OF THE BOROUGH OF HARROGATE,28/06/2022," 2,638.00 ",PUB,None,Grants
"Ministry of Housing, Communities and Local Government",Homes England,REV GRNTS TO LOCAL AUTHORITIES,Investment,THE COUNCIL OF THE BOROUGH OF HARROGATE,28/06/2022," 2,638.00 ",PUB,None,Grants
"Ministry of Housing, Communities and Local Government",Homes England,REV GRNTS TO LOCAL AUTHORITIES,Investment,THE COUNCIL OF THE BOROUGH OF HARROGATE,28/06/2022," 2,638.00 ",PUB,None,Grants
"Ministry of Housing, Communities and Local Government",Homes England,REV GRNTS TO LOCAL AUTHORITIES,Investment,RYEDALE DISTRICT COUNCIL,28/06/2022," 4,257.00 ",PUB,None,Grants
"Ministry of Housing, Communities and Local Government",Homes England,REV GRNTS TO LOCAL AUTHORITIES,Investment,BASSETLAW DISTRICT COUNCIL,28/06/2022," 8,500.00 ",PUB,None,Grants
"Ministry of Housing, Communities and Local Government",Homes England,REV GRNTS TO LOCAL AUTHORITIES,Investment,NEWARK AND SHERWOOD DISTRICT COUNCIL,28/06/2022," 7,380.00 ",PUB,None,Grants
"Ministry of Housing, Communities and Local Government",Homes England,REV GRNTS TO LOCAL AUTHORITIES,Investment,OXFORD CITY COUNCIL,07/06/2022," 4,250.00 ",PUB,None,Grants
"Ministry of Housing, Communities and Local Government",Homes England,REV GRNTS TO LOCAL AUTHORITIES,Investment,OXFORD CITY COUNCIL,08/06/2022," 4,250.00 ",PUB,None,Grants
"Ministry of Housing, Communities and Local Government",Homes England,REV GRNTS TO LOCAL AUTHORITIES,Investment,OXFORD CITY COUNCIL,08/06/2022," 4,250.00 ",PUB,None,Grants
"Ministry of Housing, Communities and Local Government",Homes England,REV GRNTS TO LOCAL AUTHORITIES,Investment,OXFORD CITY COUNCIL,14/06/2022," 4,250.00 ",PUB,None,Grants
"Ministry of Housing, Communities and Local Government",Homes England,REV GRNTS TO LOCAL AUTHORITIES,Investment,OXFORD CITY COUNCIL,15/06/2022," 4,250.00 ",PUB,None,Grants
"Ministry of Housing, Communities and Local Government",Homes England,REV GRNTS TO LOCAL AUTHORITIES,Investment,OXFORD CITY COUNCIL,15/06/2022," 4,250.00 ",PUB,None,Grants
"Ministry of Housing, Communities and Local Government",Homes England,REV GRNTS TO LOCAL AUTHORITIES,Investment,OXFORD CITY COUNCIL,20/06/2022," 4,250.00 ",PUB,None,Grants
"Ministry of Housing, Communities and Local Government",Homes England,REV GRNTS TO LOCAL AUTHORITIES,Investment,OXFORD CITY COUNCIL,28/06/2022," 2,178.00 ",PUB,None,Grants
"Ministry of Housing, Communities and Local Government",Homes England,REV GRNTS TO LOCAL AUTHORITIES,Investment,OXFORD CITY COUNCIL,28/06/2022," 2,178.00 ",PUB,None,Grants
"Ministry of Housing, Communities and Local Government",Homes England,REV GRNTS TO LOCAL AUTHORITIES,Investment,OXFORD CITY COUNCIL,28/06/2022," 2,178.00 ",PUB,None,Grants
"Ministry of Housing, Communities and Local Government",Homes England,REV GRNTS TO LOCAL AUTHORITIES,Investment,OXFORD CITY COUNCIL,28/06/2022," 2,178.00 ",PUB,None,Grants
"Ministry of Housing, Communities and Local Government",Homes England,REV GRNTS TO LOCAL AUTHORITIES,Investment,OXFORD CITY COUNCIL,28/06/2022," 2,178.00 ",PUB,None,Grants
"Ministry of Housing, Communities and Local Government",Homes England,REV GRNTS TO LOCAL AUTHORITIES,Investment,OXFORD CITY COUNCIL,29/06/2022," 4,250.00 ",PUB,None,Grants
"Ministry of Housing, Communities and Local Government",Homes England,CAP GRNTS TO LOCAL AUTHORITIES,Investment,SUNDERLAND CITY COUNCIL,29/06/2022," 721,583.69 ",PUB,None,Grants
"Ministry of Housing, Communities and Local Government",Homes England,CAP GRNTS TO LOCAL AUTHORITIES,Investment,SUNDERLAND CITY COUNCIL,29/06/2022," 35,906.15 ",PUB,None,Grants
"Ministry of Housing, Communities and Local Government",Homes England,CAP GRNTS TO LOCAL AUTHORITIES,Investment,SUNDERLAND CITY COUNCIL,29/06/2022," 669,122.97 ",PUB,None,Grants
"Ministry of Housing, Communities and Local Government",Homes England,CAP GRNTS TO LOCAL AUTHORITIES,Investment,CORNWALL COUNCIL,29/06/2022," 569,593.43 ",PUB,None,Grants
"Ministry of Housing, Communities and Local Government",Homes England,CAP GRNTS TO LOCAL AUTHORITIES,Investment,CORNWALL COUNCIL,29/06/2022," 577,545.40 ",PUB,None,Grants
"Ministry of Housing, Communities and Local Government",Homes England,CAP GRNTS TO LOCAL AUTHORITIES,Investment,CUMBRIA COUNTY COUNCIL,30/06/2022," 100,378.22 ",PUB,None,Grants
"Ministry of Housing, Communities and Local Government",Homes England,CAP GRNTS TO LOCAL AUTHORITIES,Investment,CUMBRIA COUNTY COUNCIL,30/06/2022," 213,391.04 ",PUB,None,Grants
"Ministry of Housing, Communities and Local Government",Homes England,CAP GRNTS TO LOCAL AUTHORITIES,Investment,CUMBRIA COUNTY COUNCIL,30/06/2022," 284,796.07 ",PUB,None,Grants
"Ministry of Housing, Communities and Local Government",Homes England,CAP GRNTS TO LOCAL AUTHORITIES,Investment,CUMBRIA COUNTY COUNCIL,30/06/2022," 3,839,336.47 ",PUB,None,Grants
"Ministry of Housing, Communities and Local Government",Homes England,PLANNING APPLICATIONS,Development,SOUTH OXFORDSHIRE DISTRICT COUNCIL,08/06/2022, 462.00 ,PUB,80131800,Real estate management services
"Ministry of Housing, Communities and Local Government",Homes England,CAP GRNTS TO LOCAL AUTHORITIES,Investment,DEVON COUNTY COUNCIL,22/06/2022," 109,976.71 ",PUB,None,Grants
"Ministry of Housing, Communities and Local Government",Homes England,CAP GRNTS TO LOCAL AUTHORITIES,Investment,ESSEX COUNTY COUNCIL,30/06/2022," 666,273.71 ",PUB,None,Grants
"Ministry of Housing, Communities and Local Government",Homes England,CAP GRNTS TO LOCAL AUTHORITIES,Investment,LANCASHIRE COUNTY COUNCIL,29/06/2022," 143,891.93 ",PUB,None,Grants
"Ministry of Housing, Communities and Local Government",Homes England,CAP GRNTS TO LOCAL AUTHORITIES,Investment,STOCKTON ON TEES BOROUGH COUNCIL,29/06/2022," 444,053.08 ",PUB,None,Grants
"Ministry of Housing, Communities and Local Government",Homes England,CAP GRNTS TO LOCAL AUTHORITIES,Investment,CAMBRIDGE CITY COUNCIL,29/06/2022," 727,180.14 ",PUB,None,Grants
"Ministry of Housing, Communities and Local Government",Homes England,REV GRNTS TO LOCAL AUTHORITIES,Investment,GUILDFORD BOROUGH COUNCIL,28/06/2022," 7,719.00 ",PUB,None,Grants
"Ministry of Housing, Communities and Local Government",Homes England,REV GRNTS TO LOCAL AUTHORITIES,Investment,GUILDFORD BOROUGH COUNCIL,28/06/2022," 9,647.00 ",PUB,None,Grants
"Ministry of Housing, Communities and Local Government",Homes England,REV GRNTS TO LOCAL AUTHORITIES,Investment,RUNNYMEDE BOROUGH COUNCIL,30/06/2022," 3,750.00 ",PUB,None,Grants
"Ministry of Housing, Communities and Local Government",Homes England,REV GRNTS TO LOCAL AUTHORITIES,Investment,RUNNYMEDE BOROUGH COUNCIL,30/06/2022," 3,750.00 ",PUB,None,Grants
"Ministry of Housing, Communities and Local Government",Homes England,REV GRNTS TO LOCAL AUTHORITIES,Investment,RUNNYMEDE BOROUGH COUNCIL,30/06/2022," 3,750.00 ",PUB,None,Grants
"Ministry of Housing, Communities and Local Government",Homes England,REV GRNTS TO LOCAL AUTHORITIES,Investment,WAVERLEY BOROUGH COUNCIL,28/06/2022," 1,513.00 ",PUB,None,Grants
"Ministry of Housing, Communities and Local Government",Homes England,REV GRNTS TO LOCAL AUTHORITIES,Investment,WOKING BOROUGH COUNCIL,09/06/2022," 3,785.00 ",PUB,None,Grants
"Ministry of Housing, Communities and Local Government",Homes England,REV GRNTS TO LOCAL AUTHORITIES,Investment,WOKING BOROUGH COUNCIL,10/06/2022," 34,065.00 ",PUB,None,Grants
"Ministry of Housing, Communities and Local Government",Homes England,REV GRNTS TO LOCAL AUTHORITIES,Investment,WOKING BOROUGH COUNCIL,10/06/2022," 34,065.00 ",PUB,None,Grants
"Ministry of Housing, Communities and Local Government",Homes England,REV GRNTS TO LOCAL AUTHORITIES,Investment,WOKING BOROUGH COUNCIL,10/06/2022," 34,065.00 ",PUB,None,Grants
"Ministry of Housing, Communities and Local Government",Homes England,REV GRNTS TO LOCAL AUTHORITIES,Investment,WOKING BOROUGH COUNCIL,15/06/2022," 37,850.00 ",PUB,None,Grants
"Ministry of Housing, Communities and Local Government",Homes England,REV GRNTS TO LOCAL AUTHORITIES,Investment,WOKING BOROUGH COUNCIL,15/06/2022," 37,850.00 ",PUB,None,Grants
"Ministry of Housing, Communities and Local Government",Homes England,REV GRNTS TO LOCAL AUTHORITIES,Investment,WOKING BOROUGH COUNCIL,15/06/2022," 37,850.00 ",PUB,None,Grants
"Ministry of Housing, Communities and Local Government",Homes England,REV GRNTS TO LOCAL AUTHORITIES,Investment,WOKING BOROUGH COUNCIL,23/06/2022," 3,785.00 ",PUB,None,Grants
"Ministry of Housing, Communities and Local Government",Homes England,REV GRNTS TO LOCAL AUTHORITIES,Investment,WOKING BOROUGH COUNCIL,23/06/2022," 3,785.00 ",PUB,None,Grants
"Ministry of Housing, Communities and Local Government",Homes England,REV GRNTS TO LOCAL AUTHORITIES,Investment,WOKING BOROUGH COUNCIL,29/06/2022," 3,785.00 ",PUB,None,Grants
"Ministry of Housing, Communities and Local Government",Homes England,CAPITAL GRANTS TO RPs,Investment,FIRST CHOICE HOMES OLDHAM LIMITED,01/06/2022," 189,000.00 ",LAR,None,Grants
"Ministry of Housing, Communities and Local Government",Homes England,CAPITAL GRANTS TO RPs,Investment,FIRST CHOICE HOMES OLDHAM LIMITED,01/06/2022," 264,750.00 ",LAR,None,Grants
"Ministry of Housing, Communities and Local Government",Homes England,CAPITAL GRANTS TO RPs,Investment,FIRST CHOICE HOMES OLDHAM LIMITED,01/06/2022," 9,000.00 ",LAR,None,Grants
"Ministry of Housing, Communities and Local Government",Homes England,CAPITAL GRANTS TO RPs,Investment,FIRST CHOICE HOMES OLDHAM LIMITED,01/06/2022," 9,000.00 ",LAR,None,Grants
"Ministry of Housing, Communities and Local Government",Homes England,CAPITAL GRANTS TO RPs,Investment,FIRST CHOICE HOMES OLDHAM LIMITED,01/06/2022," 9,000.00 ",LAR,None,Grants
"Ministry of Housing, Communities and Local Government",Homes England,CAPITAL GRANTS TO RPs,Investment,FIRST CHOICE HOMES OLDHAM LIMITED,01/06/2022," 456,750.00 ",LAR,None,Grants
"Ministry of Housing, Communities and Local Government",Homes England,CAPITAL GRANTS TO RPs,Investment,FIRST CHOICE HOMES OLDHAM LIMITED,01/06/2022," 9,000.00 ",LAR,None,Grants
"Ministry of Housing, Communities and Local Government",Homes England,CAPITAL GRANTS TO RPs,Investment,FIRST CHOICE HOMES OLDHAM LIMITED,01/06/2022," 9,000.00 ",LAR,None,Grants
"Ministry of Housing, Communities and Local Government",Homes England,CAPITAL GRANTS TO RPs,Investment,FIRST CHOICE HOMES OLDHAM LIMITED,01/06/2022," 298,500.00 ",LAR,None,Grants
"Ministry of Housing, Communities and Local Government",Homes England,CAPITAL GRANTS TO RPs,Investment,FIRST CHOICE HOMES OLDHAM LIMITED,01/06/2022," 286,500.00 ",LAR,None,Grants
"Ministry of Housing, Communities and Local Government",Homes England,CAPITAL GRANTS TO RPs,Investment,FIRST CHOICE HOMES OLDHAM LIMITED,20/06/2022," 204,000.00 ",LAR,None,Grants
"Ministry of Housing, Communities and Local Government",Homes England,CAPITAL GRANTS TO RPs,Investment,LEAZES HOMES LIMITED,06/06/2022," 9,000.00 ",LAR,None,Grants
"Ministry of Housing, Communities and Local Government",Homes England,CAPITAL GRANTS TO RPs,Investment,SAGE HOUSING LIMITED,01/06/2022," 8,314,152.00 ",MED,None,Grants
"Ministry of Housing, Communities and Local Government",Homes England,CAPITAL GRANTS TO RPs,Investment,SAGE HOUSING LIMITED,16/06/2022," 70,000.00 ",MED,None,Grants
"Ministry of Housing, Communities and Local Government",Homes England,CAPITAL GRANTS TO RPs,Investment,REGENDA LIMITED,30/06/2022," 1,293,600.00 ",LAR,None,Grants
"Ministry of Housing, Communities and Local Government",Homes England,CAPITAL GRANTS TO RPs,Investment,SANCTUARY GROUP,15/06/2022," 10,000.00 ",LAR,None,Grants
"Ministry of Housing, Communities and Local Government",Homes England,CAPITAL GRANTS TO RPs,Investment,THE GUINNESS PARTNERSHIP LIMITED,27/06/2022," 43,250.00 ",LAR,None,Grants
"Ministry of Housing, Communities and Local Government",Homes England,CAPITAL GRANTS TO RPs,Investment,BRIDGE-IT HOUSING UK TEAM LTD,28/06/2022," 36,012.00 ",SMA,None,Grants
"Ministry of Housing, Communities and Local Government",Homes England,CAPITAL GRANTS TO RPs,Investment,J & M RESIDENTIAL LETTINGS LIMITED,07/06/2022," 9,380.00 ",SMA,None,Grants
"Ministry of Housing, Communities and Local Government",Homes England,CAPITAL GRANTS TO RPs,Investment,J & M RESIDENTIAL LETTINGS LIMITED,24/06/2022," 15,008.00 ",SMA,None,Grants
"Ministry of Housing, Communities and Local Government",Homes England,CAPITAL GRANTS TO RPs,Investment,J & M RESIDENTIAL LETTINGS LIMITED,27/06/2022," 13,132.00 ",SMA,None,Grants
"Ministry of Housing, Communities and Local Government",Homes England,REV GRNTS TO LOCAL AUTHORITIES,Investment,ST RICHARD OF CHICHESTER CHRSTIAN CARE,28/06/2022," 2,508.00 ",MED,None,Grants
"Ministry of Housing, Communities and Local Government",Homes England,REV GRNTS TO LOCAL AUTHORITIES,Investment,ST RICHARD OF CHICHESTER CHRSTIAN CARE,28/06/2022," 5,017.00 ",MED,None,Grants
"Ministry of Housing, Communities and Local Government",Homes England,CAPITAL GRANTS TO RPs,Investment,EMH HOUSING & REGENERATION LTD,01/06/2022," 3,500,000.00 ",MED,None,Grants
"Ministry of Housing, Communities and Local Government",Homes England,REV GRNTS TO LOCAL AUTHORITIES,Investment,EMH HOUSING & REGENERATION LTD,09/06/2022," 28,157.00 ",MED,None,Grants
"Ministry of Housing, Communities and Local Government",Homes England,REV GRNTS TO LOCAL AUTHORITIES,Investment,EMH HOUSING & REGENERATION LTD,14/06/2022," 31,285.00 ",MED,None,Grants
"Ministry of Housing, Communities and Local Government",Homes England,REV GRNTS TO LOCAL AUTHORITIES,Investment,EMH HOUSING & REGENERATION LTD,23/06/2022," 3,128.00 ",MED,None,Grants
"Ministry of Housing, Communities and Local Government",Homes England,REV GRNTS TO LOCAL AUTHORITIES,Investment,GOODWIN DEVELOPMENT TRUST,29/06/2022," 13,343.00 ",MED,None,Grants
"Ministry of Housing, Communities and Local Government",Homes England,REV GRNTS TO LOCAL AUTHORITIES,Investment,GOODWIN DEVELOPMENT TRUST,30/06/2022," 8,734.00 ",MED,None,Grants
"Ministry of Housing, Communities and Local Government",Homes England,REV GRNTS TO LOCAL AUTHORITIES,Investment,HAVEN FIRST,28/06/2022," 1,670.00 ",MED,None,Grants
"Ministry of Housing, Communities and Local Government",Homes England,REV GRNTS TO LOCAL AUTHORITIES,Investment,HAVEN FIRST,28/06/2022," 1,670.00 ",MED,None,Grants
"Ministry of Housing, Communities and Local Government",Homes England,CAPITAL GRANTS TO RPs,Investment,DEVON AND CORNWALL HOUSING LIMITED,07/06/2022," 56,000.00 ",LAR,None,Grants
"Ministry of Housing, Communities and Local Government",Homes England,CAPITAL GRANTS TO RPs,Investment,DEVON AND CORNWALL HOUSING LIMITED,07/06/2022," 422,500.00 ",LAR,None,Grants
"Ministry of Housing, Communities and Local Government",Homes England,CAPITAL GRANTS TO RPs,Investment,DEVON AND CORNWALL HOUSING LIMITED,07/06/2022," 5,000.00 ",LAR,None,Grants
"Ministry of Housing, Communities and Local Government",Homes England,CAPITAL GRANTS TO RPs,Investment,DEVON AND CORNWALL HOUSING LIMITED,07/06/2022," 25,000.00 ",LAR,None,Grants
"Ministry of Housing, Communities and Local Government",Homes England,CAPITAL GRANTS TO RPs,Investment,DEVON AND CORNWALL HOUSING LIMITED,07/06/2022," 70,000.00 ",LAR,None,Grants
"Ministry of Housing, Communities and Local Government",Homes England,CAPITAL GRANTS TO RPs,Investment,SOVEREIGN HOUSING ASSOCIATION LTD,07/06/2022," 86,000.00 ",LAR,None,Grants
"Ministry of Housing, Communities and Local Government",Homes England,CAPITAL GRANTS TO RPs,Investment,SOVEREIGN HOUSING ASSOCIATION LTD,09/06/2022," 86,000.00 ",LAR,None,Grants
"Ministry of Housing, Communities and Local Government",Homes England,CAPITAL GRANTS TO RPs,Investment,SOVEREIGN HOUSING ASSOCIATION LTD,27/06/2022," 87,000.00 ",LAR,None,Grants
"Ministry of Housing, Communities and Local Government",Homes England,CAPITAL GRANTS TO RPs,Investment,KARBON HOMES,01/06/2022," 5,382,751.00 ",LAR,None,Grants
"Ministry of Housing, Communities and Local Government",Homes England,CAPITAL GRANTS TO RPs,Investment,KARBON HOMES,08/06/2022," 9,000.00 ",LAR,None,Grants
"Ministry of Housing, Communities and Local Government",Homes England,CAPITAL GRANTS TO RPs,Investment,KARBON HOMES,08/06/2022," 9,000.00 ",LAR,None,Grants
"Ministry of Housing, Communities and Local Government",Homes England,CAPITAL GRANTS TO RPs,Investment,KARBON HOMES,28/06/2022," 9,000.00 ",LAR,None,Grants
"Ministry of Housing, Communities and Local Government",Homes England,CAPITAL GRANTS TO RPs,Investment,VIVID HOUSING LTD,24/06/2022," 16,000.00 ",LAR,None,Grants
"Ministry of Housing, Communities and Local Government",Homes England,CAPITAL GRANTS TO RPs,Investment,MOSSCARE ST VINCENTS HOUSING GROUP LTD,16/06/2022," 10,000.00 ",LAR,None,Grants
"Ministry of Housing, Communities and Local Government",Homes England,CAPITAL GRANTS TO RPs,Investment,MOSSCARE ST VINCENTS HOUSING GROUP LTD,16/06/2022," 11,000.00 ",LAR,None,Grants
"Ministry of Housing, Communities and Local Government",Homes England,CAPITAL GRANTS TO RPs,Investment,MOSSCARE ST VINCENTS HOUSING GROUP LTD,16/06/2022," 9,000.00 ",LAR,None,Grants
"Ministry of Housing, Communities and Local Government",Homes England,CAPITAL GRANTS TO RPs,Investment,MOSSCARE ST VINCENTS HOUSING GROUP LTD,16/06/2022," 9,000.00 ",LAR,None,Grants
"Ministry of Housing, Communities and Local Government",Homes England,CAPITAL GRANTS TO RPs,Investment,MOSSCARE ST VINCENTS HOUSING GROUP LTD,16/06/2022," 10,000.00 ",LAR,None,Grants
"Ministry of Housing, Communities and Local Government",Homes England,CAPITAL GRANTS TO RPs,Investment,MOSSCARE ST VINCENTS HOUSING GROUP LTD,16/06/2022," 10,000.00 ",LAR,None,Grants
"Ministry of Housing, Communities and Local Government",Homes England,CAPITAL GRANTS TO RPs,Investment,BERNICIA GROUP,01/06/2022," 9,000.00 ",LAR,None,Grants
"Ministry of Housing, Communities and Local Government",Homes England,CAPITAL GRANTS TO RPs,Investment,BERNICIA GROUP,06/06/2022," 36,000.00 ",LAR,None,Grants
"Ministry of Housing, Communities and Local Government",Homes England,CAPITAL GRANTS TO RPs,Investment,BERNICIA GROUP,09/06/2022," 9,000.00 ",LAR,None,Grants
"Ministry of Housing, Communities and Local Government",Homes England,REV GRNTS TO LOCAL AUTHORITIES,Investment,P3 HOUSING LTD,28/06/2022," 44,875.00 ",LAR,None,Grants
"Ministry of Housing, Communities and Local Government",Homes England,REV GRNTS TO LOCAL AUTHORITIES,Investment,P3 HOUSING LTD,28/06/2022," 1,688.00 ",LAR,None,Grants
"Ministry of Housing, Communities and Local Government",Homes England,REV GRNTS TO LOCAL AUTHORITIES,Investment,P3 HOUSING LTD,28/06/2022," 1,687.00 ",LAR,None,Grants
"Ministry of Housing, Communities and Local Government",Homes England,REV GRNTS TO LOCAL AUTHORITIES,Investment,P3 HOUSING LTD,28/06/2022," 1,687.00 ",LAR,None,Grants
"Ministry of Housing, Communities and Local Government",Homes England,REV GRNTS TO LOCAL AUTHORITIES,Investment,P3 HOUSING LTD,28/06/2022," 1,687.00 ",LAR,None,Grants
"Ministry of Housing, Communities and Local Government",Homes England,REV GRNTS TO LOCAL AUTHORITIES,Investment,P3 HOUSING LTD,28/06/2022," 10,125.00 ",LAR,None,Grants
"Ministry of Housing, Communities and Local Government",Homes England,REV GRNTS TO LOCAL AUTHORITIES,Investment,P3 HOUSING LTD,28/06/2022," 1,688.00 ",LAR,None,Grants
"Ministry of Housing, Communities and Local Government",Homes England,REV GRNTS TO LOCAL AUTHORITIES,Investment,P3 HOUSING LTD,28/06/2022," 1,688.00 ",LAR,None,Grants
"Ministry of Housing, Communities and Local Government",Homes England,CAPITAL GRANTS TO RPs,Investment,TORUS62 LIMITED,01/06/2022," 2,965,000.00 ",LAR,None,Grants
"Ministry of Housing, Communities and Local Government",Homes England,CAPITAL GRANTS TO RPs,Investment,TORUS62 LIMITED,29/06/2022," 9,000.00 ",LAR,None,Grants
"Ministry of Housing, Communities and Local Government",Homes England,CAPITAL GRANTS TO RPs,Investment,TORUS62 LIMITED,29/06/2022," 9,000.00 ",LAR,None,Grants
"Ministry of Housing, Communities and Local Government",Homes England,CAPITAL GRANTS TO RPs,Investment,TORUS62 LIMITED,29/06/2022," 9,000.00 ",LAR,None,Grants
"Ministry of Housing, Communities and Local Government",Homes England,CAPITAL GRANTS TO RPs,Investment,TORUS62 LIMITED,29/06/2022," 9,000.00 ",LAR,None,Grants
"Ministry of Housing, Communities and Local Government",Homes England,CAPITAL GRANTS TO RPs,Investment,TORUS62 LIMITED,29/06/2022," 9,000.00 ",LAR,None,Grants
"Ministry of Housing, Communities and Local Government",Homes England,CAPITAL GRANTS TO RPs,Investment,TORUS62 LIMITED,29/06/2022," 9,000.00 ",LAR,None,Grants
"Ministry of Housing, Communities and Local Government",Homes England,CAPITAL GRANTS TO RPs,Investment,TORUS62 LIMITED,29/06/2022," 9,000.00 ",LAR,None,Grants
"Ministry of Housing, Communities and Local Government",Homes England,CAPITAL GRANTS TO RPs,Investment,TORUS62 LIMITED,29/06/2022," 9,000.00 ",LAR,None,Grants
"Ministry of Housing, Communities and Local Government",Homes England,CAPITAL GRANTS TO RPs,Investment,TORUS62 LIMITED,30/06/2022," 9,000.00 ",LAR,None,Grants
"Ministry of Housing, Communities and Local Government",Homes England,CAPITAL GRANTS TO RPs,Investment,TORUS62 LIMITED,30/06/2022," 9,000.00 ",LAR,None,Grants
"Ministry of Housing, Communities and Local Government",Homes England,CAPITAL GRANTS TO RPs,Investment,TORUS62 LIMITED,30/06/2022," 9,000.00 ",LAR,None,Grants
"Ministry of Housing, Communities and Local Government",Homes England,CAPITAL GRANTS TO RPs,Investment,TORUS62 LIMITED,30/06/2022," 9,000.00 ",LAR,None,Grants
"Ministry of Housing, Communities and Local Government",Homes England,CAPITAL GRANTS TO RPs,Investment,TORUS62 LIMITED,30/06/2022," 9,000.00 ",LAR,None,Grants
"Ministry of Housing, Communities and Local Government",Homes England,CAPITAL GRANTS TO RPs,Investment,TORUS62 LIMITED,30/06/2022," 9,000.00 ",LAR,None,Grants
"Ministry of Housing, Communities and Local Government",Homes England,CAPITAL GRANTS TO RPs,Investment,TORUS62 LIMITED,30/06/2022," 9,000.00 ",LAR,None,Grants
"Ministry of Housing, Communities and Local Government",Homes England,CAPITAL GRANTS TO RPs,Investment,TORUS62 LIMITED,30/06/2022," 9,000.00 ",LAR,None,Grants
"Ministry of Housing, Communities and Local Government",Homes England,CAPITAL GRANTS TO RPs,Investment,TORUS62 LIMITED,30/06/2022," 9,000.00 ",LAR,None,Grants
"Ministry of Housing, Communities and Local Government",Homes England,CAPITAL GRANTS TO RPs,Investment,TORUS62 LIMITED,30/06/2022," 9,000.00 ",LAR,None,Grants
"Ministry of Housing, Communities and Local Government",Homes England,REV GRNTS TO LOCAL AUTHORITIES,Investment,BCP COUNCIL,09/06/2022," 4,367.00 ",PUB,None,Grants
"Ministry of Housing, Communities and Local Government",Homes England,REV GRNTS TO LOCAL AUTHORITIES,Investment,BCP COUNCIL,24/06/2022," 38,698.00 ",PUB,None,Grants
"Ministry of Housing, Communities and Local Government",Homes England,REV GRNTS TO LOCAL AUTHORITIES,Investment,BCP COUNCIL,24/06/2022," 42,221.00 ",PUB,None,Grants
"Ministry of Housing, Communities and Local Government",Homes England,REV GRNTS TO LOCAL AUTHORITIES,Investment,BCP COUNCIL,24/06/2022," 37,604.00 ",PUB,None,Grants
"Ministry of Housing, Communities and Local Government",Homes England,REV GRNTS TO LOCAL AUTHORITIES,Investment,BCP COUNCIL,24/06/2022," 4,367.00 ",PUB,None,Grants
"Ministry of Housing, Communities and Local Government",Homes England,REV GRNTS TO LOCAL AUTHORITIES,Investment,BCP COUNCIL,24/06/2022," 4,556.00 ",PUB,None,Grants
"Ministry of Housing, Communities and Local Government",Homes England,REV GRNTS TO LOCAL AUTHORITIES,Investment,BCP COUNCIL,24/06/2022," 4,583.00 ",PUB,None,Grants
"Ministry of Housing, Communities and Local Government",Homes England,REV GRNTS TO LOCAL AUTHORITIES,Investment,BCP COUNCIL,24/06/2022," 38,698.00 ",PUB,None,Grants
"Ministry of Housing, Communities and Local Government",Homes England,CAPITAL GRANTS TO RPs,Investment,BELIEVE HOUSING LIMITED,09/06/2022," 303,750.00 ",LAR,None,Grants
"Ministry of Housing, Communities and Local Government",Homes England,CAPITAL GRANTS TO RPs,Investment,BELIEVE HOUSING LIMITED,09/06/2022," 371,250.00 ",LAR,None,Grants
"Ministry of Housing, Communities and Local Government",Homes England,CAPITAL GRANTS TO RPs,Investment,CITIZEN HOUSING GROUP LTD,10/06/2022," 10,000.00 ",LAR,None,Grants
"Ministry of Housing, Communities and Local Government",Homes England,CAPITAL GRANTS TO RPs,Investment,CITIZEN HOUSING GROUP LTD,10/06/2022," 10,000.00 ",LAR,None,Grants
"Ministry of Housing, Communities and Local Government",Homes England,CAPITAL GRANTS TO RPs,Investment,CITIZEN HOUSING GROUP LTD,10/06/2022," 10,000.00 ",LAR,None,Grants
"Ministry of Housing, Communities and Local Government",Homes England,CAPITAL GRANTS TO RPs,Investment,CITIZEN HOUSING GROUP LTD,10/06/2022," 10,000.00 ",LAR,None,Grants
"Ministry of Housing, Communities and Local Government",Homes England,CAPITAL GRANTS TO RPs,Investment,CITIZEN HOUSING GROUP LTD,10/06/2022," 10,000.00 ",LAR,None,Grants
"Ministry of Housing, Communities and Local Government",Homes England,CAPITAL GRANTS TO RPs,Investment,CITIZEN HOUSING GROUP LTD,10/06/2022," 10,000.00 ",LAR,None,Grants
"Ministry of Housing, Communities and Local Government",Homes England,CAPITAL GRANTS TO RPs,Investment,CITIZEN HOUSING GROUP LTD,10/06/2022," 10,000.00 ",LAR,None,Grants
"Ministry of Housing, Communities and Local Government",Homes England,CAPITAL GRANTS TO RPs,Investment,CITIZEN HOUSING GROUP LTD,10/06/2022," 10,000.00 ",LAR,None,Grants
"Ministry of Housing, Communities and Local Government",Homes England,CAPITAL GRANTS TO RPs,Investment,CITIZEN HOUSING GROUP LTD,10/06/2022," 10,000.00 ",LAR,None,Grants
"Ministry of Housing, Communities and Local Government",Homes England,CAPITAL GRANTS TO RPs,Investment,CITIZEN HOUSING GROUP LTD,16/06/2022," 396,000.00 ",LAR,None,Grants
"Ministry of Housing, Communities and Local Government",Homes England,CAPITAL GRANTS TO RPs,Investment,CITIZEN HOUSING GROUP LTD,27/06/2022," 10,000.00 ",LAR,None,Grants
"Ministry of Housing, Communities and Local Government",Homes England,CAPITAL GRANTS TO RPs,Investment,CITIZEN HOUSING GROUP LTD,27/06/2022," 10,000.00 ",LAR,None,Grants
"Ministry of Housing, Communities and Local Government",Homes England,CAPITAL GRANTS TO RPs,Investment,CITIZEN HOUSING GROUP LTD,27/06/2022," 10,000.00 ",LAR,None,Grants
"Ministry of Housing, Communities and Local Government",Homes England,CAPITAL GRANTS TO RPs,Investment,CITIZEN HOUSING GROUP LTD,27/06/2022," 10,000.00 ",LAR,None,Grants
"Ministry of Housing, Communities and Local Government",Homes England,CAPITAL GRANTS TO RPs,Investment,CITIZEN HOUSING GROUP LTD,27/06/2022," 10,000.00 ",LAR,None,Grants
"Ministry of Housing, Communities and Local Government",Homes England,REV GRNTS TO LOCAL AUTHORITIES,Investment,SUNDERLAND CITY COUNCIL,30/06/2022, 893.00 ,PUB,None,Grants
"Ministry of Housing, Communities and Local Government",Homes England,REV GRNTS TO LOCAL AUTHORITIES,Investment,SUNDERLAND CITY COUNCIL,30/06/2022," 2,537.00 ",PUB,None,Grants
"Ministry of Housing, Communities and Local Government",Homes England,REV GRNTS TO LOCAL AUTHORITIES,Investment,SUNDERLAND CITY COUNCIL,30/06/2022, 893.00 ,PUB,None,Grants
"Ministry of Housing, Communities and Local Government",Homes England,REV GRNTS TO LOCAL AUTHORITIES,Investment,DORSET COUNCIL,28/06/2022," 1,969.00 ",PUB,None,Grants
"Ministry of Housing, Communities and Local Government",Homes England,REV GRNTS TO LOCAL AUTHORITIES,Investment,DORSET COUNCIL,28/06/2022," 1,970.00 ",PUB,None,Grants
"Ministry of Housing, Communities and Local Government",Homes England,REV GRNTS TO LOCAL AUTHORITIES,Investment,DORSET COUNCIL,28/06/2022," 1,590.00 ",PUB,None,Grants
"Ministry of Housing, Communities and Local Government",Homes England,REV GRNTS TO LOCAL AUTHORITIES,Investment,DORSET COUNCIL,28/06/2022," 1,969.00 ",PUB,None,Grants
"Ministry of Housing, Communities and Local Government",Homes England,REV GRNTS TO LOCAL AUTHORITIES,Investment,DORSET COUNCIL,28/06/2022," 1,590.00 ",PUB,None,Grants
"Ministry of Housing, Communities and Local Government",Homes England,REV GRNTS TO LOCAL AUTHORITIES,Investment,DORSET COUNCIL,28/06/2022," 1,590.00 ",PUB,None,Grants
"Ministry of Housing, Communities and Local Government",Homes England,REV GRNTS TO LOCAL AUTHORITIES,Investment,DORSET COUNCIL,28/06/2022," 1,970.00 ",PUB,None,Grants
"Ministry of Housing, Communities and Local Government",Homes England,REV GRNTS TO LOCAL AUTHORITIES,Investment,DORSET COUNCIL,28/06/2022," 1,590.00 ",PUB,None,Grants
"Ministry of Housing, Communities and Local Government",Homes England,REV GRNTS TO LOCAL AUTHORITIES,Investment,DORSET COUNCIL,28/06/2022," 1,590.00 ",PUB,None,Grants
"Ministry of Housing, Communities and Local Government",Homes England,REV GRNTS TO LOCAL AUTHORITIES,Investment,DORSET COUNCIL,28/06/2022," 1,590.00 ",PUB,None,Grants
"Ministry of Housing, Communities and Local Government",Homes England,REV GRNTS TO LOCAL AUTHORITIES,Investment,DORSET COUNCIL,28/06/2022," 1,969.00 ",PUB,None,Grants
"Ministry of Housing, Communities and Local Government",Homes England,REV GRNTS TO LOCAL AUTHORITIES,Investment,DORSET COUNCIL,28/06/2022," 1,590.00 ",PUB,None,Grants
"Ministry of Housing, Communities and Local Government",Homes England,REV GRNTS TO LOCAL AUTHORITIES,Investment,DORSET COUNCIL,28/06/2022," 1,969.00 ",PUB,None,Grants
"Ministry of Housing, Communities and Local Government",Homes England,REV GRNTS TO LOCAL AUTHORITIES,Investment,DORSET COUNCIL,28/06/2022," 1,590.00 ",PUB,None,Grants
"Ministry of Housing, Communities and Local Government",Homes England,REV GRNTS TO LOCAL AUTHORITIES,Investment,DORSET COUNCIL,28/06/2022," 15,114.00 ",PUB,None,Grants
"Ministry of Housing, Communities and Local Government",Homes England,REV GRNTS TO LOCAL AUTHORITIES,Investment,DORSET COUNCIL,28/06/2022," 1,969.00 ",PUB,None,Grants
"Ministry of Housing, Communities and Local Government",Homes England,REV GRNTS TO LOCAL AUTHORITIES,Investment,DORSET COUNCIL,28/06/2022," 1,590.00 ",PUB,None,Grants
"Ministry of Housing, Communities and Local Government",Homes England,REV GRNTS TO LOCAL AUTHORITIES,Investment,DORSET COUNCIL,28/06/2022," 1,970.00 ",PUB,None,Grants
"Ministry of Housing, Communities and Local Government",Homes England,REV GRNTS TO LOCAL AUTHORITIES,Investment,DORSET COUNCIL,28/06/2022," 1,590.00 ",PUB,None,Grants
"Ministry of Housing, Communities and Local Government",Homes England,REV GRNTS TO LOCAL AUTHORITIES,Investment,DORSET COUNCIL,28/06/2022," 1,968.00 ",PUB,None,Grants
"Ministry of Housing, Communities and Local Government",Homes England,REV GRNTS TO LOCAL AUTHORITIES,Investment,DORSET COUNCIL,28/06/2022," 1,969.00 ",PUB,None,Grants
"Ministry of Housing, Communities and Local Government",Homes England,REV GRNTS TO LOCAL AUTHORITIES,Investment,TELFORD & WREKIN COUNCIL,28/06/2022," 2,514.00 ",PUB,None,Grants
"Ministry of Housing, Communities and Local Government",Homes England,REV GRNTS TO LOCAL AUTHORITIES,Investment,TELFORD & WREKIN COUNCIL,28/06/2022," 2,514.00 ",PUB,None,Grants
"Ministry of Housing, Communities and Local Government",Homes England,REV GRNTS TO LOCAL AUTHORITIES,Investment,TELFORD & WREKIN COUNCIL,28/06/2022," 12,559.00 ",PUB,None,Grants
"Ministry of Housing, Communities and Local Government",Homes England,REV GRNTS TO LOCAL AUTHORITIES,Investment,TELFORD & WREKIN COUNCIL,28/06/2022," 2,514.00 ",PUB,None,Grants
"Ministry of Housing, Communities and Local Government",Homes England,REV GRNTS TO LOCAL AUTHORITIES,Investment,TELFORD & WREKIN COUNCIL,28/06/2022," 2,514.00 ",PUB,None,Grants
"Ministry of Housing, Communities and Local Government",Homes England,REV GRNTS TO LOCAL AUTHORITIES,Investment,TELFORD & WREKIN COUNCIL,28/06/2022," 2,514.00 ",PUB,None,Grants
"Ministry of Housing, Communities and Local Government",Homes England,REV GRNTS TO LOCAL AUTHORITIES,Investment,TELFORD & WREKIN COUNCIL,28/06/2022," 2,514.00 ",PUB,None,Grants
"Ministry of Housing, Communities and Local Government",Homes England,REV GRNTS TO LOCAL AUTHORITIES,Investment,TELFORD & WREKIN COUNCIL,28/06/2022," 2,514.00 ",PUB,None,Grants
"Ministry of Housing, Communities and Local Government",Homes England,REV GRNTS TO LOCAL AUTHORITIES,Investment,TELFORD & WREKIN COUNCIL,28/06/2022," 2,514.00 ",PUB,None,Grants
"Ministry of Housing, Communities and Local Government",Homes England,REV GRNTS TO LOCAL AUTHORITIES,Investment,STRATFORD ON AVON DISTRICT COUNCIL,28/06/2022," 1,000.00 ",PUB,None,Grants
"Ministry of Housing, Communities and Local Government",Homes England,REV GRNTS TO LOCAL AUTHORITIES,Investment,STRATFORD ON AVON DISTRICT COUNCIL,28/06/2022," 1,000.00 ",PUB,None,Grants
"Ministry of Housing, Communities and Local Government",Homes England,REV GRNTS TO LOCAL AUTHORITIES,Investment,STRATFORD ON AVON DISTRICT COUNCIL,28/06/2022," 1,000.00 ",PUB,None,Grants
"Ministry of Housing, Communities and Local Government",Homes England,REV GRNTS TO LOCAL AUTHORITIES,Investment,STRATFORD ON AVON DISTRICT COUNCIL,28/06/2022," 1,000.00 ",PUB,None,Grants
"Ministry of Housing, Communities and Local Government",Homes England,REV GRNTS TO LOCAL AUTHORITIES,Investment,PETERBOROUGH CITY COUNCIL,28/06/2022," 21,153.00 ",PUB,None,Grants
"Ministry of Housing, Communities and Local Government",Homes England,REV GRNTS TO LOCAL AUTHORITIES,Investment,BEDFORD BOROUGH COUNCIL,28/06/2022," 80,750.00 ",PUB,None,Grants
"Ministry of Housing, Communities and Local Government",Homes England,REV GRNTS TO LOCAL AUTHORITIES,Investment,TUNBRIDGE WELLS BOROUGH COUNCIL,28/06/2022," 10,947.00 ",PUB,None,Grants
"Ministry of Housing, Communities and Local Government",Homes England,REV GRNTS TO LOCAL AUTHORITIES,Investment,ROTHER DISTRICT COUNCIL,28/06/2022," 10,750.00 ",PUB,None,Grants
"Ministry of Housing, Communities and Local Government",Homes England,REV GRNTS TO LOCAL AUTHORITIES,Investment,ROTHER DISTRICT COUNCIL,28/06/2022," 2,065.00 ",PUB,None,Grants
"Ministry of Housing, Communities and Local Government",Homes England,REV GRNTS TO LOCAL AUTHORITIES,Investment,ROTHER DISTRICT COUNCIL,28/06/2022," 43,993.00 ",PUB,None,Grants
"Ministry of Housing, Communities and Local Government",Homes England,REV GRNTS TO LOCAL AUTHORITIES,Investment,TORVISTA HOMES LIMITED,28/06/2022," 1,250.00 ",LAR,None,Grants
"Ministry of Housing, Communities and Local Government",Homes England,REV GRNTS TO LOCAL AUTHORITIES,Investment,TORVISTA HOMES LIMITED,28/06/2022," 1,250.00 ",LAR,None,Grants
"Ministry of Housing, Communities and Local Government",Homes England,REV GRNTS TO LOCAL AUTHORITIES,Investment,TORVISTA HOMES LIMITED,28/06/2022," 1,250.00 ",LAR,None,Grants
"Ministry of Housing, Communities and Local Government",Homes England,REV GRNTS TO LOCAL AUTHORITIES,Investment,TORVISTA HOMES LIMITED,28/06/2022," 1,250.00 ",LAR,None,Grants
"Ministry of Housing, Communities and Local Government",Homes England,REV GRNTS TO LOCAL AUTHORITIES,Investment,TORVISTA HOMES LIMITED,28/06/2022," 1,250.00 ",LAR,None,Grants
"Ministry of Housing, Communities and Local Government",Homes England,REV GRNTS TO LOCAL AUTHORITIES,Investment,TORVISTA HOMES LIMITED,28/06/2022," 1,250.00 ",LAR,None,Grants
"Ministry of Housing, Communities and Local Government",Homes England,REV GRNTS TO LOCAL AUTHORITIES,Investment,TORVISTA HOMES LIMITED,28/06/2022," 1,250.00 ",LAR,None,Grants
"Ministry of Housing, Communities and Local Government",Homes England,REV GRNTS TO LOCAL AUTHORITIES,Investment,TORVISTA HOMES LIMITED,28/06/2022," 1,250.00 ",LAR,None,Grants
"Ministry of Housing, Communities and Local Government",Homes England,REV GRNTS TO LOCAL AUTHORITIES,Investment,TORVISTA HOMES LIMITED,28/06/2022," 1,250.00 ",LAR,None,Grants
"Ministry of Housing, Communities and Local Government",Homes England,REV GRNTS TO LOCAL AUTHORITIES,Investment,TORVISTA HOMES LIMITED,28/06/2022," 1,250.00 ",LAR,None,Grants
"Ministry of Housing, Communities and Local Government",Homes England,REV GRNTS TO LOCAL AUTHORITIES,Investment,TORVISTA HOMES LIMITED,28/06/2022," 1,250.00 ",LAR,None,Grants
"Ministry of Housing, Communities and Local Government",Homes England,REV GRNTS TO LOCAL AUTHORITIES,Investment,TORVISTA HOMES LIMITED,28/06/2022," 1,250.00 ",LAR,None,Grants
"Ministry of Housing, Communities and Local Government",Homes England,REV GRNTS TO LOCAL AUTHORITIES,Investment,TORVISTA HOMES LIMITED,28/06/2022," 1,250.00 ",LAR,None,Grants
"Ministry of Housing, Communities and Local Government",Homes England,REV GRNTS TO LOCAL AUTHORITIES,Investment,TORVISTA HOMES LIMITED,28/06/2022," 1,250.00 ",LAR,None,Grants
"Ministry of Housing, Communities and Local Government",Homes England,REV GRNTS TO LOCAL AUTHORITIES,Investment,WEST NORTHAMPTONSHIRE COUNCIL,06/06/2022," 24,750.00 ",PUB,None,Grants
"Ministry of Housing, Communities and Local Government",Homes England,REV GRNTS TO LOCAL AUTHORITIES,Investment,WEST NORTHAMPTONSHIRE COUNCIL,06/06/2022," 24,750.00 ",PUB,None,Grants
"Ministry of Housing, Communities and Local Government",Homes England,REV GRNTS TO LOCAL AUTHORITIES,Investment,WEST NORTHAMPTONSHIRE COUNCIL,23/06/2022," 2,750.00 ",PUB,None,Grants
"Ministry of Housing, Communities and Local Government",Homes England,REV GRNTS TO LOCAL AUTHORITIES,Investment,WEST NORTHAMPTONSHIRE COUNCIL,23/06/2022," 4,037.00 ",PUB,None,Grants
"Ministry of Housing, Communities and Local Government",Homes England,REV GRNTS TO LOCAL AUTHORITIES,Investment,WEST NORTHAMPTONSHIRE COUNCIL,23/06/2022," 4,037.00 ",PUB,None,Grants
"Ministry of Housing, Communities and Local Government",Homes England,REV GRNTS TO LOCAL AUTHORITIES,Investment,LICHFIELD DISTRICT COUNCIL,28/06/2022, 747.00 ,PUB,None,Grants
"Ministry of Housing, Communities and Local Government",Homes England,REV GRNTS TO LOCAL AUTHORITIES,Investment,LICHFIELD DISTRICT COUNCIL,28/06/2022, 747.00 ,PUB,None,Grants
"Ministry of Housing, Communities and Local Government",Homes England,REV GRNTS TO LOCAL AUTHORITIES,Investment,LICHFIELD DISTRICT COUNCIL,28/06/2022, 747.00 ,PUB,None,Grants
"Ministry of Housing, Communities and Local Government",Homes England,REV GRNTS TO LOCAL AUTHORITIES,Investment,LICHFIELD DISTRICT COUNCIL,28/06/2022, 747.00 ,PUB,None,Grants
"Ministry of Housing, Communities and Local Government",Homes England,REV GRNTS TO LOCAL AUTHORITIES,Investment,ISLE OF WIGHT COUNCIL,01/06/2022," 38,987.00 ",PUB,None,Grants
"Ministry of Housing, Communities and Local Government",Homes England,ENGINEERING FEES,Development,ATKINS LTD,28/06/2022," 75,620.40 ",LAR,81101500,Civil Engineering
"Ministry of Housing, Communities and Local Government",Homes England,OTHER PROFESSIONAL FEES,Development,ATKINS LTD,29/06/2022," 21,480.00 ",LAR,80131800,Real estate management services
"Ministry of Housing, Communities and Local Government",Homes England,PLANNING APPLICATIONS,"Markets, Partners & Places",ATKINS LTD,30/06/2022," 7,200.00 ",LAR,80131800,Real estate management services
"Ministry of Housing, Communities and Local Government",Homes England,ENTERTAINMENT (VAT INC),Corporate Resources,INSTITUTE OF INTERNAL AUDITORS,21/06/2022," 3,000.00 ",LAR,80141902,Trade shows and exhibits
"Ministry of Housing, Communities and Local Government",Homes England,MISC PROFESSIONAL FEES,Development,ADAM ARCHITECTURE LTD,07/06/2022, 441.00 ,SMA,81101500,Civil Engineering
"Ministry of Housing, Communities and Local Government",Homes England,ST FUND LOANS ADDITIONS,Investment,ANCHOR HOMES (NORTH WEST) LTD,21/06/2022," 69,929.93 ",MIC,None,Loans
"Ministry of Housing, Communities and Local Government",Homes England,CAR LEASING - HIRE CHARGES,Development,ALPHABET (GB) LTD,08/06/2022, 130.57 ,LAR,25101500,Passenger motor vehicles
"Ministry of Housing, Communities and Local Government",Homes England,CAR LEASING - HIRE CHARGES,Development,ALPHABET (GB) LTD,08/06/2022, 173.35 ,LAR,25101500,Passenger motor vehicles
"Ministry of Housing, Communities and Local Government",Homes England,CAR LEASING - HIRE CHARGES,Investment,ALPHABET (GB) LTD,08/06/2022, 241.80 ,LAR,25101500,Passenger motor vehicles
"Ministry of Housing, Communities and Local Government",Homes England,CAR LEASING - HIRE CHARGES,Investment,ALPHABET (GB) LTD,08/06/2022, 283.46 ,LAR,25101500,Passenger motor vehicles
"Ministry of Housing, Communities and Local Government",Homes England,CAR LEASING - HIRE CHARGES,Development,ALPHABET (GB) LTD,08/06/2022, 118.87 ,LAR,25101500,Passenger motor vehicles
"Ministry of Housing, Communities and Local Government",Homes England,CAR LEASING - HIRE CHARGES,Development,ALPHABET (GB) LTD,08/06/2022, 170.18 ,LAR,25101500,Passenger motor vehicles
"Ministry of Housing, Communities and Local Government",Homes England,CAR LEASING - HIRE CHARGES,Development,ALPHABET (GB) LTD,08/06/2022, 233.44 ,LAR,25101500,Passenger motor vehicles
"Ministry of Housing, Communities and Local Government",Homes England,CAR LEASING - HIRE CHARGES,Development,ALPHABET (GB) LTD,08/06/2022, 298.89 ,LAR,25101500,Passenger motor vehicles
"Ministry of Housing, Communities and Local Government",Homes England,CAR LEASING - HIRE CHARGES,Investment,ALPHABET (GB) LTD,08/06/2022, 218.93 ,LAR,25101500,Passenger motor vehicles
"Ministry of Housing, Communities and Local Government",Homes England,CAR LEASING - HIRE CHARGES,Investment,ALPHABET (GB) LTD,08/06/2022, 302.24 ,LAR,25101500,Passenger motor vehicles
"Ministry of Housing, Communities and Local Government",Homes England,CAR LEASING - HIRE CHARGES,Development,ALPHABET (GB) LTD,08/06/2022, 265.80 ,LAR,25101500,Passenger motor vehicles
"Ministry of Housing, Communities and Local Government",Homes England,CAR LEASING - HIRE CHARGES,Development,ALPHABET (GB) LTD,08/06/2022, 349.12 ,LAR,25101500,Passenger motor vehicles
"Ministry of Housing, Communities and Local Government",Homes England,STREET LIGHTING,Development,ALTITUDE SERVICES,10/06/2022," 1,408.32 ",MED,83101800,Electric utilities
"Ministry of Housing, Communities and Local Government",Homes England,ESTATE GENERAL MAINTENANCE,Development,AGA GROUP ENVIRO-FIX LIMITED,28/06/2022," 2,040.00 ",SMA,72101500,Building maintenance and repair services
"Ministry of Housing, Communities and Local Government",Homes England,CAR LEASING - HIRE CHARGES,Development,ARVAL UK LIMITED,08/06/2022, 140.09 ,LAR,25101500,Passenger motor vehicles
"Ministry of Housing, Communities and Local Government",Homes England,CAR LEASING - HIRE CHARGES,Development,ARVAL UK LIMITED,08/06/2022, 140.09 ,LAR,25101500,Passenger motor vehicles
"Ministry of Housing, Communities and Local Government",Homes England,CAR LEASING - HIRE CHARGES,Development,ARVAL UK LIMITED,08/06/2022, 140.09 ,LAR,25101500,Passenger motor vehicles
"Ministry of Housing, Communities and Local Government",Homes England,CAR LEASING - HIRE CHARGES,Development,ARVAL UK LIMITED,08/06/2022, 140.09 ,LAR,25101500,Passenger motor vehicles
"Ministry of Housing, Communities and Local Government",Homes England,CAR LEASING - HIRE CHARGES,Development,ARVAL UK LIMITED,08/06/2022, 140.09 ,LAR,25101500,Passenger motor vehicles
"Ministry of Housing, Communities and Local Government",Homes England,CAR LEASING - HIRE CHARGES,Development,ARVAL UK LIMITED,08/06/2022, 140.09 ,LAR,25101500,Passenger motor vehicles
"Ministry of Housing, Communities and Local Government",Homes England,CAR LEASING - HIRE CHARGES,Development,ARVAL UK LIMITED,27/06/2022," 1,847.88 ",LAR,25101500,Passenger motor vehicles
"Ministry of Housing, Communities and Local Government",Homes England,CAR LEASING - HIRE CHARGES,Development,ARVAL UK LIMITED,27/06/2022," 2,547.28 ",LAR,25101500,Passenger motor vehicles
"Ministry of Housing, Communities and Local Government",Homes England,MANAGEMENT COSTS,"Markets, Partners & Places",ALLIUM ENVIRONMENTAL LTD,01/06/2022, 288.00 ,SMA,77101500,Environmental auditing
"Ministry of Housing, Communities and Local Government",Homes England,EXTERNAL BUILDING MAINTENANCE,"Markets, Partners & Places",ALLIUM ENVIRONMENTAL LTD,01/06/2022, 288.00 ,SMA,77101500,Environmental auditing
"Ministry of Housing, Communities and Local Government",Homes England,AGENCY STAFF,Corporate Resources,ALLEN LANE LIMITED,01/06/2022," 3,795.00 ",SMA,80111600,Temporary personnel services
"Ministry of Housing, Communities and Local Government",Homes England,AGENCY STAFF,Corporate Resources,ALLEN LANE LIMITED,01/06/2022," 3,836.28 ",SMA,80111600,Temporary personnel services
"Ministry of Housing, Communities and Local Government",Homes England,AGENCY STAFF,Corporate Resources,ALLEN LANE LIMITED,01/06/2022," 3,795.00 ",SMA,80111600,Temporary personnel services
"Ministry of Housing, Communities and Local Government",Homes England,AGENCY STAFF,Corporate Resources,ALLEN LANE LIMITED,01/06/2022," 3,836.28 ",SMA,80111600,Temporary personnel services
"Ministry of Housing, Communities and Local Government",Homes England,AGENCY STAFF,Corporate Resources,ALLEN LANE LIMITED,01/06/2022," 4,338.78 ",SMA,80111600,Temporary personnel services
"Ministry of Housing, Communities and Local Government",Homes England,AGENCY STAFF,Corporate Resources,ALLEN LANE LIMITED,01/06/2022," 3,671.28 ",SMA,80111600,Temporary personnel services
"Ministry of Housing, Communities and Local Government",Homes England,AGENCY STAFF,Corporate Resources,ALLEN LANE LIMITED,01/06/2022," 3,836.28 ",SMA,80111600,Temporary personnel services
"Ministry of Housing, Communities and Local Government",Homes England,AGENCY STAFF,Corporate Resources,ALLEN LANE LIMITED,01/06/2022," 3,671.28 ",SMA,80111600,Temporary personnel services
"Ministry of Housing, Communities and Local Government",Homes England,AGENCY STAFF,Cido,ALLEN LANE LIMITED,07/06/2022," 3,600.00 ",SMA,80111600,Temporary personnel services
"Ministry of Housing, Communities and Local Government",Homes England,AGENCY STAFF,Cido,ALLEN LANE LIMITED,08/06/2022," 8,970.00 ",SMA,80111600,Temporary personnel services
"Ministry of Housing, Communities and Local Government",Homes England,AGENCY STAFF,Cido,ALLEN LANE LIMITED,08/06/2022," 2,847.60 ",SMA,80111600,Temporary personnel services
"Ministry of Housing, Communities and Local Government",Homes England,AGENCY STAFF,Corporate Resources,ALLEN LANE LIMITED,09/06/2022," 2,277.00 ",SMA,80111600,Temporary personnel services
"Ministry of Housing, Communities and Local Government",Homes England,AGENCY STAFF,Corporate Resources,ALLEN LANE LIMITED,09/06/2022," 5,754.42 ",SMA,80111600,Temporary personnel services
"Ministry of Housing, Communities and Local Government",Homes England,AGENCY STAFF,Corporate Resources,ALLEN LANE LIMITED,09/06/2022, 959.08 ,SMA,80111600,Temporary personnel services
"Ministry of Housing, Communities and Local Government",Homes England,AGENCY STAFF,Corporate Resources,ALLEN LANE LIMITED,09/06/2022," 2,603.27 ",SMA,80111600,Temporary personnel services
"Ministry of Housing, Communities and Local Government",Homes England,AGENCY STAFF,Corporate Resources,ALLEN LANE LIMITED,09/06/2022," 7,342.50 ",SMA,80111600,Temporary personnel services
"Ministry of Housing, Communities and Local Government",Homes England,AGENCY STAFF,Corporate Resources,ALLEN LANE LIMITED,09/06/2022," 2,202.77 ",SMA,80111600,Temporary personnel services
"Ministry of Housing, Communities and Local Government",Homes England,AGENCY STAFF,Corporate Resources,ALLEN LANE LIMITED,09/06/2022," 2,301.77 ",SMA,80111600,Temporary personnel services
"Ministry of Housing, Communities and Local Government",Homes England,AGENCY STAFF,Corporate Resources,ALLEN LANE LIMITED,09/06/2022," 2,202.77 ",SMA,80111600,Temporary personnel services
"Ministry of Housing, Communities and Local Government",Homes England,AGENCY STAFF,Cido,ALLEN LANE LIMITED,09/06/2022," 5,760.00 ",SMA,80111600,Temporary personnel services
"Ministry of Housing, Communities and Local Government",Homes England,AGENCY STAFF,Cido,ALLEN LANE LIMITED,10/06/2022," 2,847.60 ",SMA,80111600,Temporary personnel services
"Ministry of Housing, Communities and Local Government",Homes England,AGENCY STAFF,Corporate Resources,ALLEN LANE LIMITED,16/06/2022," 3,795.00 ",SMA,80111600,Temporary personnel services
"Ministry of Housing, Communities and Local Government",Homes England,AGENCY STAFF,Corporate Resources,ALLEN LANE LIMITED,16/06/2022," 3,956.28 ",SMA,80111600,Temporary personnel services
"Ministry of Housing, Communities and Local Government",Homes England,AGENCY STAFF,Corporate Resources,ALLEN LANE LIMITED,16/06/2022," 3,471.02 ",SMA,80111600,Temporary personnel services
"Ministry of Housing, Communities and Local Government",Homes England,AGENCY STAFF,Corporate Resources,ALLEN LANE LIMITED,16/06/2022," 3,671.28 ",SMA,80111600,Temporary personnel services
"Ministry of Housing, Communities and Local Government",Homes England,AGENCY STAFF,Corporate Resources,ALLEN LANE LIMITED,16/06/2022," 3,836.28 ",SMA,80111600,Temporary personnel services
"Ministry of Housing, Communities and Local Government",Homes England,AGENCY STAFF,Corporate Resources,ALLEN LANE LIMITED,16/06/2022," 3,671.28 ",SMA,80111600,Temporary personnel services
"Ministry of Housing, Communities and Local Government",Homes England,AGENCY STAFF,Cido,ALLEN LANE LIMITED,16/06/2022," 3,600.00 ",SMA,80111600,Temporary personnel services
"Ministry of Housing, Communities and Local Government",Homes England,AGENCY STAFF,Cido,ALLEN LANE LIMITED,16/06/2022," 11,661.00 ",SMA,80111600,Temporary personnel services
"Ministry of Housing, Communities and Local Government",Homes England,AGENCY STAFF,Cido,ALLEN LANE LIMITED,16/06/2022," 4,746.00 ",SMA,80111600,Temporary personnel services
"Ministry of Housing, Communities and Local Government",Homes England,AGENCY STAFF,Cido,ALLEN LANE LIMITED,23/06/2022," 2,160.00 ",SMA,80111600,Temporary personnel services
"Ministry of Housing, Communities and Local Government",Homes England,AGENCY STAFF,Cido,ALLEN LANE LIMITED,23/06/2022," 3,600.00 ",SMA,80111600,Temporary personnel services
"Ministry of Housing, Communities and Local Government",Homes England,AGENCY STAFF,Cido,ALLEN LANE LIMITED,23/06/2022," 4,746.00 ",SMA,80111600,Temporary personnel services
"Ministry of Housing, Communities and Local Government",Homes England,AGENCY STAFF,Cido,ALLEN LANE LIMITED,23/06/2022," 3,600.00 ",SMA,80111600,Temporary personnel services
"Ministry of Housing, Communities and Local Government",Homes England,AGENCY STAFF,Corporate Resources,ALLEN LANE LIMITED,24/06/2022," 17,271.63 ",SMA,80111600,Temporary personnel services
"Ministry of Housing, Communities and Local Government",Homes England,AGENCY STAFF,Corporate Resources,ALLEN LANE LIMITED,24/06/2022," 6,521.68 ",SMA,80111600,Temporary personnel services
"Ministry of Housing, Communities and Local Government",Homes England,AGENCY STAFF,Corporate Resources,ALLEN LANE LIMITED,24/06/2022," 4,130.63 ",SMA,80111600,Temporary personnel services
"Ministry of Housing, Communities and Local Government",Homes England,AGENCY STAFF,Corporate Resources,ALLEN LANE LIMITED,24/06/2022," 4,476.60 ",SMA,80111600,Temporary personnel services
"Ministry of Housing, Communities and Local Government",Homes England,AGENCY STAFF,Corporate Resources,ALLEN LANE LIMITED,24/06/2022," 3,671.28 ",SMA,80111600,Temporary personnel services
"Ministry of Housing, Communities and Local Government",Homes England,AGENCY STAFF,Corporate Resources,ALLEN LANE LIMITED,24/06/2022," 3,836.28 ",SMA,80111600,Temporary personnel services
"Ministry of Housing, Communities and Local Government",Homes England,AGENCY STAFF,Cido,ALLEN LANE LIMITED,30/06/2022," 3,600.00 ",SMA,80111600,Temporary personnel services
"Ministry of Housing, Communities and Local Government",Homes England,ESTATE GENERAL MAINTENANCE,Development,AIREDALE FORESTRY,01/06/2022, 612.00 ,SMA,72101500,Building maintenance and repair services
"Ministry of Housing, Communities and Local Government",Homes England,ESTATE GENERAL MAINTENANCE,Development,AIREDALE FORESTRY,06/06/2022, 346.20 ,SMA,72101500,Building maintenance and repair services
"Ministry of Housing, Communities and Local Government",Homes England,ESTATE GENERAL MAINTENANCE,Development,AIREDALE FORESTRY,08/06/2022, 390.00 ,SMA,72101500,Building maintenance and repair services
"Ministry of Housing, Communities and Local Government",Homes England,ESTATE GENERAL MAINTENANCE,"Markets, Partners & Places",AIREDALE FORESTRY,09/06/2022, 576.08 ,SMA,72101500,Building maintenance and repair services
"Ministry of Housing, Communities and Local Government",Homes England,ESTATE GENERAL MAINTENANCE,Development,AIREDALE FORESTRY,09/06/2022, 299.09 ,SMA,72101500,Building maintenance and repair services
"Ministry of Housing, Communities and Local Government",Homes England,ESTATE GENERAL MAINTENANCE,Development,AIREDALE FORESTRY,09/06/2022, 639.72 ,SMA,72101500,Building maintenance and repair services
"Ministry of Housing, Communities and Local Government",Homes England,ESTATE GENERAL MAINTENANCE,Development,AIREDALE FORESTRY,20/06/2022, 840.00 ,SMA,72101500,Building maintenance and repair services
"Ministry of Housing, Communities and Local Government",Homes England,ESTATE GENERAL MAINTENANCE,Development,AIREDALE FORESTRY,20/06/2022, 257.98 ,SMA,72101500,Building maintenance and repair services
"Ministry of Housing, Communities and Local Government",Homes England,ESTATE GENERAL MAINTENANCE,Development,AIREDALE FORESTRY,28/06/2022, 679.20 ,SMA,72101500,Building maintenance and repair services
"Ministry of Housing, Communities and Local Government",Homes England,FENCE MAINTENANCE,Development,AIREDALE FORESTRY,28/06/2022, 894.00 ,SMA,72102900,Facility maintenance and repair services
"Ministry of Housing, Communities and Local Government",Homes England,ESTATE GENERAL MAINTENANCE,Development,AIREDALE FORESTRY,28/06/2022, 257.98 ,SMA,72101500,Building maintenance and repair services
"Ministry of Housing, Communities and Local Government",Homes England,ST FUND LOANS ADDITIONS,Investment,ANSTEYS COVE DEVELOPMENT LLP,06/06/2022," 351,385.34 ",MED,None,Loans
"Ministry of Housing, Communities and Local Government",Homes England,ST FUND LOANS ADDITIONS,Investment,ANSTEYS COVE DEVELOPMENT LLP,30/06/2022," 472,373.88 ",MED,None,Loans
"Ministry of Housing, Communities and Local Government",Homes England,PROF FEES LOANS CAPITALISED,Investment,ASHFORDS,07/06/2022," 15,960.00 ",LAR,80121600,Business law services
"Ministry of Housing, Communities and Local Government",Homes England,LEGAL FEES (PROGRAMME - RDEL),Investment,ASHFORDS,17/06/2022, 600.00 ,LAR,80121600,Business law services
"Ministry of Housing, Communities and Local Government",Homes England,CONTRACT WORKS,Investment,ASHFORDS,28/06/2022," 40,800.00 ",LAR,80121600,Business law services
"Ministry of Housing, Communities and Local Government",Homes England,CONTRACT WORKS,"Markets, Partners & Places",ASHCOURT DEMOLITION LTD,09/06/2022," 9,600.00 ",MIC,72103300,Infrastructure maintenance and repair services
"Ministry of Housing, Communities and Local Government",Homes England,CONTRACT WORKS,"Markets, Partners & Places",ASHCOURT DEMOLITION LTD,09/06/2022," 72,812.88 ",MIC,72103300,Infrastructure maintenance and repair services
"Ministry of Housing, Communities and Local Government",Homes England,MISC PROFESSIONAL FEES,Development,DESIGN MIDLANDS LIMITED,08/06/2022," 2,520.00 ",SMA,81101500,Civil Engineering
"Ministry of Housing, Communities and Local Government",Homes England,CAR LEASING - HIRE CHARGES,Development,ARNOLD CLARK FINANCE LIMITED,08/06/2022,-620.78 ,LAR,25101500,Passenger motor vehicles
"Ministry of Housing, Communities and Local Government",Homes England,CAR LEASING - HIRE CHARGES,Development,ARNOLD CLARK FINANCE LIMITED,08/06/2022,-310.81 ,LAR,25101500,Passenger motor vehicles
"Ministry of Housing, Communities and Local Government",Homes England,CAR LEASING - HIRE CHARGES,"Markets, Partners & Places",ARNOLD CLARK FINANCE LIMITED,08/06/2022, 185.02 ,LAR,25101500,Passenger motor vehicles
"Ministry of Housing, Communities and Local Government",Homes England,CAR LEASING - HIRE CHARGES,"Markets, Partners & Places",ARNOLD CLARK FINANCE LIMITED,08/06/2022, 280.20 ,LAR,25101500,Passenger motor vehicles
"Ministry of Housing, Communities and Local Government",Homes England,CAR LEASING - HIRE CHARGES,Development,ARNOLD CLARK FINANCE LIMITED,08/06/2022, 194.49 ,LAR,25101500,Passenger motor vehicles
"Ministry of Housing, Communities and Local Government",Homes England,CAR LEASING - HIRE CHARGES,Development,ARNOLD CLARK FINANCE LIMITED,08/06/2022, 250.94 ,LAR,25101500,Passenger motor vehicles
"Ministry of Housing, Communities and Local Government",Homes England,CAR LEASING - HIRE CHARGES,Development,ARNOLD CLARK FINANCE LIMITED,08/06/2022, 208.68 ,LAR,25101500,Passenger motor vehicles
"Ministry of Housing, Communities and Local Government",Homes England,CAR LEASING - HIRE CHARGES,Development,ARNOLD CLARK FINANCE LIMITED,08/06/2022, 279.44 ,LAR,25101500,Passenger motor vehicles
"Ministry of Housing, Communities and Local Government",Homes England,CAR LEASING - HIRE CHARGES,Development,ARNOLD CLARK FINANCE LIMITED,08/06/2022, 214.08 ,LAR,25101500,Passenger motor vehicles
"Ministry of Housing, Communities and Local Government",Homes England,CAR LEASING - HIRE CHARGES,Development,ARNOLD CLARK FINANCE LIMITED,08/06/2022, 259.44 ,LAR,25101500,Passenger motor vehicles
"Ministry of Housing, Communities and Local Government",Homes England,CAR LEASING - HIRE CHARGES,Development,ARNOLD CLARK FINANCE LIMITED,08/06/2022, 218.56 ,LAR,25101500,Passenger motor vehicles
"Ministry of Housing, Communities and Local Government",Homes England,CAR LEASING - HIRE CHARGES,Development,ARNOLD CLARK FINANCE LIMITED,08/06/2022, 274.82 ,LAR,25101500,Passenger motor vehicles
"Ministry of Housing, Communities and Local Government",Homes England,CAR LEASING - HIRE CHARGES,"Markets, Partners & Places",ARNOLD CLARK FINANCE LIMITED,08/06/2022, 198.95 ,LAR,25101500,Passenger motor vehicles
"Ministry of Housing, Communities and Local Government",Homes England,CAR LEASING - HIRE CHARGES,"Markets, Partners & Places",ARNOLD CLARK FINANCE LIMITED,08/06/2022, 241.04 ,LAR,25101500,Passenger motor vehicles
"Ministry of Housing, Communities and Local Government",Homes England,CAR LEASING - HIRE CHARGES,"Markets, Partners & Places",ARNOLD CLARK FINANCE LIMITED,08/06/2022, 268.65 ,LAR,25101500,Passenger motor vehicles
"Ministry of Housing, Communities and Local Government",Homes England,CAR LEASING - HIRE CHARGES,"Markets, Partners & Places",ARNOLD CLARK FINANCE LIMITED,08/06/2022, 355.01 ,LAR,25101500,Passenger motor vehicles
"Ministry of Housing, Communities and Local Government",Homes England,CAR LEASING - HIRE CHARGES,Development,ARNOLD CLARK FINANCE LIMITED,08/06/2022, 209.13 ,LAR,25101500,Passenger motor vehicles
"Ministry of Housing, Communities and Local Government",Homes England,CAR LEASING - HIRE CHARGES,Development,ARNOLD CLARK FINANCE LIMITED,08/06/2022, 237.28 ,LAR,25101500,Passenger motor vehicles
"Ministry of Housing, Communities and Local Government",Homes England,CAR LEASING - HIRE CHARGES,Development,ARNOLD CLARK FINANCE LIMITED,08/06/2022, 144.25 ,LAR,25101500,Passenger motor vehicles
"Ministry of Housing, Communities and Local Government",Homes England,CAR LEASING - HIRE CHARGES,Development,ARNOLD CLARK FINANCE LIMITED,08/06/2022, 182.33 ,LAR,25101500,Passenger motor vehicles
"Ministry of Housing, Communities and Local Government",Homes England,CAR LEASING - HIRE CHARGES,Development,ARNOLD CLARK FINANCE LIMITED,08/06/2022, 175.64 ,LAR,25101500,Passenger motor vehicles
"Ministry of Housing, Communities and Local Government",Homes England,CAR LEASING - HIRE CHARGES,Development,ARNOLD CLARK FINANCE LIMITED,08/06/2022, 222.05 ,LAR,25101500,Passenger motor vehicles
"Ministry of Housing, Communities and Local Government",Homes England,CAR LEASING - HIRE CHARGES,Development,ARNOLD CLARK FINANCE LIMITED,09/06/2022, 227.32 ,LAR,25101500,Passenger motor vehicles
"Ministry of Housing, Communities and Local Government",Homes England,CAR LEASING - HIRE CHARGES,Development,ARNOLD CLARK FINANCE LIMITED,09/06/2022, 267.54 ,LAR,25101500,Passenger motor vehicles
"Ministry of Housing, Communities and Local Government",Homes England,CAR LEASING - HIRE CHARGES,Development,ARNOLD CLARK FINANCE LIMITED,27/06/2022," 2,071.87 ",LAR,25101500,Passenger motor vehicles
"Ministry of Housing, Communities and Local Government",Homes England,CAR LEASING - HIRE CHARGES,Development,ARNOLD CLARK FINANCE LIMITED,27/06/2022," 2,360.30 ",LAR,25101500,Passenger motor vehicles
"Ministry of Housing, Communities and Local Government",Homes England,LEGAL FEES (PROGRAMME - RDEL),Investment,BERWIN LEIGHTON PAISNER,01/06/2022," 39,600.00 ",LAR,80121600,Business law services
"Ministry of Housing, Communities and Local Government",Homes England,LEGAL FEES (PROGRAMME - RDEL),Investment,BERWIN LEIGHTON PAISNER,01/06/2022," 48,000.00 ",LAR,80121600,Business law services
"Ministry of Housing, Communities and Local Government",Homes England,LEGAL FEES (PROGRAMME - RDEL),Investment,BERWIN LEIGHTON PAISNER,01/06/2022," 1,800.00 ",LAR,80121600,Business law services
"Ministry of Housing, Communities and Local Government",Homes England,PROF FEES LOANS CAPITALISED,Investment,BERWIN LEIGHTON PAISNER,20/06/2022," 7,407.48 ",LAR,80121600,Business law services
"Ministry of Housing, Communities and Local Government",Homes England,DISPOSAL FEES - LEGAL,"Markets, Partners & Places",BERWIN LEIGHTON PAISNER,20/06/2022," 3,900.00 ",LAR,80121600,Business law services
"Ministry of Housing, Communities and Local Government",Homes England,LEGAL FEES (ADMIN ONLY),Corporate Resources,BERWIN LEIGHTON PAISNER,21/06/2022," 3,762.00 ",LAR,80121600,Business law services
"Ministry of Housing, Communities and Local Government",Homes England,PROF FEES EQUITY CAPITALISED,Investment,BERWIN LEIGHTON PAISNER,22/06/2022," 23,358.00 ",LAR,80121600,Business law services
"Ministry of Housing, Communities and Local Government",Homes England,PROF FEES EQUITY CAPITALISED,Investment,BERWIN LEIGHTON PAISNER,22/06/2022," 14,221.20 ",LAR,80121600,Business law services
"Ministry of Housing, Communities and Local Government",Homes England,LEGAL FEES (PROGRAMME - RDEL),Investment,BERWIN LEIGHTON PAISNER,30/06/2022," 3,392.40 ",LAR,80121600,Business law services
"Ministry of Housing, Communities and Local Government",Homes England,LEGAL FEES (PROGRAMME - RDEL),Development,BROWNE JACOBSON LLP,01/06/2022," 2,436.00 ",LAR,80121600,Business law services
"Ministry of Housing, Communities and Local Government",Homes England,LEGAL FEES (PROGRAMME - RDEL),Development,BROWNE JACOBSON LLP,08/06/2022," 1,200.00 ",LAR,80121600,Business law services
"Ministry of Housing, Communities and Local Government",Homes England,LEGAL FEES (PROGRAMME - RDEL),"Markets, Partners & Places",BROWNE JACOBSON LLP,08/06/2022," 3,024.96 ",LAR,80121600,Business law services
"Ministry of Housing, Communities and Local Government",Homes England,LEGAL FEES (PROGRAMME - RDEL),Development,BROWNE JACOBSON LLP,09/06/2022, 600.00 ,LAR,80121600,Business law services
"Ministry of Housing, Communities and Local Government",Homes England,LEGAL FEES (PROGRAMME - RDEL),Development,BROWNE JACOBSON LLP,10/06/2022, 900.00 ,LAR,80121600,Business law services
"Ministry of Housing, Communities and Local Government",Homes England,DISPOSAL FEES - LEGAL,"Markets, Partners & Places",BROWNE JACOBSON LLP,10/06/2022," 4,305.60 ",LAR,80121600,Business law services
"Ministry of Housing, Communities and Local Government",Homes England,LEGAL FEES (PROGRAMME - RDEL),Development,BROWNE JACOBSON LLP,10/06/2022," 1,500.00 ",LAR,80121600,Business law services
"Ministry of Housing, Communities and Local Government",Homes England,LEGAL FEES (PROGRAMME - RDEL),Development,BROWNE JACOBSON LLP,13/06/2022, 420.00 ,LAR,80121600,Business law services
"Ministry of Housing, Communities and Local Government",Homes England,LEGAL FEES (PROGRAMME - RDEL),Development,BROWNE JACOBSON LLP,27/06/2022," 4,140.00 ",LAR,80121600,Business law services
"Ministry of Housing, Communities and Local Government",Homes England,RI - MONIITORING SURVEYOR FEES,Investment,BUILDING DESIGN PARTNERSHIP,07/06/2022," 2,310.00 ",LAR,81101500,Civil Engineering
"Ministry of Housing, Communities and Local Government",Homes England,RENT PAYABLE,Development,CANAL & RIVER TRUST,08/06/2022, 789.00 ,LAR,80131500,Lease and rental of property or building
"Ministry of Housing, Communities and Local Government",Homes England,CAP GRNTS TO LOCAL AUTHORITIES,Investment,BUCKINGHAMSHIRE COUNTY COUNCIL,28/06/2022," 2,398,782.08 ",PUB,None,Grants
"Ministry of Housing, Communities and Local Government",Homes England,ENGINEERING FEES,Development,STANTEC UK LIMITED,06/06/2022," 2,970.00 ",LAR,81101500,Civil Engineering
"Ministry of Housing, Communities and Local Government",Homes England,OTHER PROFESSIONAL FEES,"Markets, Partners & Places",STANTEC UK LIMITED,07/06/2022," 3,912.00 ",LAR,80131800,Real estate management services
"Ministry of Housing, Communities and Local Government",Homes England,PROJECT MANAGEMENT,"Markets, Partners & Places",STANTEC UK LIMITED,07/06/2022," 26,964.00 ",LAR,80101600,Project management
"Ministry of Housing, Communities and Local Government",Homes England,PROJECT MANAGEMENT,Development,STANTEC UK LIMITED,07/06/2022," 21,747.60 ",LAR,80101600,Project management
"Ministry of Housing, Communities and Local Government",Homes England,PROF FEES LOANS CAPITALISED,Investment,STANTEC UK LIMITED,22/06/2022," 3,000.00 ",LAR,81101500,Civil Engineering
"Ministry of Housing, Communities and Local Government",Homes England,PROF FEES LOANS CAPITALISED,Investment,STANTEC UK LIMITED,22/06/2022," 3,000.00 ",LAR,81101500,Civil Engineering
"Ministry of Housing, Communities and Local Government",Homes England,ENGINEERING CONSULTANTS,"Markets, Partners & Places",STANTEC UK LIMITED,22/06/2022, 446.40 ,LAR,81101500,Civil Engineering
"Ministry of Housing, Communities and Local Government",Homes England,MISC PROFESSIONAL FEES,Development,STANTEC UK LIMITED,29/06/2022," 1,623.60 ",LAR,77101500,Environmental auditing
"Ministry of Housing, Communities and Local Government",Homes England,MISC PROFESSIONAL FEES,Investment,BADENOCH & CLARK,06/06/2022," 3,839.40 ",LAR,80111600,Temporary personnel services
"Ministry of Housing, Communities and Local Government",Homes England,MISC PROFESSIONAL FEES,Investment,BADENOCH & CLARK,08/06/2022," 2,303.64 ",LAR,80111600,Temporary personnel services
"Ministry of Housing, Communities and Local Government",Homes England,MISC PROFESSIONAL FEES,Investment,BADENOCH & CLARK,16/06/2022," 3,839.40 ",LAR,80111600,Temporary personnel services
"Ministry of Housing, Communities and Local Government",Homes England,MISC PROFESSIONAL FEES,Investment,BADENOCH & CLARK,22/06/2022," 3,839.40 ",LAR,80111600,Temporary personnel services
"Ministry of Housing, Communities and Local Government",Homes England,MISC PROFESSIONAL FEES,Investment,BADENOCH & CLARK,29/06/2022," 3,839.40 ",LAR,80111600,Temporary personnel services
"Ministry of Housing, Communities and Local Government",Homes England,RI - MONIITORING SURVEYOR FEES,Investment,RIDER LEVETT BUCKNALL UK LTD,08/06/2022," 2,899.20 ",LAR,81101500,Civil Engineering
"Ministry of Housing, Communities and Local Government",Homes England,PROF FEES LOANS CAPITALISED,Investment,RIDER LEVETT BUCKNALL UK LTD,09/06/2022," 9,120.00 ",LAR,81101500,Civil Engineering
"Ministry of Housing, Communities and Local Government",Homes England,RI - MONIITORING SURVEYOR FEES,Investment,RIDER LEVETT BUCKNALL UK LTD,09/06/2022," 1,170.00 ",LAR,81101500,Civil Engineering
"Ministry of Housing, Communities and Local Government",Homes England,RI - MONIITORING SURVEYOR FEES,Investment,RIDER LEVETT BUCKNALL UK LTD,13/06/2022," 1,569.60 ",LAR,81101500,Civil Engineering
"Ministry of Housing, Communities and Local Government",Homes England,PRINTING & STATIONERY,Development,BANNER,01/06/2022, 398.46 ,LAR,44121600,Desk supplies
"Ministry of Housing, Communities and Local Government",Homes England,PRINTING & STATIONERY,Development,BANNER,01/06/2022," 2,512.65 ",LAR,44121600,Desk supplies
"Ministry of Housing, Communities and Local Government",Homes England,ST FUND LOANS ADDITIONS,Investment,BALLYMORE DEANSTON LIMITED,01/06/2022," 820,648.71 ",SMA,None,Loans
"Ministry of Housing, Communities and Local Government",Homes England,BUILDINGS-ELECTRICITY,Development,BRITISH GAS BUSINESS,21/06/2022," 4,076.86 ",LAR,83101800,Electric utilities
"Ministry of Housing, Communities and Local Government",Homes England,BUILDINGS-ELECTRICITY,Development,BRITISH GAS BUSINESS,22/06/2022, 271.01 ,LAR,83101800,Electric utilities
"Ministry of Housing, Communities and Local Government",Homes England,ST FUND LOANS ADDITIONS,Investment,BROTHER DEVELOPMENTS (WORSTHORNE) LTD,27/06/2022," 179,483.26 ",SMA,None,Loans
"Ministry of Housing, Communities and Local Government",Homes England,MASTERPLANNING FEES,Development,BSG ECOLOGY,17/06/2022, 555.00 ,MED,81101500,Civil Engineering
"Ministry of Housing, Communities and Local Government",Homes England,MASTERPLANNING FEES,Development,BARTON WILLMORE,08/06/2022," 1,800.00 ",LAR,81101500,Civil Engineering
"Ministry of Housing, Communities and Local Government",Homes England,LUHBF Loans Additions,Investment,BARCLAYS BANK PLC,16/06/2022," 361,749.47 ",LAR,None,Loans
"Ministry of Housing, Communities and Local Government",Homes England,ST FUND LOANS ADDITIONS,Investment,BERI PROPERTIES LIMITED,24/06/2022," 30,062.00 ",SMA,None,Loans
"Ministry of Housing, Communities and Local Government",Homes England,BIL Loans at FV Repayments,Investment,BARWOOD HOMES,22/06/2022," 9,900,000.00 ",SMA,None,Loans
"Ministry of Housing, Communities and Local Government",Homes England,1ST PT COST/FEE INC UNINS LOSS,Development,BC LEGAL (OFFICE ACCOUNT),06/06/2022," 1,628.40 ",SMA,80121600,Business law services
"Ministry of Housing, Communities and Local Government",Homes England,PROPERTY SERVICES,"Markets, Partners & Places",BRADLEY HALL LIMITED,07/06/2022," 6,000.00 ",SMA,80131800,Real estate management services
"Ministry of Housing, Communities and Local Government",Homes England,MISC PROFESSIONAL FEES,Investment,BOSTON HALE LTD,23/06/2022," 67,842.18 ",SMA,80111600,Temporary personnel services
"Ministry of Housing, Communities and Local Government",Homes England,Equity - Recharge valuation,Investment,BARKING RIVERSIDE LIMITED,29/06/2022,"-59,940.00 ",MED,None,Loans
"Ministry of Housing, Communities and Local Government",Homes England,Equity - Recharge std MS,Investment,BARKING RIVERSIDE LIMITED,29/06/2022,"-15,000.00 ",MED,None,Loans
"Ministry of Housing, Communities and Local Government",Homes England,Equity - Recharge legal,Investment,BARKING RIVERSIDE LIMITED,29/06/2022,"-10,575.36 ",MED,None,Loans
"Ministry of Housing, Communities and Local Government",Homes England,Barking Riverside Additions,Investment,BARKING RIVERSIDE LIMITED,29/06/2022," 305,939.00 ",MED,None,Loans
"Ministry of Housing, Communities and Local Government",Homes England,ESTATE GENERAL MAINTENANCE,"Markets, Partners & Places",BIRMINGHAM CITY COUNCIL,24/06/2022, 397.55 ,PUB,76122400,Refuse disposal and treatment fees
"Ministry of Housing, Communities and Local Government",Homes England,RI - MONIITORING SURVEYOR FEES,Investment,BNP PARIBAS REAL ESTATE,01/06/2022," 1,020.00 ",LAR,81101500,Civil Engineering
"Ministry of Housing, Communities and Local Government",Homes England,RI - MONIITORING SURVEYOR FEES,Investment,BNP PARIBAS REAL ESTATE,01/06/2022," 1,020.00 ",LAR,81101500,Civil Engineering
"Ministry of Housing, Communities and Local Government",Homes England,RI - MONIITORING SURVEYOR FEES,Investment,BNP PARIBAS REAL ESTATE,01/06/2022," 1,080.00 ",LAR,81101500,Civil Engineering
"Ministry of Housing, Communities and Local Government",Homes England,RI - MONIITORING SURVEYOR FEES,Investment,BNP PARIBAS REAL ESTATE,01/06/2022," 1,080.00 ",LAR,81101500,Civil Engineering
"Ministry of Housing, Communities and Local Government",Homes England,RI - MONIITORING SURVEYOR FEES,Investment,BNP PARIBAS REAL ESTATE,01/06/2022," 6,600.00 ",LAR,81101500,Civil Engineering
"Ministry of Housing, Communities and Local Government",Homes England,RI - MONIITORING SURVEYOR FEES,Investment,BNP PARIBAS REAL ESTATE,01/06/2022," 1,140.00 ",LAR,81101500,Civil Engineering
"Ministry of Housing, Communities and Local Government",Homes England,RI - MONIITORING SURVEYOR FEES,Investment,BNP PARIBAS REAL ESTATE,06/06/2022, 960.00 ,LAR,81101500,Civil Engineering
"Ministry of Housing, Communities and Local Government",Homes England,RI - MONIITORING SURVEYOR FEES,Investment,BNP PARIBAS REAL ESTATE,09/06/2022, 840.00 ,LAR,81101500,Civil Engineering
"Ministry of Housing, Communities and Local Government",Homes England,PROF FEES LOANS CAPITALISED,Investment,BNP PARIBAS REAL ESTATE,09/06/2022, 780.00 ,LAR,81101500,Civil Engineering
"Ministry of Housing, Communities and Local Government",Homes England,RI - MONIITORING SURVEYOR FEES,Investment,BNP PARIBAS REAL ESTATE,09/06/2022, 780.00 ,LAR,81101500,Civil Engineering
"Ministry of Housing, Communities and Local Government",Homes England,RI - MONIITORING SURVEYOR FEES,Investment,BNP PARIBAS REAL ESTATE,09/06/2022, 840.00 ,LAR,81101500,Civil Engineering
"Ministry of Housing, Communities and Local Government",Homes England,RI - MONIITORING SURVEYOR FEES,Investment,BNP PARIBAS REAL ESTATE,10/06/2022," 1,170.00 ",LAR,81101500,Civil Engineering
"Ministry of Housing, Communities and Local Government",Homes England,RI - MONIITORING SURVEYOR FEES,Investment,BNP PARIBAS REAL ESTATE,16/06/2022, 840.00 ,LAR,81101500,Civil Engineering
"Ministry of Housing, Communities and Local Government",Homes England,DISPOSAL FEES - PROPERTY AGENT,Development,BNP PARIBAS REAL ESTATE,23/06/2022, 600.00 ,LAR,80131600,Sale of property and building
"Ministry of Housing, Communities and Local Government",Homes England,RI - MONIITORING SURVEYOR FEES,Investment,BNP PARIBAS REAL ESTATE,27/06/2022," 1,020.00 ",LAR,81101500,Civil Engineering
"Ministry of Housing, Communities and Local Government",Homes England,RI - MONIITORING SURVEYOR FEES,Investment,BNP PARIBAS REAL ESTATE,28/06/2022, 840.00 ,LAR,81101500,Civil Engineering
"Ministry of Housing, Communities and Local Government",Homes England,RI - MONIITORING SURVEYOR FEES,Investment,BNP PARIBAS REAL ESTATE,28/06/2022, 720.00 ,LAR,81101500,Civil Engineering
"Ministry of Housing, Communities and Local Government",Homes England,RI - MONIITORING SURVEYOR FEES,Investment,BNP PARIBAS REAL ESTATE,28/06/2022," 1,140.00 ",LAR,81101500,Civil Engineering
"Ministry of Housing, Communities and Local Government",Homes England,RI - MONIITORING SURVEYOR FEES,Investment,BNP PARIBAS REAL ESTATE,29/06/2022, 840.00 ,LAR,81101500,Civil Engineering
"Ministry of Housing, Communities and Local Government",Homes England,RI - MONIITORING SURVEYOR FEES,Investment,BNP PARIBAS REAL ESTATE,29/06/2022, 780.00 ,LAR,81101500,Civil Engineering
"Ministry of Housing, Communities and Local Government",Homes England,RI - MONIITORING SURVEYOR FEES,Investment,BNP PARIBAS REAL ESTATE,29/06/2022, 720.00 ,LAR,81101500,Civil Engineering
"Ministry of Housing, Communities and Local Government",Homes England,RI - MONIITORING SURVEYOR FEES,Investment,BNP PARIBAS REAL ESTATE,29/06/2022, 840.00 ,LAR,81101500,Civil Engineering
"Ministry of Housing, Communities and Local Government",Homes England,RI - MONIITORING SURVEYOR FEES,Investment,BNP PARIBAS REAL ESTATE,29/06/2022, 840.00 ,LAR,81101500,Civil Engineering
"Ministry of Housing, Communities and Local Government",Homes England,RI - MONIITORING SURVEYOR FEES,Investment,BNP PARIBAS REAL ESTATE,29/06/2022, 840.00 ,LAR,81101500,Civil Engineering
"Ministry of Housing, Communities and Local Government",Homes England,RI - MONIITORING SURVEYOR FEES,Investment,BNP PARIBAS REAL ESTATE,29/06/2022, 960.00 ,LAR,81101500,Civil Engineering
"Ministry of Housing, Communities and Local Government",Homes England,RI - MONIITORING SURVEYOR FEES,Investment,BNP PARIBAS REAL ESTATE,29/06/2022, 840.00 ,LAR,81101500,Civil Engineering
"Ministry of Housing, Communities and Local Government",Homes England,LANDSCAPE MAINT-BUILT ESTATE,Development,BROOKFIELD CONTRACTING & FARMING LTD,20/06/2022, 286.99 ,SMA,72102900,Facility maintenance and repair services
"Ministry of Housing, Communities and Local Government",Homes England,ESTATE GENERAL MAINTENANCE,Development,BROOKFIELD CONTRACTING & FARMING LTD,21/06/2022, 600.00 ,SMA,72101500,Building maintenance and repair services
"Ministry of Housing, Communities and Local Government",Homes England,LEGAL FEES (PROGRAMME - RDEL),Investment,BOND DICKINSON LLP,10/06/2022, 348.00 ,LAR,80121600,Business law services
"Ministry of Housing, Communities and Local Government",Homes England,LEGAL FEES (PROGRAMME - RDEL),Investment,BOND DICKINSON LLP,10/06/2022," 3,972.00 ",LAR,80121600,Business law services
"Ministry of Housing, Communities and Local Government",Homes England,LEGAL FEES (PROGRAMME - RDEL),Investment,BOND DICKINSON LLP,23/06/2022," 1,800.00 ",LAR,80121600,Business law services
"Ministry of Housing, Communities and Local Government",Homes England,CAP GRNTS TO PRIVATE SECTOR,Investment,ISLINGTON GATES MANAGEMENT COMPANY LIMITED,15/06/2022," 1,030,610.63 ",MIC,None,Grants
"Ministry of Housing, Communities and Local Government",Homes England,CAP GRNTS TO PRIVATE SECTOR,Investment,VANTAGE QUAY MANAGEMENT COMPANY LIMITED,27/06/2022," 2,768,040.78 ",MIC,None,Grants
"Ministry of Housing, Communities and Local Government",Homes England,CAP GRNTS TO PRIVATE SECTOR,Investment,RESIDENTIAL MANAGEMENT GROUP LTD,23/06/2022," 1,285,541.45 ",LAR,None,Grants
"Ministry of Housing, Communities and Local Government",Homes England,CAP GRNTS TO PRIVATE SECTOR,Investment,BURTON PLACE (MANCHESTER) MANAGEMENT LTD,20/06/2022," 9,151,194.56 ",MIC,None,Grants
"Ministry of Housing, Communities and Local Government",Homes England,CAP GRNTS PUB SECTOR EXCL L A,Investment,CENTRICK LIMITED,27/06/2022," 781,917.32 ",SMA,None,Grants
"Ministry of Housing, Communities and Local Government",Homes England,CAP GRNTS TO PRIVATE SECTOR,Investment,SKYLINE PLAZA RTM COMPANY LTD,24/06/2022," 265,817.74 ",MIC,None,Grants
"Ministry of Housing, Communities and Local Government",Homes England,CAP GRNTS TO PRIVATE SECTOR,Investment,HVM (CRYSTAL HOUSE) LIMITED,24/06/2022," 281,049.99 ",MIC,None,Grants
"Ministry of Housing, Communities and Local Government",Homes England,CAP GRNTS TO PRIVATE SECTOR,Investment,CENTRICK LIMITED,28/06/2022," 548,853.20 ",SMA,None,Grants
"Ministry of Housing, Communities and Local Government",Homes England,CAP GRNTS PUB SECTOR EXCL L A,Investment,THANET DISTRICT COUNCIL,14/06/2022," 341,627.00 ",PUB,None,Grants
"Ministry of Housing, Communities and Local Government",Homes England,CAP GRNTS TO PRIVATE SECTOR,Investment,THE URBAN EVOLUTION PROPERTY MANAGMENT LTD,27/06/2022," 331,140.00 ",MIC,None,Grants
"Ministry of Housing, Communities and Local Government",Homes England,CAP GRNTS PUB SECTOR EXCL L A,Investment,PRIME MANAGEMENT (PS) LIMITED,07/06/2022," 449,803.00 ",SMA,None,Grants
"Ministry of Housing, Communities and Local Government",Homes England,CAP GRNTS PUB SECTOR EXCL L A,Investment,THANET DISTRICT COUNCIL,07/06/2022," 319,519.00 ",PUB,None,Grants
"Ministry of Housing, Communities and Local Government",Homes England,CAP GRNTS TO PRIVATE SECTOR,Investment,THE SPECTRUM (HADLEIGH ROAD) MANAGEMENT,20/06/2022," 79,566.00 ",SMA,None,Grants
"Ministry of Housing, Communities and Local Government",Homes England,CAP GRNTS TO PRIVATE SECTOR,Investment,Y&Y MANAGEMENT LIMITED,28/06/2022," 128,589.00 ",MED,None,Grants
"Ministry of Housing, Communities and Local Government",Homes England,EXTERNAL COMMUNICATIONS,Sras,COMPASS SERVICES,08/06/2022, 505.91 ,#N/A,90101500,Eating and drinking establishments
"Ministry of Housing, Communities and Local Government",Homes England,PACKAGE MAINTENANCE & SUBSCRIP,Cido,ADVANCED BUSINESS SOLUTIONS,07/06/2022," 110,176.56 ",SMA,43231500,Business function specific software
"Ministry of Housing, Communities and Local Government",Homes England,RI - MONIITORING SURVEYOR FEES,Investment,CAMPBELL REITH,01/06/2022," 1,740.00 ",MED,81101500,Civil Engineering
"Ministry of Housing, Communities and Local Government",Homes England,RI - MONIITORING SURVEYOR FEES,Investment,CAMPBELL REITH,06/06/2022," 1,320.00 ",MED,81101500,Civil Engineering
"Ministry of Housing, Communities and Local Government",Homes England,MASTERPLANNING FEES,"Markets, Partners & Places",CAMPBELL REITH,08/06/2022," 38,012.78 ",MED,81101500,Civil Engineering
"Ministry of Housing, Communities and Local Government",Homes England,RI - MONIITORING SURVEYOR FEES,Investment,CAMPBELL REITH,08/06/2022," 1,320.00 ",MED,81101500,Civil Engineering
"Ministry of Housing, Communities and Local Government",Homes England,LANDSCAPE ARCHITECT FEES,Development,CAMPBELL REITH,08/06/2022," 6,091.57 ",MED,77101700,Environmental advisory services�
"Ministry of Housing, Communities and Local Government",Homes England,OTHER PROFESSIONAL FEES,Development,CAMPBELL REITH,09/06/2022," 7,491.96 ",MED,77101500,Environmental auditing
"Ministry of Housing, Communities and Local Government",Homes England,OTHER PROFESSIONAL FEES,Development,CAMPBELL REITH,09/06/2022," 29,786.32 ",MED,80131800,Real estate management services
"Ministry of Housing, Communities and Local Government",Homes England,ENGINEERING FEES,Development,CAMPBELL REITH,10/06/2022," 1,500.00 ",MED,81101500,Civil Engineering
"Ministry of Housing, Communities and Local Government",Homes England,ENGINEERING FEES,Development,CAMPBELL REITH,16/06/2022, 989.88 ,MED,81101500,Civil Engineering
"Ministry of Housing, Communities and Local Government",Homes England,RI - MONIITORING SURVEYOR FEES,Investment,CAMPBELL REITH,16/06/2022," 1,320.00 ",MED,81101500,Civil Engineering
"Ministry of Housing, Communities and Local Government",Homes England,ENGINEERING CONSULTANTS,Development,CAMPBELL REITH,17/06/2022," 7,444.19 ",MED,81101500,Civil Engineering
"Ministry of Housing, Communities and Local Government",Homes England,MISC PROFESSIONAL FEES,"Markets, Partners & Places",CAMPBELL REITH,20/06/2022," 1,500.00 ",MED,77101500,Environmental auditing
"Ministry of Housing, Communities and Local Government",Homes England,MISC PROFESSIONAL FEES,"Markets, Partners & Places",CAMPBELL REITH,20/06/2022," 1,260.00 ",MED,77101500,Environmental auditing
"Ministry of Housing, Communities and Local Government",Homes England,MISC PROFESSIONAL FEES,Development,CAMPBELL REITH,21/06/2022," 13,454.40 ",MED,81101500,Civil Engineering
"Ministry of Housing, Communities and Local Government",Homes England,MISC PROFESSIONAL FEES,Development,CAMPBELL REITH,22/06/2022," 9,457.43 ",MED,81101500,Civil Engineering
"Ministry of Housing, Communities and Local Government",Homes England,RI - MONIITORING SURVEYOR FEES,Investment,CAMPBELL REITH,24/06/2022," 1,260.00 ",MED,81101500,Civil Engineering
"Ministry of Housing, Communities and Local Government",Homes England,ENGINEERING CONSULTANTS,Development,CAMPBELL REITH,27/06/2022," 14,340.00 ",MED,81101500,Civil Engineering
"Ministry of Housing, Communities and Local Government",Homes England,RI - MONIITORING SURVEYOR FEES,Investment,CAMPBELL REITH,28/06/2022," 1,302.00 ",MED,81101500,Civil Engineering
"Ministry of Housing, Communities and Local Government",Homes England,PROF FEES LOANS CAPITALISED,Investment,CAMPBELL REITH,30/06/2022," 2,280.00 ",MED,81101500,Civil Engineering
"Ministry of Housing, Communities and Local Government",Homes England,OTHER PROFESSIONAL FEES,"Markets, Partners & Places",CARTER JONAS,28/06/2022," 3,300.00 ",LAR,80131800,Real estate management services
"Ministry of Housing, Communities and Local Government",Homes England,PROPERTY SERVICES,Development,CARTER JONAS,30/06/2022," 1,800.00 ",LAR,77101700,Environmental advisory services�
"Ministry of Housing, Communities and Local Government",Homes England,BUILDINGS-GAS,Development,CADENT GAS LIMITED,29/06/2022," 1,656.00 ",LAR,83101600,Oil and gas utilities
"Ministry of Housing, Communities and Local Government",Homes England,TRAINING COURSES & CONFERENCES,Corporate Resources,CILEX LAW SCHOOL,21/06/2022," 3,700.00 ",SMA,86101800,In service training and manpower development
"Ministry of Housing, Communities and Local Government",Homes England,MISC PROFESSIONAL FEES,Investment,CORAL AND BLUE LTD,20/06/2022, 384.00 ,MIC,90111600,Meeting facilities
"Ministry of Housing, Communities and Local Government",Homes England,DATA CENTRE,Cido,CROWN HOSTING DATA CENTRES LIMITED,16/06/2022," 1,415.31 ",SMA,81112000,Data Services
"Ministry of Housing, Communities and Local Government",Homes England,L&OD STRATEGIC - HR USE ONLY,Corporate Resources,CATH BROWN CONSULTANCY,16/06/2022," 1,860.00 ",SMA,86101800,In service training and manpower development
"Ministry of Housing, Communities and Local Government",Homes England,ESTATE GENERAL MAINTENANCE,Development,CHAFFIN WORKS,21/06/2022, 339.60 ,MED,72101500,Building maintenance and repair services
"Ministry of Housing, Communities and Local Government",Homes England,ESTATE GENERAL MAINTENANCE,Development,CHAFFIN WORKS,21/06/2022," 3,130.01 ",MED,72101500,Building maintenance and repair services
"Ministry of Housing, Communities and Local Government",Homes England,ST FUND LOANS ADDITIONS,Investment,C&M CONTRACTORS (MANCHESTER) LTD,06/06/2022," 87,840.34 ",SMA,None,Loans
"Ministry of Housing, Communities and Local Government",Homes England,TRAINING COURSES & CONFERENCES,"Markets, Partners & Places",CIVIL SERVICE COLLEGE LTD,24/06/2022," 3,600.00 ",SMA,86101800,In service training and manpower development
"Ministry of Housing, Communities and Local Government",Homes England,PACKAGE MAINTENANCE & SUBSCRIP,Cido,COMPUTACENTER (UK) LIMITED,13/06/2022," 50,632.80 ",LAR,43231500,Business function specific software
"Ministry of Housing, Communities and Local Government",Homes England,RI - MONIITORING SURVEYOR FEES,Investment,COLLIERS INTERNATIONAL PROPERTY CONSULTANTS,01/06/2022, 810.00 ,LAR,81101500,Civil Engineering
"Ministry of Housing, Communities and Local Government",Homes England,RI - MONIITORING SURVEYOR FEES,Investment,COLLIERS INTERNATIONAL PROPERTY CONSULTANTS,01/06/2022, 810.00 ,LAR,81101500,Civil Engineering
"Ministry of Housing, Communities and Local Government",Homes England,RI - MONIITORING SURVEYOR FEES,Investment,COLLIERS INTERNATIONAL PROPERTY CONSULTANTS,01/06/2022," 1,320.00 ",LAR,81101500,Civil Engineering
"Ministry of Housing, Communities and Local Government",Homes England,RI - MONIITORING SURVEYOR FEES,Investment,COLLIERS INTERNATIONAL PROPERTY CONSULTANTS,07/06/2022, 900.00 ,LAR,81101500,Civil Engineering
"Ministry of Housing, Communities and Local Government",Homes England,RI - MONIITORING SURVEYOR FEES,Investment,COLLIERS INTERNATIONAL PROPERTY CONSULTANTS,07/06/2022, 900.00 ,LAR,81101500,Civil Engineering
"Ministry of Housing, Communities and Local Government",Homes England,RI - MONIITORING SURVEYOR FEES,Investment,COLLIERS INTERNATIONAL PROPERTY CONSULTANTS,07/06/2022, 900.00 ,LAR,81101500,Civil Engineering
"Ministry of Housing, Communities and Local Government",Homes England,RI - MONIITORING SURVEYOR FEES,Investment,COLLIERS INTERNATIONAL PROPERTY CONSULTANTS,07/06/2022, 810.00 ,LAR,81101500,Civil Engineering
"Ministry of Housing, Communities and Local Government",Homes England,RI - MONIITORING SURVEYOR FEES,Investment,COLLIERS INTERNATIONAL PROPERTY CONSULTANTS,07/06/2022, 900.00 ,LAR,81101500,Civil Engineering
"Ministry of Housing, Communities and Local Government",Homes England,RI - MONIITORING SURVEYOR FEES,Investment,COLLIERS INTERNATIONAL PROPERTY CONSULTANTS,07/06/2022, 900.00 ,LAR,81101500,Civil Engineering
"Ministry of Housing, Communities and Local Government",Homes England,RI - MONIITORING SURVEYOR FEES,Investment,COLLIERS INTERNATIONAL PROPERTY CONSULTANTS,07/06/2022, 810.00 ,LAR,81101500,Civil Engineering
"Ministry of Housing, Communities and Local Government",Homes England,RI - MONIITORING SURVEYOR FEES,Investment,COLLIERS INTERNATIONAL PROPERTY CONSULTANTS,09/06/2022, 840.00 ,LAR,81101500,Civil Engineering
"Ministry of Housing, Communities and Local Government",Homes England,PROF FEES LOANS CAPITALISED,Investment,COLLIERS INTERNATIONAL PROPERTY CONSULTANTS,24/06/2022, 810.00 ,LAR,81101500,Civil Engineering
"Ministry of Housing, Communities and Local Government",Homes England,RI - MONIITORING SURVEYOR FEES,Investment,COLLIERS INTERNATIONAL PROPERTY CONSULTANTS,27/06/2022," 1,320.00 ",LAR,81101500,Civil Engineering
"Ministry of Housing, Communities and Local Government",Homes England,RI - MONIITORING SURVEYOR FEES,Investment,COLLIERS INTERNATIONAL PROPERTY CONSULTANTS,28/06/2022, 840.00 ,LAR,81101500,Civil Engineering
"Ministry of Housing, Communities and Local Government",Homes England,SERVICE CHARGE,Development,CHATHAM MARITIME TRUST,01/06/2022," 30,555.60 ",SMA,80131500,Lease and rental of property or building
"Ministry of Housing, Communities and Local Government",Homes England,LEGAL FEES (PROGRAMME - RDEL),Development,CLARKE WILLMOTT LLP,06/06/2022," 2,400.00 ",LAR,80121600,Business law services
"Ministry of Housing, Communities and Local Government",Homes England,DISPOSAL FEES - LEGAL,Development,CLARKE WILLMOTT LLP,06/06/2022," 1,020.00 ",LAR,80121600,Business law services
"Ministry of Housing, Communities and Local Government",Homes England,LEGAL FEES (PROGRAMME - RDEL),Development,CLARKE WILLMOTT LLP,06/06/2022," 1,140.00 ",LAR,80121600,Business law services
"Ministry of Housing, Communities and Local Government",Homes England,PROF FEES LOANS CAPITALISED,Investment,CLARKE WILLMOTT LLP,08/06/2022, 30.00 ,LAR,80121600,Business law services
"Ministry of Housing, Communities and Local Government",Homes England,PROF FEES LOANS CAPITALISED,Investment,CLARKE WILLMOTT LLP,08/06/2022," 19,021.44 ",LAR,80121600,Business law services
"Ministry of Housing, Communities and Local Government",Homes England,LEGAL FEES (PROGRAMME - RDEL),Investment,CLARKE WILLMOTT LLP,30/06/2022, 420.00 ,LAR,80121600,Business law services
"Ministry of Housing, Communities and Local Government",Homes England,CLEANING,Development,CHURCHILL CONTRACT SERVICES LTD,30/06/2022," 3,669.21 ",SMA,76111500,General building and office cleaining and maintenance services
"Ministry of Housing, Communities and Local Government",Homes England,PACKAGE MAINTENANCE & SUBSCRIP,Cido,CDW LIMITED UK,28/06/2022," 237,445.40 ",LAR,43231500,Business function specific software
"Ministry of Housing, Communities and Local Government",Homes England,ST FUND LOANS ADDITIONS,Investment,CONNAH CONSTRUCTION LTD,16/06/2022," 38,845.61 ",MIC,None,Loans
"Ministry of Housing, Communities and Local Government",Homes England,OTHER PROFESSIONAL FEES,Development,CONQUEST CONSULTATION & SECURITY SERVICES LTD,24/06/2022," 4,968.00 ",MIC,80131800,Real estate management services
"Ministry of Housing, Communities and Local Government",Homes England,OTHER PROFESSIONAL FEES,Development,CONQUEST CONSULTATION & SECURITY SERVICES LTD,24/06/2022," 3,822.00 ",MIC,80131800,Real estate management services
"Ministry of Housing, Communities and Local Government",Homes England,TRAINING COURSES & CONFERENCES,Investment,CHARTERED INSTITUTE OF HOUSING,23/06/2022, 600.00 ,MED,86101800,In service training and manpower development
"Ministry of Housing, Communities and Local Government",Homes England,CAP GRNTS TO LOCAL AUTHORITIES,Investment,CENTRAL BEDFORDSHIRE COUNCIL,28/06/2022," 2,013,081.00 ",PUB,None,Grants
"Ministry of Housing, Communities and Local Government",Homes England,SECURITY,Development,C.M.A. (NEMESIS) LTD,07/06/2022, 374.40 ,SMA,70123000,Animal control and welfare services
"Ministry of Housing, Communities and Local Government",Homes England,ESTATE GENERAL MAINTENANCE,Development,C.M.A. (NEMESIS) LTD,29/06/2022, 393.60 ,SMA,70123000,Animal control and welfare services
"Ministry of Housing, Communities and Local Government",Homes England,ESTATE GENERAL MAINTENANCE,Development,FRANK COOPER & SON LIMITED,06/06/2022, 974.30 ,SMA,72101500,Building maintenance and repair services
"Ministry of Housing, Communities and Local Government",Homes England,ESTATE GENERAL MAINTENANCE,"Markets, Partners & Places",FRANK COOPER & SON LIMITED,20/06/2022, 299.21 ,SMA,72101500,Building maintenance and repair services
"Ministry of Housing, Communities and Local Government",Homes England,ESTATE GENERAL MAINTENANCE,Development,FRANK COOPER & SON LIMITED,21/06/2022, 594.40 ,SMA,72101500,Building maintenance and repair services
"Ministry of Housing, Communities and Local Government",Homes England,LUHBF Loans Additions,Investment,CITADEL HOMES (DV1) LIMITED,01/06/2022," 112,561.00 ",MIC,None,Loans
"Ministry of Housing, Communities and Local Government",Homes England,LUHBF Loans Additions,Investment,CITADEL HOMES (DV1) LIMITED,23/06/2022," 159,970.00 ",MIC,None,Loans
"Ministry of Housing, Communities and Local Government",Homes England,OTHER PROFESSIONAL FEES,Development,CWC GROUP,28/06/2022," 346,510.44 ",MED,None,Contributions
"Ministry of Housing, Communities and Local Government",Homes England,OTHER PROFESSIONAL FEES,Development,CWC GROUP,28/06/2022," 1,449,665.00 ",MED,None,Contributions
"Ministry of Housing, Communities and Local Government",Homes England,BUILDINGS-FIRE PREVENTION,"Markets, Partners & Places",C-ELECT ASSOCIATES LIMITED,07/06/2022," 1,565.94 ",SMA,92121700,Security systems services
"Ministry of Housing, Communities and Local Government",Homes England,EXTERNAL BUILDING MAINTENANCE,"Markets, Partners & Places",C-ELECT ASSOCIATES LIMITED,16/06/2022, 782.40 ,SMA,72101500,Building maintenance and repair services
"Ministry of Housing, Communities and Local Government",Homes England,BUILDINGS-FIRE PREVENTION,"Markets, Partners & Places",C-ELECT ASSOCIATES LIMITED,30/06/2022, 595.50 ,SMA,92121700,Security systems services
"Ministry of Housing, Communities and Local Government",Homes England,DRAINS & SEWERS,Development,C-ELECT ASSOCIATES LIMITED,30/06/2022, 817.50 ,SMA,72101500,Building maintenance and repair services
"Ministry of Housing, Communities and Local Government",Homes England,BUILDINGS-GAS,"Markets, Partners & Places",CHESTER & NEWMAN PLUMBING & HEATING SERVICES,22/06/2022, 108.00 ,SMA,83101600,Oil and gas utilities
"Ministry of Housing, Communities and Local Government",Homes England,BUILDINGS-GAS,"Markets, Partners & Places",CHESTER & NEWMAN PLUMBING & HEATING SERVICES,22/06/2022, 156.00 ,SMA,83101600,Oil and gas utilities
"Ministry of Housing, Communities and Local Government",Homes England,EXTERNAL BUILDING MAINTENANCE,"Markets, Partners & Places",CHESTER & NEWMAN PLUMBING & HEATING SERVICES,22/06/2022, 336.00 ,SMA,83101600,Oil and gas utilities
"Ministry of Housing, Communities and Local Government",Homes England,ST FUND LOANS ADDITIONS,Investment,CHERRY TREE DEVELOPMENTS LTD,01/06/2022," 76,597.00 ",SMA,None,Loans
"Ministry of Housing, Communities and Local Government",Homes England,RI - MONIITORING SURVEYOR FEES,Investment,CB RICHARD ELLIS,13/06/2022," 3,000.00 ",LAR,81101500,Civil Engineering
"Ministry of Housing, Communities and Local Government",Homes England,VALUATION FEES,Development,CB RICHARD ELLIS,22/06/2022," 12,000.00 ",LAR,80131800,Real estate management services
"Ministry of Housing, Communities and Local Government",Homes England,LUHBF Loans Additions,Investment,CADAM DEVELOPMENTS LIMITED,30/06/2022," 269,800.52 ",MIC,None,Loans
"Ministry of Housing, Communities and Local Government",Homes England,MANAGEMENT COSTS,Development,COLLIERS INTERNATIONAL,13/06/2022, 527.52 ,LAR,80131500,Lease and rental of property or building
"Ministry of Housing, Communities and Local Government",Homes England,MANAGEMENT COSTS,Development,COLLIERS INTERNATIONAL,13/06/2022, 983.45 ,LAR,80131500,Lease and rental of property or building
"Ministry of Housing, Communities and Local Government",Homes England,MANAGEMENT COSTS,Development,COLLIERS INTERNATIONAL,13/06/2022," 1,115.99 ",LAR,80131500,Lease and rental of property or building
"Ministry of Housing, Communities and Local Government",Homes England,MANAGEMENT COSTS,Development,COLLIERS INTERNATIONAL,13/06/2022," 2,110.59 ",LAR,80131500,Lease and rental of property or building
"Ministry of Housing, Communities and Local Government",Homes England,MASTERPLANNING FEES,Development,CSA ENVIRONMENTAL,22/06/2022," 1,207.51 ",MED,None,Contributions
"Ministry of Housing, Communities and Local Government",Homes England,BUILDINGS-VACANT RATES,"Markets, Partners & Places",COTSWOLD DISTRICT COUNCIL,16/06/2022," 7,918.16 ",PUB,80131500,Lease and rental of property or building
"Ministry of Housing, Communities and Local Government",Homes England,LT FUND LOANS (PS) ADDITIONS,Investment,CAMLAND HYTHE LIMITED,01/06/2022," 359,516.26 ",LAR,None,Loans
"Ministry of Housing, Communities and Local Government",Homes England,LT FUND LOANS (PS) ADDITIONS,Investment,CAMLAND HYTHE LIMITED,28/06/2022," 225,062.66 ",LAR,None,Loans
"Ministry of Housing, Communities and Local Government",Homes England,TRAINING COURSES & CONFERENCES,Corporate Resources,CGI BUSINESS SERVICES LIMITED,16/06/2022, 834.00 ,LAR,86101800,In service training and manpower development
"Ministry of Housing, Communities and Local Government",Homes England,MISC PROFESSIONAL FEES,Corporate Resources,CLEAR REVIEW LIMITED,20/06/2022," 34,752.00 ",SMA,43231500,Business function specific software
"Ministry of Housing, Communities and Local Government",Homes England,ESTATE GENERAL MAINTENANCE,"Markets, Partners & Places",CHANNEL ENGINEERING LTD,01/06/2022, 813.60 ,SMA,72101500,Building maintenance and repair services
"Ministry of Housing, Communities and Local Government",Homes England,ROADS AND CAR PARKS,"Markets, Partners & Places",CHANNEL ENGINEERING LTD,01/06/2022, 270.00 ,SMA,72101500,Building maintenance and repair services
"Ministry of Housing, Communities and Local Government",Homes England,ROADS AND CAR PARKS,"Markets, Partners & Places",CHANNEL ENGINEERING LTD,01/06/2022, 660.00 ,SMA,72101500,Building maintenance and repair services
"Ministry of Housing, Communities and Local Government",Homes England,ESTATE GENERAL MAINTENANCE,"Markets, Partners & Places",CHANNEL ENGINEERING LTD,01/06/2022, 150.00 ,SMA,72101500,Building maintenance and repair services
"Ministry of Housing, Communities and Local Government",Homes England,ESTATE GENERAL MAINTENANCE,"Markets, Partners & Places",CHANNEL ENGINEERING LTD,01/06/2022, 210.00 ,SMA,72101500,Building maintenance and repair services
"Ministry of Housing, Communities and Local Government",Homes England,FENCE MAINTENANCE,"Markets, Partners & Places",CHANNEL ENGINEERING LTD,06/06/2022, 996.00 ,SMA,72102900,Facility maintenance and repair services
"Ministry of Housing, Communities and Local Government",Homes England,FENCE MAINTENANCE,"Markets, Partners & Places",CHANNEL ENGINEERING LTD,06/06/2022," 1,176.00 ",SMA,72102900,Facility maintenance and repair services
"Ministry of Housing, Communities and Local Government",Homes England,ESTATE GENERAL MAINTENANCE,Development,CHANNEL ENGINEERING LTD,07/06/2022, 48.00 ,SMA,72101500,Building maintenance and repair services
"Ministry of Housing, Communities and Local Government",Homes England,ESTATE GENERAL MAINTENANCE,Development,CHANNEL ENGINEERING LTD,07/06/2022, 420.00 ,SMA,72101500,Building maintenance and repair services
"Ministry of Housing, Communities and Local Government",Homes England,ESTATE GENERAL MAINTENANCE,"Markets, Partners & Places",CHANNEL ENGINEERING LTD,07/06/2022, 375.60 ,SMA,72101500,Building maintenance and repair services
"Ministry of Housing, Communities and Local Government",Homes England,ESTATE GENERAL MAINTENANCE,"Markets, Partners & Places",CHANNEL ENGINEERING LTD,07/06/2022," 1,260.00 ",SMA,72101500,Building maintenance and repair services
"Ministry of Housing, Communities and Local Government",Homes England,ESTATE GENERAL MAINTENANCE,"Markets, Partners & Places",CHANNEL ENGINEERING LTD,07/06/2022, 165.60 ,SMA,72101500,Building maintenance and repair services
"Ministry of Housing, Communities and Local Government",Homes England,ESTATE GENERAL MAINTENANCE,"Markets, Partners & Places",CHANNEL ENGINEERING LTD,07/06/2022, 540.00 ,SMA,72101500,Building maintenance and repair services
"Ministry of Housing, Communities and Local Government",Homes England,EXTERNAL BUILDING MAINTENANCE,"Markets, Partners & Places",CHANNEL ENGINEERING LTD,09/06/2022, 273.60 ,SMA,72101500,Building maintenance and repair services
"Ministry of Housing, Communities and Local Government",Homes England,EXTERNAL BUILDING MAINTENANCE,"Markets, Partners & Places",CHANNEL ENGINEERING LTD,09/06/2022, 540.00 ,SMA,72101500,Building maintenance and repair services
"Ministry of Housing, Communities and Local Government",Homes England,EXTERNAL BUILDING MAINTENANCE,Development,CHANNEL ENGINEERING LTD,20/06/2022, 36.00 ,SMA,72101500,Building maintenance and repair services
"Ministry of Housing, Communities and Local Government",Homes England,EXTERNAL BUILDING MAINTENANCE,Development,CHANNEL ENGINEERING LTD,20/06/2022, 270.00 ,SMA,72101500,Building maintenance and repair services
"Ministry of Housing, Communities and Local Government",Homes England,ESTATE GENERAL MAINTENANCE,"Markets, Partners & Places",CHANNEL ENGINEERING LTD,24/06/2022, 78.00 ,SMA,72101500,Building maintenance and repair services
"Ministry of Housing, Communities and Local Government",Homes England,ESTATE GENERAL MAINTENANCE,"Markets, Partners & Places",CHANNEL ENGINEERING LTD,24/06/2022, 270.00 ,SMA,72101500,Building maintenance and repair services
"Ministry of Housing, Communities and Local Government",Homes England,ROADS AND CAR PARKS,Development,CHANNEL ENGINEERING LTD,24/06/2022, 33.60 ,SMA,72101500,Building maintenance and repair services
"Ministry of Housing, Communities and Local Government",Homes England,ROADS AND CAR PARKS,Development,CHANNEL ENGINEERING LTD,24/06/2022, 270.00 ,SMA,72101500,Building maintenance and repair services
"Ministry of Housing, Communities and Local Government",Homes England,ESTATE GENERAL MAINTENANCE,Development,EQUANS FM LIMITED,24/06/2022," 1,721.17 ",LAR,72101500,Building maintenance and repair services
"Ministry of Housing, Communities and Local Government",Homes England,LEGAL FEES (PROGRAMME - RDEL),Investment,MILLS & REEVE,08/06/2022, 452.34 ,LAR,80121600,Business law services
"Ministry of Housing, Communities and Local Government",Homes England,LEGAL FEES (PROGRAMME - RDEL),Investment,MILLS & REEVE,08/06/2022," 22,353.89 ",LAR,80121600,Business law services
"Ministry of Housing, Communities and Local Government",Homes England,LEGAL FEES (PROGRAMME - CDEL),Development,MILLS & REEVE,08/06/2022," 13,282.80 ",LAR,80121600,Business law services
"Ministry of Housing, Communities and Local Government",Homes England,LEGAL FEES (PROGRAMME - CDEL),Development,MILLS & REEVE,08/06/2022," 18,464.40 ",LAR,80121600,Business law services
"Ministry of Housing, Communities and Local Government",Homes England,LEGAL FEES (PROGRAMME - CDEL),Development,MILLS & REEVE,10/06/2022," 9,000.00 ",LAR,80121600,Business law services
"Ministry of Housing, Communities and Local Government",Homes England,LEGAL FEES (PROGRAMME - RDEL),Investment,MILLS & REEVE,28/06/2022," 16,179.24 ",LAR,80121600,Business law services
"Ministry of Housing, Communities and Local Government",Homes England,ENGINEERING CONSULTANTS,Development,TETRA TECH ENVIRONMENT PLANNING TRANSPORT LTD,01/06/2022," 10,272.00 ",LAR,81101500,Civil Engineering
"Ministry of Housing, Communities and Local Government",Homes England,DATA CENTRE,Cido,OASIS UK NORTH LIMITED,16/06/2022, 641.18 ,LAR,43222600,Network service equipment
"Ministry of Housing, Communities and Local Government",Homes England,PROPERTY SERVICES,"Markets, Partners & Places",DRIVERS JONAS DELOITTE,21/06/2022," 25,509.60 ",LAR,80111600,Temporary personnel services
"Ministry of Housing, Communities and Local Government",Homes England,MISC PROFESSIONAL FEES,"Markets, Partners & Places",DRIVERS JONAS DELOITTE,21/06/2022," 30,149.48 ",LAR,80111600,Temporary personnel services
"Ministry of Housing, Communities and Local Government",Homes England,RI - MONIITORING SURVEYOR FEES,Investment,CUSHMAN & WAKEFIELD DEBENHAM TIE LEUNG,01/06/2022, 960.00 ,LAR,81101500,Civil Engineering
"Ministry of Housing, Communities and Local Government",Homes England,RI - MONIITORING SURVEYOR FEES,Investment,CUSHMAN & WAKEFIELD DEBENHAM TIE LEUNG,06/06/2022, 900.00 ,LAR,81101500,Civil Engineering
"Ministry of Housing, Communities and Local Government",Homes England,PROF FEES LOANS CAPITALISED,Investment,CUSHMAN & WAKEFIELD DEBENHAM TIE LEUNG,06/06/2022," 3,120.00 ",LAR,81101500,Civil Engineering
"Ministry of Housing, Communities and Local Government",Homes England,VALUATION FEES,Development,CUSHMAN & WAKEFIELD DEBENHAM TIE LEUNG,06/06/2022," 47,982.64 ",LAR,80131800,Real estate management services
"Ministry of Housing, Communities and Local Government",Homes England,RI - MONIITORING SURVEYOR FEES,Investment,CUSHMAN & WAKEFIELD DEBENHAM TIE LEUNG,07/06/2022, 900.00 ,LAR,81101500,Civil Engineering
"Ministry of Housing, Communities and Local Government",Homes England,PROF FEES LOANS CAPITALISED,Investment,CUSHMAN & WAKEFIELD DEBENHAM TIE LEUNG,07/06/2022, 840.00 ,LAR,81101500,Civil Engineering
"Ministry of Housing, Communities and Local Government",Homes England,PROF FEES LOANS CAPITALISED,Investment,CUSHMAN & WAKEFIELD DEBENHAM TIE LEUNG,07/06/2022, 900.00 ,LAR,81101500,Civil Engineering
"Ministry of Housing, Communities and Local Government",Homes England,RI - MONIITORING SURVEYOR FEES,Investment,CUSHMAN & WAKEFIELD DEBENHAM TIE LEUNG,07/06/2022, 900.00 ,LAR,81101500,Civil Engineering
"Ministry of Housing, Communities and Local Government",Homes England,RI - MONIITORING SURVEYOR FEES,Investment,CUSHMAN & WAKEFIELD DEBENHAM TIE LEUNG,07/06/2022, 870.00 ,LAR,81101500,Civil Engineering
"Ministry of Housing, Communities and Local Government",Homes England,MISC PROFESSIONAL FEES,Development,CUSHMAN & WAKEFIELD DEBENHAM TIE LEUNG,07/06/2022," 1,020.00 ",LAR,80131800,Real estate management services
"Ministry of Housing, Communities and Local Government",Homes England,RI - MONIITORING SURVEYOR FEES,Investment,CUSHMAN & WAKEFIELD DEBENHAM TIE LEUNG,07/06/2022, 900.00 ,LAR,81101500,Civil Engineering
"Ministry of Housing, Communities and Local Government",Homes England,RI - MONIITORING SURVEYOR FEES,Investment,CUSHMAN & WAKEFIELD DEBENHAM TIE LEUNG,07/06/2022, 840.00 ,LAR,81101500,Civil Engineering
"Ministry of Housing, Communities and Local Government",Homes England,PROPERTY SERVICES,Development,CUSHMAN & WAKEFIELD DEBENHAM TIE LEUNG,08/06/2022," 9,600.00 ",LAR,80131800,Real estate management services
"Ministry of Housing, Communities and Local Government",Homes England,RI - MONIITORING SURVEYOR FEES,Investment,CUSHMAN & WAKEFIELD DEBENHAM TIE LEUNG,09/06/2022, 900.00 ,LAR,81101500,Civil Engineering
"Ministry of Housing, Communities and Local Government",Homes England,RI - MONIITORING SURVEYOR FEES,Investment,CUSHMAN & WAKEFIELD DEBENHAM TIE LEUNG,09/06/2022," 1,020.00 ",LAR,81101500,Civil Engineering
"Ministry of Housing, Communities and Local Government",Homes England,RI - MONIITORING SURVEYOR FEES,Investment,CUSHMAN & WAKEFIELD DEBENHAM TIE LEUNG,09/06/2022," 1,020.00 ",LAR,81101500,Civil Engineering
"Ministry of Housing, Communities and Local Government",Homes England,RI - MONIITORING SURVEYOR FEES,Investment,CUSHMAN & WAKEFIELD DEBENHAM TIE LEUNG,09/06/2022, 960.00 ,LAR,81101500,Civil Engineering
"Ministry of Housing, Communities and Local Government",Homes England,PROPERTY SERVICES,"Markets, Partners & Places",CUSHMAN & WAKEFIELD DEBENHAM TIE LEUNG,09/06/2022," 1,020.00 ",LAR,80131800,Real estate management services
"Ministry of Housing, Communities and Local Government",Homes England,RI - MONIITORING SURVEYOR FEES,Investment,CUSHMAN & WAKEFIELD DEBENHAM TIE LEUNG,09/06/2022, 840.00 ,LAR,81101500,Civil Engineering
"Ministry of Housing, Communities and Local Government",Homes England,VALUATION FEES,Development,CUSHMAN & WAKEFIELD DEBENHAM TIE LEUNG,10/06/2022, 211.20 ,LAR,80131800,Real estate management services
"Ministry of Housing, Communities and Local Government",Homes England,VALUATION FEES,Development,CUSHMAN & WAKEFIELD DEBENHAM TIE LEUNG,10/06/2022," 4,200.00 ",LAR,80131800,Real estate management services
"Ministry of Housing, Communities and Local Government",Homes England,RI - MONIITORING SURVEYOR FEES,Investment,CUSHMAN & WAKEFIELD DEBENHAM TIE LEUNG,13/06/2022, 960.00 ,LAR,81101500,Civil Engineering
"Ministry of Housing, Communities and Local Government",Homes England,MANAGEMENT COSTS,Development,CUSHMAN & WAKEFIELD DEBENHAM TIE LEUNG,16/06/2022," 2,075.63 ",LAR,80131800,Real estate management services
"Ministry of Housing, Communities and Local Government",Homes England,RI - MONIITORING SURVEYOR FEES,Investment,CUSHMAN & WAKEFIELD DEBENHAM TIE LEUNG,21/06/2022, 840.00 ,LAR,81101500,Civil Engineering
"Ministry of Housing, Communities and Local Government",Homes England,MISC PROFESSIONAL FEES,Investment,CUSHMAN & WAKEFIELD DEBENHAM TIE LEUNG,23/06/2022," 13,037.84 ",LAR,80131800,Real estate management services
"Ministry of Housing, Communities and Local Government",Homes England,PROPERTY SERVICES,Development,CUSHMAN & WAKEFIELD DEBENHAM TIE LEUNG,24/06/2022, 810.04 ,LAR,80131800,Real estate management services
"Ministry of Housing, Communities and Local Government",Homes England,PROPERTY SERVICES,Development,CUSHMAN & WAKEFIELD DEBENHAM TIE LEUNG,24/06/2022," 2,075.63 ",LAR,80131800,Real estate management services
"Ministry of Housing, Communities and Local Government",Homes England,PROPERTY SERVICES,Development,CUSHMAN & WAKEFIELD DEBENHAM TIE LEUNG,24/06/2022," 1,768.13 ",LAR,80131800,Real estate management services
"Ministry of Housing, Communities and Local Government",Homes England,PROPERTY SERVICES,Development,CUSHMAN & WAKEFIELD DEBENHAM TIE LEUNG,24/06/2022," 1,768.13 ",LAR,80131800,Real estate management services
"Ministry of Housing, Communities and Local Government",Homes England,PROPERTY SERVICES,Development,CUSHMAN & WAKEFIELD DEBENHAM TIE LEUNG,24/06/2022," 1,768.13 ",LAR,80131800,Real estate management services
"Ministry of Housing, Communities and Local Government",Homes England,PROPERTY SERVICES,Development,CUSHMAN & WAKEFIELD DEBENHAM TIE LEUNG,24/06/2022," 5,457.59 ",LAR,80131800,Real estate management services
"Ministry of Housing, Communities and Local Government",Homes England,PROPERTY SERVICES,Development,CUSHMAN & WAKEFIELD DEBENHAM TIE LEUNG,24/06/2022, 972.04 ,LAR,80131800,Real estate management services
"Ministry of Housing, Communities and Local Government",Homes England,PROPERTY SERVICES,Development,CUSHMAN & WAKEFIELD DEBENHAM TIE LEUNG,24/06/2022," 3,624.66 ",LAR,80131800,Real estate management services
"Ministry of Housing, Communities and Local Government",Homes England,PROPERTY SERVICES,Development,CUSHMAN & WAKEFIELD DEBENHAM TIE LEUNG,24/06/2022," 1,296.05 ",LAR,80131800,Real estate management services
"Ministry of Housing, Communities and Local Government",Homes England,PROPERTY SERVICES,Development,CUSHMAN & WAKEFIELD DEBENHAM TIE LEUNG,24/06/2022, 891.04 ,LAR,80131800,Real estate management services
"Ministry of Housing, Communities and Local Government",Homes England,PROPERTY SERVICES,Development,CUSHMAN & WAKEFIELD DEBENHAM TIE LEUNG,24/06/2022," 2,511.10 ",LAR,80131800,Real estate management services
"Ministry of Housing, Communities and Local Government",Homes England,PROPERTY SERVICES,Development,CUSHMAN & WAKEFIELD DEBENHAM TIE LEUNG,24/06/2022, 891.04 ,LAR,80131800,Real estate management services
"Ministry of Housing, Communities and Local Government",Homes England,PROPERTY SERVICES,Development,CUSHMAN & WAKEFIELD DEBENHAM TIE LEUNG,24/06/2022," 2,998.13 ",LAR,80131800,Real estate management services
"Ministry of Housing, Communities and Local Government",Homes England,PROPERTY SERVICES,Development,CUSHMAN & WAKEFIELD DEBENHAM TIE LEUNG,24/06/2022," 1,768.13 ",LAR,80131800,Real estate management services
"Ministry of Housing, Communities and Local Government",Homes England,PROPERTY SERVICES,Development,CUSHMAN & WAKEFIELD DEBENHAM TIE LEUNG,24/06/2022," 2,383.13 ",LAR,80131800,Real estate management services
"Ministry of Housing, Communities and Local Government",Homes England,PROPERTY SERVICES,Development,CUSHMAN & WAKEFIELD DEBENHAM TIE LEUNG,24/06/2022," 1,725.00 ",LAR,80131800,Real estate management services
"Ministry of Housing, Communities and Local Government",Homes England,PROPERTY SERVICES,Development,CUSHMAN & WAKEFIELD DEBENHAM TIE LEUNG,27/06/2022," 1,085.45 ",LAR,80131800,Real estate management services
"Ministry of Housing, Communities and Local Government",Homes England,RI - MONIITORING SURVEYOR FEES,Investment,CUSHMAN & WAKEFIELD DEBENHAM TIE LEUNG,29/06/2022," 2,160.00 ",LAR,81101500,Civil Engineering
"Ministry of Housing, Communities and Local Government",Homes England,PROF FEES LOANS CAPITALISED,Investment,CUSHMAN & WAKEFIELD DEBENHAM TIE LEUNG,29/06/2022," 3,900.00 ",LAR,81101500,Civil Engineering
"Ministry of Housing, Communities and Local Government",Homes England,RI - MONIITORING SURVEYOR FEES,Investment,CUSHMAN & WAKEFIELD DEBENHAM TIE LEUNG,29/06/2022," 1,020.00 ",LAR,81101500,Civil Engineering
"Ministry of Housing, Communities and Local Government",Homes England,INTERNAL COMMUNICATIONS,"Markets, Partners & Places",DARWIN PRESS,29/06/2022, 250.80 ,SMA,80141600,Sales and business promotion activities
"Ministry of Housing, Communities and Local Government",Homes England,INTERNAL COMMUNICATIONS,"Markets, Partners & Places",DARWIN PRESS,29/06/2022," 1,312.80 ",SMA,80141600,Sales and business promotion activities
"Ministry of Housing, Communities and Local Government",Homes England,INTERNAL COMMUNICATIONS,"Markets, Partners & Places",DARWIN PRESS,29/06/2022," 2,155.20 ",SMA,80141600,Sales and business promotion activities
"Ministry of Housing, Communities and Local Government",Homes England,CONTRACT WORKS,"Markets, Partners & Places",DUNELM GEOTECHNICAL & ENVIRONMENTAL LTD,07/06/2022," 34,363.44 ",MED,72141500,Land preparation services
"Ministry of Housing, Communities and Local Government",Homes England,MISC PROFESSIONAL FEES,Development,DESIGNE LTD,06/06/2022," 2,400.00 ",MIC,81101500,Civil Engineering
"Ministry of Housing, Communities and Local Government",Homes England,LEGAL FEES (PROGRAMME - RDEL),"Markets, Partners & Places",DWF LLP,10/06/2022, 533.29 ,LAR,80121600,Business law services
"Ministry of Housing, Communities and Local Government",Homes England,LEGAL FEES (PROGRAMME - RDEL),Development,DWF LLP,13/06/2022, 300.00 ,LAR,80121600,Business law services
"Ministry of Housing, Communities and Local Government",Homes England,DISPOSAL FEES - LEGAL,"Markets, Partners & Places",DWF LLP,16/06/2022, 279.00 ,LAR,80121600,Business law services
"Ministry of Housing, Communities and Local Government",Homes England,LEGAL FEES (PROGRAMME - RDEL),"Markets, Partners & Places",DWF LLP,24/06/2022," 1,360.80 ",LAR,80121600,Business law services
"Ministry of Housing, Communities and Local Government",Homes England,LEGAL FEES (PROGRAMME - RDEL),"Markets, Partners & Places",DWF LLP,24/06/2022, 855.00 ,LAR,80121600,Business law services
"Ministry of Housing, Communities and Local Government",Homes England,ST FUND LOANS ADDITIONS,Investment,DURLEY ROAD DEVELOPMENTS LLP,10/06/2022," 890,000.00 ",SMA,None,Loans
"Ministry of Housing, Communities and Local Government",Homes England,TAXIS,Development,DEAN TAXI LIMITED,07/06/2022, 26.88 ,SMA,78111800,Passenger road transportation
"Ministry of Housing, Communities and Local Government",Homes England,TAXIS,Development,DEAN TAXI LIMITED,07/06/2022, 224.00 ,SMA,78111800,Passenger road transportation
"Ministry of Housing, Communities and Local Government",Homes England,CONTRACT WORKS,Development,DCS ENVIRONMENTAL LTD,01/06/2022," 2,160.00 ",SMA,72102900,Building maintenance and repair services
"Ministry of Housing, Communities and Local Government",Homes England,ESTATE GENERAL MAINTENANCE,Development,THE WATT GROUP (NORTH EAST) LTD,20/06/2022, 264.00 ,SMA,72101500,Building maintenance and repair services
"Ministry of Housing, Communities and Local Government",Homes England,ESTATE GENERAL MAINTENANCE,Development,THE WATT GROUP (NORTH EAST) LTD,20/06/2022," 1,116.00 ",SMA,72101500,Building maintenance and repair services
"Ministry of Housing, Communities and Local Government",Homes England,BIL Loans at FV Repayments,Investment,DAVIDSONS PROPERTIES LTD,22/06/2022," 7,475,000.00 ",MIC,None,Loans
"Ministry of Housing, Communities and Local Government",Homes England,NETWORKS,Cido,DAISY CORPORATE SERVICES TRADING LIMITED,16/06/2022," 6,538.63 ",LAR,81112100,Internet Services
"Ministry of Housing, Communities and Local Government",Homes England,ESTATE GENERAL MAINTENANCE,Development,DYNAMICS SECURITY SERVICES UK LTD,16/06/2022, 887.75 ,MIC,72101500,Building maintenance and repair services
"Ministry of Housing, Communities and Local Government",Homes England,ESTATE GENERAL MAINTENANCE,Development,DYNAMICS SECURITY SERVICES UK LTD,16/06/2022," 1,065.30 ",MIC,72101500,Building maintenance and repair services
"Ministry of Housing, Communities and Local Government",Homes England,ESTATE GENERAL MAINTENANCE,Development,DYNAMICS SECURITY SERVICES UK LTD,16/06/2022, 887.76 ,MIC,72101500,Building maintenance and repair services
"Ministry of Housing, Communities and Local Government",Homes England,LEGAL FEES (ADMIN ONLY),Corporate Resources,DWF LAW LLP,07/06/2022, 600.00 ,LAR,80121600,Business law services
"Ministry of Housing, Communities and Local Government",Homes England,AGENCY STAFF,Investment,DWF LAW LLP,07/06/2022, 600.00 ,LAR,80121600,Business law services
"Ministry of Housing, Communities and Local Government",Homes England,LEGAL FEES (PROGRAMME - RDEL),Investment,DWF LAW LLP,07/06/2022," 3,000.00 ",LAR,80121600,Business law services
"Ministry of Housing, Communities and Local Government",Homes England,AGENCY STAFF,Development,DWF LAW LLP,08/06/2022, 420.00 ,LAR,80121600,Business law services
"Ministry of Housing, Communities and Local Government",Homes England,LEGAL FEES (ADMIN ONLY),Cido,DWF LAW LLP,09/06/2022, 288.00 ,LAR,80121600,Business law services
"Ministry of Housing, Communities and Local Government",Homes England,LEGAL FEES (ADMIN ONLY),Cido,DWF LAW LLP,09/06/2022, 600.00 ,LAR,80121600,Business law services
"Ministry of Housing, Communities and Local Government",Homes England,LEGAL FEES (ADMIN ONLY),Cido,DWF LAW LLP,09/06/2022, 420.00 ,LAR,80121600,Business law services
"Ministry of Housing, Communities and Local Government",Homes England,LEGAL FEES (ADMIN ONLY),Cido,DWF LAW LLP,09/06/2022, 420.00 ,LAR,80121600,Business law services
"Ministry of Housing, Communities and Local Government",Homes England,LEGAL FEES (ADMIN ONLY),Cido,DWF LAW LLP,09/06/2022, 600.00 ,LAR,80121600,Business law services
"Ministry of Housing, Communities and Local Government",Homes England,LEGAL FEES (ADMIN ONLY),Cido,DWF LAW LLP,09/06/2022, 600.00 ,LAR,80121600,Business law services
"Ministry of Housing, Communities and Local Government",Homes England,LEGAL FEES (ADMIN ONLY),Cido,DWF LAW LLP,09/06/2022, 600.00 ,LAR,80121600,Business law services
"Ministry of Housing, Communities and Local Government",Homes England,LEGAL FEES (ADMIN ONLY),Cido,DWF LAW LLP,09/06/2022, 600.00 ,LAR,80121600,Business law services
"Ministry of Housing, Communities and Local Government",Homes England,LEGAL FEES (ADMIN ONLY),Cido,DWF LAW LLP,09/06/2022, 600.00 ,LAR,80121600,Business law services
"Ministry of Housing, Communities and Local Government",Homes England,LEGAL FEES (ADMIN ONLY),Cido,DWF LAW LLP,09/06/2022, 600.00 ,LAR,80121600,Business law services
"Ministry of Housing, Communities and Local Government",Homes England,LEGAL FEES (ADMIN ONLY),Cido,DWF LAW LLP,09/06/2022, 600.00 ,LAR,80121600,Business law services
"Ministry of Housing, Communities and Local Government",Homes England,LEGAL FEES (PROGRAMME - RDEL),Development,DWF LAW LLP,09/06/2022, 20.00 ,LAR,80121600,Business law services
"Ministry of Housing, Communities and Local Government",Homes England,LEGAL FEES (PROGRAMME - RDEL),Development,DWF LAW LLP,09/06/2022," 7,158.72 ",LAR,80121600,Business law services
"Ministry of Housing, Communities and Local Government",Homes England,LEGAL FEES (PROGRAMME - CDEL),Development,DWF LAW LLP,10/06/2022, 540.00 ,LAR,80121600,Business law services
"Ministry of Housing, Communities and Local Government",Homes England,LEGAL FEES (PROGRAMME - RDEL),Development,DWF LAW LLP,10/06/2022, 420.00 ,LAR,80121600,Business law services
"Ministry of Housing, Communities and Local Government",Homes England,LEGAL FEES (PROGRAMME - RDEL),Development,DWF LAW LLP,13/06/2022, 409.20 ,LAR,80121600,Business law services
"Ministry of Housing, Communities and Local Government",Homes England,LEGAL FEES (PROGRAMME - CDEL),Development,DWF LAW LLP,16/06/2022, 367.20 ,LAR,80121600,Business law services
"Ministry of Housing, Communities and Local Government",Homes England,DISPOSAL FEES - LEGAL,Development,DWF LAW LLP,16/06/2022, 651.00 ,LAR,80121600,Business law services
"Ministry of Housing, Communities and Local Government",Homes England,LEGAL FEES (PROGRAMME - CDEL),Development,DWF LAW LLP,16/06/2022," 1,432.20 ",LAR,80121600,Business law services
"Ministry of Housing, Communities and Local Government",Homes England,LEGAL FEES (PROGRAMME - CDEL),Development,DWF LAW LLP,16/06/2022," 2,046.00 ",LAR,80121600,Business law services
"Ministry of Housing, Communities and Local Government",Homes England,LEGAL FEES (ADMIN ONLY),Corporate Resources,DWF LAW LLP,16/06/2022, 420.00 ,LAR,80121600,Business law services
"Ministry of Housing, Communities and Local Government",Homes England,LEGAL FEES (ADMIN ONLY),Cido,DWF LAW LLP,17/06/2022, 600.00 ,LAR,80121600,Business law services
"Ministry of Housing, Communities and Local Government",Homes England,LEGAL FEES (ADMIN ONLY),Cido,DWF LAW LLP,17/06/2022, 600.00 ,LAR,80121600,Business law services
"Ministry of Housing, Communities and Local Government",Homes England,LEGAL FEES (ADMIN ONLY),Cido,DWF LAW LLP,17/06/2022, 600.00 ,LAR,80121600,Business law services
"Ministry of Housing, Communities and Local Government",Homes England,LEGAL FEES (ADMIN ONLY),Cido,DWF LAW LLP,17/06/2022, 420.00 ,LAR,80121600,Business law services
"Ministry of Housing, Communities and Local Government",Homes England,LEGAL FEES (ADMIN ONLY),Cido,DWF LAW LLP,17/06/2022, 600.00 ,LAR,80121600,Business law services
"Ministry of Housing, Communities and Local Government",Homes England,LEGAL FEES (ADMIN ONLY),Cido,DWF LAW LLP,17/06/2022, 600.00 ,LAR,80121600,Business law services
"Ministry of Housing, Communities and Local Government",Homes England,LEGAL FEES (ADMIN ONLY),Cido,DWF LAW LLP,17/06/2022, 420.00 ,LAR,80121600,Business law services
"Ministry of Housing, Communities and Local Government",Homes England,LEGAL FEES (ADMIN ONLY),Cido,DWF LAW LLP,17/06/2022, 600.00 ,LAR,80121600,Business law services
"Ministry of Housing, Communities and Local Government",Homes England,LEGAL FEES (ADMIN ONLY),Cido,DWF LAW LLP,17/06/2022, 600.00 ,LAR,80121600,Business law services
"Ministry of Housing, Communities and Local Government",Homes England,LEGAL FEES (ADMIN ONLY),Cido,DWF LAW LLP,17/06/2022, 600.00 ,LAR,80121600,Business law services
"Ministry of Housing, Communities and Local Government",Homes England,LEGAL FEES (PROGRAMME - RDEL),Development,DWF LAW LLP,20/06/2022, 360.00 ,LAR,80121600,Business law services
"Ministry of Housing, Communities and Local Government",Homes England,LEGAL FEES (PROGRAMME - CDEL),"Markets, Partners & Places",DWF LAW LLP,20/06/2022," 36,000.00 ",LAR,80121600,Business law services
"Ministry of Housing, Communities and Local Government",Homes England,LEGAL FEES (ADMIN ONLY),Cido,DWF LAW LLP,20/06/2022, 600.00 ,LAR,80121600,Business law services
"Ministry of Housing, Communities and Local Government",Homes England,DISPOSAL FEES - LEGAL,Development,DWF LAW LLP,23/06/2022, 762.60 ,LAR,80121600,Business law services
"Ministry of Housing, Communities and Local Government",Homes England,LEGAL FEES (PROGRAMME - RDEL),Development,DWF LAW LLP,23/06/2022, 852.56 ,LAR,80121600,Business law services
"Ministry of Housing, Communities and Local Government",Homes England,LEGAL FEES (PROGRAMME - CDEL),Development,DWF LAW LLP,27/06/2022," 2,000.00 ",LAR,80121600,Business law services
"Ministry of Housing, Communities and Local Government",Homes England,LEGAL FEES (PROGRAMME - RDEL),Development,DWF LAW LLP,29/06/2022," 4,227.84 ",LAR,80121600,Business law services
"Ministry of Housing, Communities and Local Government",Homes England,MISC PROFESSIONAL FEES,Investment,DB GROUP LTD T/A ESUASIVE,10/06/2022," 3,672.00 ",SMA,80111600,Temporary personnel services
"Ministry of Housing, Communities and Local Government",Homes England,PACKAGE MAINTENANCE & SUBSCRIP,Cido,DB GROUP LTD T/A ESUASIVE,13/06/2022," 1,377.00 ",SMA,80111600,Temporary personnel services
"Ministry of Housing, Communities and Local Government",Homes England,ENGINEERING FEES,"Markets, Partners & Places",WOOD ENVIRONMENT & INFRASTRUCTURE SOLUTIONS,06/06/2022," 3,625.08 ",LAR,81101500,Civil Engineering
"Ministry of Housing, Communities and Local Government",Homes England,LEGAL FEES (PROGRAMME - CDEL),Development,WOOD ENVIRONMENT & INFRASTRUCTURE SOLUTIONS,07/06/2022," 23,561.78 ",LAR,80121600,Business law services
"Ministry of Housing, Communities and Local Government",Homes England,PROJECT MANAGEMENT,Development,WOOD ENVIRONMENT & INFRASTRUCTURE SOLUTIONS,09/06/2022," 74,971.20 ",LAR,80101600,Project management
"Ministry of Housing, Communities and Local Government",Homes England,OTHER PROFESSIONAL FEES,Development,WOOD ENVIRONMENT & INFRASTRUCTURE SOLUTIONS,23/06/2022," 4,477.20 ",LAR,80131800,Real estate management services
"Ministry of Housing, Communities and Local Government",Homes England,OTHER PROFESSIONAL FEES,Development,WOOD ENVIRONMENT & INFRASTRUCTURE SOLUTIONS,23/06/2022," 3,357.43 ",LAR,80131800,Real estate management services
"Ministry of Housing, Communities and Local Government",Homes England,PLANNING APPLICATIONS,"Markets, Partners & Places",WOOD ENVIRONMENT & INFRASTRUCTURE SOLUTIONS,27/06/2022," 26,736.00 ",LAR,80131800,Real estate management services
"Ministry of Housing, Communities and Local Government",Homes England,ENGINEERING FEES,"Markets, Partners & Places",WOOD ENVIRONMENT & INFRASTRUCTURE SOLUTIONS,27/06/2022, 474.00 ,LAR,81101500,Civil Engineering
"Ministry of Housing, Communities and Local Government",Homes England,ENVIRONMENTAL ASSESMENT,"Markets, Partners & Places",WOOD ENVIRONMENT & INFRASTRUCTURE SOLUTIONS,27/06/2022, 324.00 ,LAR,77101500,Environmental auditing
"Ministry of Housing, Communities and Local Government",Homes England,MASTERPLANNING FEES,"Markets, Partners & Places",WOOD ENVIRONMENT & INFRASTRUCTURE SOLUTIONS,28/06/2022," 3,157.46 ",LAR,81101500,Civil Engineering
"Ministry of Housing, Communities and Local Government",Homes England,PROJECT MANAGEMENT,Development,WOOD ENVIRONMENT & INFRASTRUCTURE SOLUTIONS,28/06/2022," 30,462.00 ",LAR,80101600,Project management
"Ministry of Housing, Communities and Local Government",Homes England,PROPERTY SERVICES,"Markets, Partners & Places",WOOD ENVIRONMENT & INFRASTRUCTURE SOLUTIONS,29/06/2022," 2,440.94 ",LAR,80131800,Real estate management services
"Ministry of Housing, Communities and Local Government",Homes England,PROPERTY SERVICES,"Markets, Partners & Places",WOOD ENVIRONMENT & INFRASTRUCTURE SOLUTIONS,29/06/2022," 3,505.09 ",LAR,80131800,Real estate management services
"Ministry of Housing, Communities and Local Government",Homes England,PROPERTY SERVICES,"Markets, Partners & Places",WOOD ENVIRONMENT & INFRASTRUCTURE SOLUTIONS,29/06/2022," 6,400.88 ",LAR,80131800,Real estate management services
"Ministry of Housing, Communities and Local Government",Homes England,PROPERTY SERVICES,"Markets, Partners & Places",WOOD ENVIRONMENT & INFRASTRUCTURE SOLUTIONS,29/06/2022," 4,643.66 ",LAR,80131800,Real estate management services
"Ministry of Housing, Communities and Local Government",Homes England,PROPERTY SERVICES,"Markets, Partners & Places",WOOD ENVIRONMENT & INFRASTRUCTURE SOLUTIONS,29/06/2022, 848.40 ,LAR,80131800,Real estate management services
"Ministry of Housing, Communities and Local Government",Homes England,PROPERTY SERVICES,"Markets, Partners & Places",WOOD ENVIRONMENT & INFRASTRUCTURE SOLUTIONS,29/06/2022, 300.00 ,LAR,80131800,Real estate management services
"Ministry of Housing, Communities and Local Government",Homes England,PROPERTY SERVICES,"Markets, Partners & Places",WOOD ENVIRONMENT & INFRASTRUCTURE SOLUTIONS,29/06/2022," 3,666.30 ",LAR,80131800,Real estate management services
"Ministry of Housing, Communities and Local Government",Homes England,PROPERTY SERVICES,"Markets, Partners & Places",WOOD ENVIRONMENT & INFRASTRUCTURE SOLUTIONS,29/06/2022," 1,931.81 ",LAR,80131800,Real estate management services
"Ministry of Housing, Communities and Local Government",Homes England,L&OD STRATEGIC - HR USE ONLY,Corporate Resources,ERNST & YOUNG,08/06/2022,"-3,313.98 ",LAR,86101800,In service training and manpower development
"Ministry of Housing, Communities and Local Government",Homes England,MISC PROFESSIONAL FEES,"Markets, Partners & Places",ERNST & YOUNG,08/06/2022," 1,155.34 ",LAR,80101500,Business and corporate management consultation services 
"Ministry of Housing, Communities and Local Government",Homes England,TRAINING COURSES & CONFERENCES,Development,ERNST & YOUNG,08/06/2022," 1,323.60 ",LAR,86101800,In service training and manpower development
"Ministry of Housing, Communities and Local Government",Homes England,L&OD STRATEGIC - HR USE ONLY,Corporate Resources,ERNST & YOUNG,08/06/2022," 39,169.42 ",LAR,86101800,In service training and manpower development
"Ministry of Housing, Communities and Local Government",Homes England,ST FUND LOANS ADDITIONS,Investment,EDG IRONMONGER LTD,13/06/2022," 231,020.00 ",SMA,None,Loans
"Ministry of Housing, Communities and Local Government",Homes England,MOBILES,Cido,EE LTD,06/06/2022, 157.92 ,LAR,83111500,Local and long distance telephone communications
"Ministry of Housing, Communities and Local Government",Homes England,MOBILES,Cido,EE LTD,06/06/2022," 23,863.09 ",LAR,83111500,Local and long distance telephone communications
"Ministry of Housing, Communities and Local Government",Homes England,MOBILES,Cido,EE LTD,07/06/2022, 315.78 ,LAR,83111500,Local and long distance telephone communications
"Ministry of Housing, Communities and Local Government",Homes England,MOBILES,Cido,EE LTD,07/06/2022," 32,062.82 ",LAR,83111500,Local and long distance telephone communications
"Ministry of Housing, Communities and Local Government",Homes England,MOBILES,Cido,EE LTD,08/06/2022, 94.00 ,LAR,83111500,Local and long distance telephone communications
"Ministry of Housing, Communities and Local Government",Homes England,MOBILES,Cido,EE LTD,08/06/2022," 25,786.41 ",LAR,83111500,Local and long distance telephone communications
"Ministry of Housing, Communities and Local Government",Homes England,LEGAL FEES (PROGRAMME - RDEL),Development,EVERSHEDS CLIENT ACCOUNT,08/06/2022, 22.80 ,LAR,80121600,Business law services
"Ministry of Housing, Communities and Local Government",Homes England,LEGAL FEES (PROGRAMME - RDEL),Development,EVERSHEDS CLIENT ACCOUNT,08/06/2022," 1,530.00 ",LAR,80121600,Business law services
"Ministry of Housing, Communities and Local Government",Homes England,LEGAL FEES (PROGRAMME - RDEL),Development,EVERSHEDS CLIENT ACCOUNT,09/06/2022," 1,500.00 ",LAR,80121600,Business law services
"Ministry of Housing, Communities and Local Government",Homes England,PROF FEES EQUITY CAPITALISED,Investment,EVERSHEDS CLIENT ACCOUNT,16/06/2022," 11,246.40 ",LAR,80121600,Business law services
"Ministry of Housing, Communities and Local Government",Homes England,LEGAL FEES (PROGRAMME - CDEL),Development,EVERSHEDS CLIENT ACCOUNT,30/06/2022," 12,209.76 ",LAR,80121600,Business law services
"Ministry of Housing, Communities and Local Government",Homes England,ESTATE GENERAL MAINTENANCE,Development,EA FORMBY (NW) LIMITED,09/06/2022,-480.00 ,SMA,72101500,Building maintenance and repair services
"Ministry of Housing, Communities and Local Government",Homes England,ESTATE GENERAL MAINTENANCE,Development,EA FORMBY (NW) LIMITED,09/06/2022," 1,536.00 ",SMA,72101500,Building maintenance and repair services
"Ministry of Housing, Communities and Local Government",Homes England,ST FUND LOANS ADDITIONS,Investment,EVAN HOMES (TOCKWITH) LTD,27/06/2022," 576,767.39 ",MIC,None,Loans
"Ministry of Housing, Communities and Local Government",Homes England,ESTATE GENERAL MAINTENANCE,Development,ECOLOGICAL LAND MANGEMENT LTD,09/06/2022," 1,944.00 ",SMA,72101500,Building maintenance and repair services
"Ministry of Housing, Communities and Local Government",Homes England,PLANNING APPLICATIONS,Development,EAST RIDING OF YORKSHIRE COUNCIL,09/06/2022," 3,600.00 ",PUB,80131800,Real estate management services
"Ministry of Housing, Communities and Local Government",Homes England,AGENCY STAFF,Corporate Resources,EDEN BROWN BUILT ENVIRONMENT,01/06/2022," 3,663.00 ",MED,80111600,Temporary personnel services
"Ministry of Housing, Communities and Local Government",Homes England,AGENCY STAFF,Corporate Resources,EDEN BROWN BUILT ENVIRONMENT,07/06/2022," 3,663.00 ",MED,80111600,Temporary personnel services
"Ministry of Housing, Communities and Local Government",Homes England,AGENCY STAFF,Corporate Resources,EDEN BROWN BUILT ENVIRONMENT,17/06/2022," 2,197.80 ",MED,80111600,Temporary personnel services
"Ministry of Housing, Communities and Local Government",Homes England,ESTATE GENERAL MAINTENANCE,Development,ENFORCEMENT BAILIFFS LTD T/A QUALITY BAILIFFS,06/06/2022, 780.00 ,SMA,72101500,Building maintenance and repair services
"Ministry of Housing, Communities and Local Government",Homes England,STAFF RECRUITMENT COSTS,Corporate Resources,EXPERIAN,28/06/2022," 2,641.20 ",LAR,80111700,Personnel Recruitment
"Ministry of Housing, Communities and Local Government",Homes England,MISC PROFESSIONAL FEES,Development,EDDISONS COMMERCIAL LIMITED,24/06/2022,"-10,164.00 ",MED,81121500,Economic analysis
"Ministry of Housing, Communities and Local Government",Homes England,RI - MONIITORING SURVEYOR FEES,Investment,EDDISONS COMMERCIAL LIMITED,24/06/2022, 900.00 ,MED,81101500,Civil Engineering
"Ministry of Housing, Communities and Local Government",Homes England,RI - MONIITORING SURVEYOR FEES,Investment,EDDISONS COMMERCIAL LIMITED,24/06/2022, 900.00 ,MED,81101500,Civil Engineering
"Ministry of Housing, Communities and Local Government",Homes England,MISC PROFESSIONAL FEES,Development,EDDISONS COMMERCIAL LIMITED,24/06/2022," 5,544.00 ",MED,81121500,Economic analysis
"Ministry of Housing, Communities and Local Government",Homes England,RI - MONIITORING SURVEYOR FEES,Investment,EDDISONS COMMERCIAL LIMITED,24/06/2022," 1,050.00 ",MED,81101500,Civil Engineering
"Ministry of Housing, Communities and Local Government",Homes England,RI - MONIITORING SURVEYOR FEES,Investment,EDDISONS COMMERCIAL LIMITED,24/06/2022, 870.00 ,MED,81101500,Civil Engineering
"Ministry of Housing, Communities and Local Government",Homes England,RI - MONIITORING SURVEYOR FEES,Investment,EDDISONS COMMERCIAL LIMITED,24/06/2022, 900.00 ,MED,81101500,Civil Engineering
"Ministry of Housing, Communities and Local Government",Homes England,RI - MONIITORING SURVEYOR FEES,Investment,EDDISONS COMMERCIAL LIMITED,24/06/2022,-834.00 ,MED,81101500,Civil Engineering
"Ministry of Housing, Communities and Local Government",Homes England,RI - MONIITORING SURVEYOR FEES,Investment,EDDISONS COMMERCIAL LIMITED,24/06/2022, 900.00 ,MED,81101500,Civil Engineering
"Ministry of Housing, Communities and Local Government",Homes England,RI - MONIITORING SURVEYOR FEES,Investment,EDDISONS COMMERCIAL LIMITED,24/06/2022, 900.00 ,MED,81101500,Civil Engineering
"Ministry of Housing, Communities and Local Government",Homes England,RI - MONIITORING SURVEYOR FEES,Investment,EDDISONS COMMERCIAL LIMITED,27/06/2022," 1,800.00 ",MED,81101500,Civil Engineering
"Ministry of Housing, Communities and Local Government",Homes England,OTHER PROFESSIONAL FEES,"Markets, Partners & Places",EAST HAMPSHIRE DISTRICT COUNCIL,06/06/2022," 8,098.14 ",PUB,80131800,Real estate management services
"Ministry of Housing, Communities and Local Government",Homes England,MISC PROFESSIONAL FEES,"Markets, Partners & Places",EAST HAMPSHIRE DISTRICT COUNCIL,16/06/2022," 2,288.54 ",PUB,81101500,Civil Engineering
"Ministry of Housing, Communities and Local Government",Homes England,MASTERPLANNING FEES,Development,EAST HAMPSHIRE DISTRICT COUNCIL,16/06/2022," 2,100.00 ",PUB,81101500,Civil Engineering
"Ministry of Housing, Communities and Local Government",Homes England,OTHER PROFESSIONAL FEES,"Markets, Partners & Places",EAST HAMPSHIRE DISTRICT COUNCIL,16/06/2022," 34,062.43 ",PUB,80131800,Real estate management services
"Ministry of Housing, Communities and Local Government",Homes England,RI - MONIITORING SURVEYOR FEES,Investment,AECOM LIMITED,08/06/2022," 3,860.84 ",LAR,81101500,Civil Engineering
"Ministry of Housing, Communities and Local Government",Homes England,MASTERPLANNING FEES,"Markets, Partners & Places",AECOM LIMITED,08/06/2022," 2,082.00 ",LAR,81101500,Civil Engineering
"Ministry of Housing, Communities and Local Government",Homes England,OTHER PROFESSIONAL FEES,"Markets, Partners & Places",AECOM LIMITED,08/06/2022, 600.00 ,LAR,80131800,Real estate management services
"Ministry of Housing, Communities and Local Government",Homes England,RI - MONIITORING SURVEYOR FEES,Investment,AECOM LIMITED,08/06/2022," 3,860.84 ",LAR,81101500,Civil Engineering
"Ministry of Housing, Communities and Local Government",Homes England,LEGAL FEES (PROGRAMME - CDEL),Development,AECOM LIMITED,08/06/2022," 66,148.06 ",LAR,80121600,Business law services
"Ministry of Housing, Communities and Local Government",Homes England,LEGAL FEES (PROGRAMME - CDEL),"Markets, Partners & Places",AECOM LIMITED,16/06/2022," 9,600.00 ",LAR,80121600,Business law services
"Ministry of Housing, Communities and Local Government",Homes England,DEVELOPMENT MANAGEMENT,Development,AECOM LIMITED,17/06/2022," 1,494.00 ",LAR,80131800,Real estate management services
"Ministry of Housing, Communities and Local Government",Homes England,RI - MONIITORING SURVEYOR FEES,Investment,AECOM LIMITED,21/06/2022," 2,400.00 ",LAR,81101500,Civil Engineering
"Ministry of Housing, Communities and Local Government",Homes England,ENGINEERING FEES,"Markets, Partners & Places",AECOM LIMITED,23/06/2022," 19,493.04 ",LAR,81101500,Civil Engineering
"Ministry of Housing, Communities and Local Government",Homes England,RI - MONIITORING SURVEYOR FEES,Investment,AECOM LIMITED,23/06/2022," 2,040.00 ",LAR,81101500,Civil Engineering
"Ministry of Housing, Communities and Local Government",Homes England,PLANNING APPLICATIONS,"Markets, Partners & Places",AECOM LIMITED,24/06/2022," 18,950.62 ",LAR,80131800,Real estate management services
"Ministry of Housing, Communities and Local Government",Homes England,PLANNING APPLICATIONS,"Markets, Partners & Places",AECOM LIMITED,24/06/2022," 28,714.56 ",LAR,80131800,Real estate management services
"Ministry of Housing, Communities and Local Government",Homes England,Other Land Loans Fv Additions,"Markets, Partners & Places",AECOM LIMITED,28/06/2022," 9,792.36 ",LAR,80131800,Real estate management services
"Ministry of Housing, Communities and Local Government",Homes England,Other Land Loans Fv Additions,"Markets, Partners & Places",AECOM LIMITED,28/06/2022," 10,872.36 ",LAR,81101500,Civil Engineering
"Ministry of Housing, Communities and Local Government",Homes England,PLANNING APPLICATIONS,"Markets, Partners & Places",AECOM LIMITED,28/06/2022," 1,516.60 ",LAR,80131800,Real estate management services
"Ministry of Housing, Communities and Local Government",Homes England,PLANNING APPLICATIONS,"Markets, Partners & Places",AECOM LIMITED,28/06/2022," 4,102.49 ",LAR,80131800,Real estate management services
"Ministry of Housing, Communities and Local Government",Homes England,DISPOSAL FEES - PROPERTY AGENT,Development,SAVILLS UK LIMITED,08/06/2022," 6,600.00 ",LAR,80131600,Sale of property and building
"Ministry of Housing, Communities and Local Government",Homes England,MASTERPLANNING FEES,Development,SAVILLS UK LIMITED,10/06/2022," 7,656.00 ",LAR,81101500,Civil Engineering
"Ministry of Housing, Communities and Local Government",Homes England,RI - SITE VALUATION FEES,Investment,SAVILLS UK LIMITED,10/06/2022," 2,700.00 ",LAR,80131800,Real estate management services
"Ministry of Housing, Communities and Local Government",Homes England,DISPOSAL FEES - PROPERTY AGENT,Development,SAVILLS UK LIMITED,22/06/2022," 6,000.00 ",LAR,80131600,Sale of property and building
"Ministry of Housing, Communities and Local Government",Homes England,VALUATION FEES,"Markets, Partners & Places",SAVILLS UK LIMITED,22/06/2022," 2,100.00 ",LAR,80131800,Real estate management services
"Ministry of Housing, Communities and Local Government",Homes England,ST FUND LOANS ADDITIONS,Investment,FP (YE CORNER) LIMITED,28/06/2022," 13,551.25 ",LAR,None,Loans
"Ministry of Housing, Communities and Local Government",Homes England,LUHBF Loans Additions,Investment,FOXGLOVE INVESTMENTS GROUP,29/06/2022," 965,456.00 ",MIC,None,Loans
"Ministry of Housing, Communities and Local Government",Homes England,ST FUND LOANS ADDITIONS,Investment,FOXGLOVE INVESTMENTS HOMES LIMITED,23/06/2022," 252,121.00 ",MIC,None,Loans
"Ministry of Housing, Communities and Local Government",Homes England,ST FUND LOANS ADDITIONS,Investment,FOOTSTEP LIVING DEVELOPMENTS LTD,10/06/2022," 251,781.09 ",MIC,None,Loans
"Ministry of Housing, Communities and Local Government",Homes England,ESTATE GENERAL MAINTENANCE,"Markets, Partners & Places",FASSFERN FORESTRY LIMITED,29/06/2022, 348.00 ,SMA,72101500,Building maintenance and repair services
"Ministry of Housing, Communities and Local Government",Homes England,SERVICE CHARGE,Development,R FOX T/A SOUTHCOAST MAINTENANCE,13/06/2022, 670.80 ,SMA,80131500,Lease and rental of property or building
"Ministry of Housing, Communities and Local Government",Homes England,BUILDINGS-CLEANING,Development,R FOX T/A SOUTHCOAST MAINTENANCE,13/06/2022, 756.00 ,SMA,76111500,General building and office cleaining and maintenance services
"Ministry of Housing, Communities and Local Government",Homes England,GROUNDS ITINERANT PREVENTION,Development,R FOX T/A SOUTHCOAST MAINTENANCE,13/06/2022, 840.00 ,SMA,72101500,Building maintenance and repair services
"Ministry of Housing, Communities and Local Government",Homes England,MANAGEMENT COSTS,Development,R FOX T/A SOUTHCOAST MAINTENANCE,13/06/2022, 420.00 ,SMA,80131800,Real estate management services
"Ministry of Housing, Communities and Local Government",Homes England,SERVICE CHARGE,Development,R FOX T/A SOUTHCOAST MAINTENANCE,13/06/2022, 734.40 ,SMA,80131500,Lease and rental of property or building
"Ministry of Housing, Communities and Local Government",Homes England,FENCE MAINTENANCE,Development,R FOX T/A SOUTHCOAST MAINTENANCE,13/06/2022, 304.80 ,SMA,72102900,Facility maintenance and repair services
"Ministry of Housing, Communities and Local Government",Homes England,EXTERNAL BUILDING MAINTENANCE,Development,R FOX T/A SOUTHCOAST MAINTENANCE,13/06/2022, 840.00 ,SMA,72101500,Building maintenance and repair services
"Ministry of Housing, Communities and Local Government",Homes England,EXTERNAL BUILDING MAINTENANCE,Development,R FOX T/A SOUTHCOAST MAINTENANCE,13/06/2022," 1,350.00 ",SMA,72101500,Building maintenance and repair services
"Ministry of Housing, Communities and Local Government",Homes England,EXTERNAL BUILDING MAINTENANCE,Development,R FOX T/A SOUTHCOAST MAINTENANCE,13/06/2022," 1,650.00 ",SMA,72101500,Building maintenance and repair services
"Ministry of Housing, Communities and Local Government",Homes England,CONTRACT WORKS,Development,FORKERS LTD,28/06/2022," 460,528.38 ",MED,72141500,Land preparation services
"Ministry of Housing, Communities and Local Government",Homes England,SECURITY,Development,FALCON SECURITY,08/06/2022," 6,556.56 ",SMA,92121500,Guard services
"Ministry of Housing, Communities and Local Government",Homes England,SECURITY,Development,FALCON SECURITY,08/06/2022," 6,556.56 ",SMA,92121500,Guard services
